Workbook

Sheet GESTION
A1: Syndicat des Copropriétaires | D1: Exercice du | E1: 1er janvier | F1: 2017 | H1: 1 | J1: =($G$4=3)+($G$4=4)+($G$4=5)+($G$4=6)+($G$4=12)+($G$4=13)+($G$4=14)+($G$4=20)+($G$4=21)+($G$4=22)+($G$4=28)+($G$4=29)+($G$4=30)+(($G$4=8)+($G$4=16)+($G$4=24)+($G$4=32))*2 -> 1 | K1: =(G4=3)+(G4=4)+(G4=5)+(G4=6)+((G4=12)+(G4=13)+(G4=14)+(G4=20)+(G4=21)+(G4=22)+(G4=28)+(G4=29)+(G4=30))*2+(G4=36)*3 -> 2 | L1: 80 | N1: =F2+1 -> 2018 | R1: =Tant.Lots.Fds!M36 -> 1 | U1: =FdsTravLots!D36 -> -4700 | AK1: =TODAY() -> 2020-10-06 | AR1: 3 | AS1: 1er Appel | AT1: Charges courantes
A2: 27 rue de PARIS | B2: 162 | D2: Au | E2: 31 décembre. | F2: 2017 | L2: % | AR2: 4 | AS2: 2e Appel | AT2: =$AT$1 -> Charges courantes
A3: 08200 LETROU | H3: OPERATION | AR3: 5 | AS3: 3e Appel | AT3: =$AT$1 -> Charges courantes
C4: Date Avis….: | D4: 20/10/17 | G4: 20 | H4: =VLOOKUP($G$4,$AR$1:$AS$20,2,FALSE) -> 1er Appel Travaux | K4: "C:\chemin\nom classeur.xlms" | AR4: 6 | AS4: 4e Appel | AT4: =$AT$1 -> Charges courantes
C5: Exigible le | D5: 01//12/17 | H5: =VLOOKUP($G$4,$AR$1:$AT$20,3) -> Electricité | AR5: 8 | AS5: Répartition | AT5: =$AT$1 -> Charges courantes
A6: =G4 -> 20 | B6: =VLOOKUP($G$4,$AR$1:$AS$20,2,FALSE) -> 1er Appel Travaux | C6: : | AR6: 12 | AS6: 1erAppel Travaux | AT6: Peinture
B7: =VLOOKUP($G$4,$AR$1:$AT$20,3,FALSE) -> Electricité | C7: G E S T I O N G E N E R A L E | G7: Sauvegarde du 29.09.20 | AB7: G E S T I O N G E N E R A L E | AR7: 13 | AS7: 2e Appel Travaux | AT7: =$AT$6 -> Peinture
AP8: DEB.tableau | AR8: 14 | AS8: 3e Appel Travaux | AT8: =$AT$6 -> Peinture
C9: 3 | D9: 4 | E9: 5 | F9: 6 | H9: 8 | L9: 12 | M9: 13 | N9: 14 | P9: 16 | T9: 20 | U9: 21 | V9: 22 | X9: 24 | AB9: 28 | AC9: 29 | AD9: 30 | AF9: 32 | AJ9: 36 | AN9: 40 | AO9: 41 | AR9: 16 | AS9: Répart.Travaux | AT9: =$AT$6 -> Peinture
A10: Tableau 1 | B10: FIN.tableau | M10: Travaux 1 | N10: =AT6 -> Peinture | P10: Travaux 1 | Q10: =AT6 -> Peinture | U10: Travaux 2 | V10: =AT10 -> Electricité | X10: Travaux 2 | Y10: =V10 -> Electricité | AC10: Travaux 3 | AF10: Travaux 3 | AG10: =AD10 -> 0 | AJ10: Charges Locatives | AL10: T.V.A. | AN10: Avance Trésorerie | AO10: Fds Travaux | AR10: 20 | AS10: 1er Appel Travaux | AT10: Electricité
A11: CLE | B11: Désignation | C11: Budget 1°Tr | D11: Budget 2°Tr | E11: Budget 3°Tr | F11: Budget 4°Tr | G11: TOT.APPELS | H11: REALISE | J11: TVA | L11: I°Appel Trav. | M11: 2eAppelTrav; | N11: 3°Appel Trav | O11: TOT.APPELS | P11: REPART TRAV. | R11: T.V.A. | T11: I°Appel Trav. | U11: 2°Appel Trav. | V11: 3°Appel Trav | W11: TOT.APPELS | X11: REPART TRAV. | Z11: T.V.A. | AB11: I°Appel Trav. | AC11: 2°Appel Trav. | AD11: 3°Appel Trav | AE11: TOT.APPELS | AF11: REPART TRAV | AH11: T.V.A. | AO11: Dates libres | AR11: 21 | AS11: 2e Appel Travaux | AT11: =$AT$10 -> Electricité
A12: 1 | B12: Ch Gén. | C12: 3000 | D12: 3000 | E12: 3000 | F12: 3000 | G12: =SUM(C12:F12) -> 12000 | H12: 12500 | M12: 10000 | O12: =SUM(L12:N12) -> 10000 | T12: 6000 | W12: =SUM(T12:V12) -> 6000 | AB12: 10000 | AE12: =SUM(AB12:AD12) -> 10000 | AR12: 22 | AS12: 3e Appel Travaux | AT12: =$AT$10 -> Electricité
A13: 2 | B13: Ch.Bât. | C13: 1000 | D13: 1000 | E13: 1000 | F13: 1000 | G13: =SUM(C13:F13) -> 4000 | H13: 4500 | L13: 15000 | O13: =SUM(L13:N13) -> 15000 | W13: 0 | AE13: =SUM(AB13:AD13) -> 0 | AR13: 24 | AS13: Répart.Travaux | AT13: =$AT$10 -> Electricité
A14: 3 | B14: Ch.Escal.A | C14: 500 | D14: 500 | E14: 500 | F14: 500 | G14: =SUM(C14:F14) -> 2000 | H14: 1800 | O14: =SUM(L14:N14) -> 0 | W14: 0 | AE14: =SUM(AB14:AD14) -> 0 | AR14: 28 | AS14: 1er Appel Travaux | AT14: Toiture
A15: 4 | B15: Ch Escal B | G15: =SUM(C15:F15) -> 0 | O15: 0 | W15: 0 | AE15: 0 | AR15: 29 | AS15: 2e Appel Travaux | AT15: =$AT$14 -> Toiture
A16: 5 | B16: WC | G16: =SUM(C16:F16) -> 0 | O16: 0 | W16: 0 | AE16: 0 | AR16: 30 | AS16: 3e Appel Travaux | AT16: =$AT$14 -> Toiture
A17: 6 | B17: Provision Eau | C17: 2000 | D17: 2000 | E17: 2000 | F17: 2000 | G17: =SUM(C17:F17) -> 8000 | O17: 0 | W17: 0 | AE17: 0 | AR17: 32 | AS17: Répart.Travaux | AT17: =$AT$14 -> Toiture
A18: 7 | B18: EAU Individuelle | H18: 8200 | O18: 0 | W18: 0 | AE18: 0 | AR18: 36 | AS18: Charges locatives | AT18: ,
A19: 8 | G19: 0 | O19: 0 | W19: 0 | AE19: 0 | AR19: 40 | AS19: Avance Trésorerie | AT19: ,
G20: 0 | O20: 0 | W20: 0 | AE20: 0 | AR20: 41 | AS20: Appel Fonds travaux | AT20: ,
G21: 0
G22: 0
A23: 10 | C23: =SUM(C10:C22) -> 6500 | D23: =SUM(D10:D22) -> 6500 | E23: =SUM(E10:E22) -> 6500 | F23: =SUM(F10:F22) -> 6500 | G23: =SUM(G10:G22) -> 26000 | H23: =SUM(H10:H22) -> 27000 | J23: 0 | L23: 15000 | M23: 10000 | N23: 0 | O23: 25000 | P23: 0 | R23: 0 | T23: 6000 | U23: 0 | V23: 0 | W23: 6000 | X23: 0 | Z23: 0 | AB23: 10000 | AC23: 0 | AD23: 0 | AE23: 10000 | AF23: 0 | AH23: 0 | AJ23: =SUM(AJ12:AJ22) -> 0 | AL23: =SUM(AL12:AL22) -> 0
A24: 11 | B24: Fonds Travaux | C24: 500 | D24: 500 | E24: 500 | F24: 500 | K24: Remb,Avance Travaux | L24: -900 | S24: Remb,Avance Travaux | AA24: Remb,Avance Travaux | AB24: -1800
A25: 12 | B25: Av.Trésorerie | AN25: 1000
A27: 99 | C27: =C23+C24 -> 7000 | D27: =D23+D24 -> 7000 | E27: =E23+E24 -> 7000 | F27: =F23+F24 -> 7000 | G27: =G23 -> 26000 | H27: =H23 -> 27000 | I27: =I23 -> 0 | J27: =J23 -> 0 | K27: =K23 -> 0 | L27: =L23+L24 -> 14100 | M27: =M23+M24 -> 10000 | N27: =N23+N24 -> 0 | P27: =P23 -> 0 | R27: =R23 -> 0 | T27: =T23+T24 -> 6000 | U27: =U23 -> 0 | V27: =V23 -> 0 | X27: =X23 -> 0 | AB27: =AB23+AB24 -> 8200 | AC27: =AC23 -> 0 | AD27: =AD23 -> 0 | AF27: =AF23 -> 0 | AH27: =AH23 -> 0 | AJ27: =AJ23 -> 0 | AN27: =AN25 -> 1000 | AO27: =AO24 -> 0
C28: 1 | D28: 1 | E28: 1 | F28: 1 | H28: 1 | L28: 1 | T28: 1 | AB28: 1
A30: Base de calculs M3 d' eau. | G30: M3 Eau | H30: 760 | T30: 760
W31: PARTIICIPATIONS COPROPRIETAIRES | AB31: 29
A32: 1 | D32: PARTICIPATIONS COPROPRIETAIRES | L32: 12 | N32: 14 | O32: 15 | P32: 16 | Q32: 17 | R32: 18 | S32: 19 | T32: 20 | U32: 21 | V32: 22 | W32: 23 | X32: 24 | Y32: 25 | Z32: 26 | AA32: 27 | AB32: 28 | AC32: 29 | AD32: 30 | AE32: 31 | AF32: 32 | AG32: 33 | AH32: 34 | AJ32: 36 | AN32: 40
A33: Tableau 2 | C33: 3 | D33: 4 | E33: 5 | F33: 6 | G33: 7 | H33: 8 | I33: 9 | J33: 10 | K33: 11 | U33: Travaux 2 | AC33: Travaux 3
B34: Copropriétaires | C34: Budget 1°Tr | D34: Budget 2°Tr | E34: Budget 3°Tr | F34: Budget 4°Tr | G34: BUDGET | H34: REALISE | L34: I°Appel Trav. | M34: 2e Appel Trav | N34: 3°Appel Trav | O34: TOT.APPELS | P34: REPART TRAV. | R34: T.V.A. | T34: I°Appel Trav. | U34: 2°Appel Trav. | V34: 3°Appel Trav | W34: TOT.APPELS | X34: REPART TRAV. | Z34: T.V.A. | AB34: I°Appel Trav. | AC34: 2°Appel Trav. | AD34: 3°Appel Trav | AE34: TOT.APPELS | AF34: REPRTR TRAV | AH34: T.V.A | AJ34: Charges Locatives | AL34: T.V.A. | AN34: Avance Trésorerie
A35: =Copropriétaires!A6 -> 450.001 | B35: =Copropriétaires!B6 -> AUBERT | C35: 528.5 | D35: 836.61 | E35: 836.61 | F35: 528.5 | G35: =SUM(C35:F35) -> 2730.22 | H35: 3488.07 | L35: 2070 | O35: =L35+M35+N35 -> 2070 | P35: 2340 | T35: 702 | W35: =T35+U35+V35 -> 702 | AB35: 1170 | AE35: =AB35+AC35+AD35 -> 1170 | AN35: 0 | AO35: 0
A36: =Copropriétaires!A7 -> 450.002 | B36: =Copropriétaires!B7 -> CARDIN | C36: 356.7 | D36: 672.92 | E36: 672.92 | F36: 356.7 | G36: =SUM(C36:F36) -> 2059.24 | H36: 2716.25 | L36: 0 | O36: =L36+M36+N36 -> 0 | P36: 2378 | T36: 713.4 | W36: =T36+U36+V36 -> 713.4 | AB36: 1189 | AE36: =AB36+AC36+AD36 -> 1189 | AN36: 0 | AO36: 0
A37: =Copropriétaires!A8 -> 450.003 | B37: =Copropriétaires!B8 -> DUBOIS | C37: 1029.5 | D37: 1029.5 | E37: 1029.5 | F37: 1029.5 | G37: 4118 | H37: 4244.7 | L37: 3450 | O37: 3450 | P37: 3900 | T37: 1170 | W37: 1170 | AB37: 1950 | AE37: 1950 | AN37: 0 | AO37: 0
A38: =Copropriétaires!A9 -> 450.005 | B38: =Copropriétaires!B9 -> FONTAINE | C38: 781 | D38: 1335.05 | E38: 1335.05 | F38: 781 | G38: 4232.1 | H38: 5584.34 | L38: 2970 | O38: 2970 | P38: 3360 | T38: 1008 | W38: 1008 | AB38: 1680 | AE38: 1680 | AN38: 0 | AO38: 0
A39: =Copropriétaires!A10 -> 450.006 | B39: =Copropriétaires!B10 -> HUBERT | C39: 1035.5 | D39: 1235.5 | E39: 1235.5 | F39: 1035.5 | G39: 4542 | H39: 5200.39 | L39: 4095 | O39: 4095 | P39: 4660 | T39: 1398 | W39: 1398 | AB39: 2330 | AE39: 2330 | AN39: 0 | AO39: 0
A40: =Copropriétaires!A11 -> 450.007 | B40: =Copropriétaires!B11 -> LONGUET | C40: 484.5 | D40: 943.96 | E40: 943.96 | F40: 484.5 | G40: 2856.92 | H40: 3894.26 | L40: 1740 | O40: 1740 | P40: 1980 | T40: 594 | W40: 594 | AB40: 990 | AE40: 990 | AN40: 0 | AO40: 0
A41: =Copropriétaires!A12 -> 450.008 | B41: =Copropriétaires!B12 -> MARTIAL | C41: 93.3 | D41: 136.54 | E41: 136.54 | F41: 93.3 | G41: 459.68 | H41: 572.17 | L41: 0 | O41: 0 | P41: 622 | T41: 186.6 | W41: 186.6 | AB41: 311 | AE41: 311 | AN41: 0 | AO41: 0
A42: 450.009 | B42: =Copropriétaires!B13 -> PONTEL | C42: 191 | D42: 309.92 | E42: 309.92 | F42: 191 | G42: 1001.84 | H42: 1299.81 | L42: 675 | O42: 675 | P42: 760 | T42: 228 | W42: 228 | AB42: 380 | AE42: 380 | AN42: 0
A43: =Copropriétaires!A14 -> 450.011 | B43: =Copropriétaires!B14 -> xxx | C43: 0 | D43: 0 | E43: 0 | F43: 0 | G43: 0 | H43: 0 | L43: 0 | O43: 0 | P43: 0 | T43: 0 | W43: 0 | AB43: 0 | AE43: 0 | AN43: 0
A44: =Copropriétaires!A15 -> 902 | B44: =Copropriétaires!B15 -> 0 | G44: 0 | O44: 0 | W44: 0 | AE44: 0
A45: =Copropriétaires!A16 -> 903 | B45: =Copropriétaires!B16 -> 0 | G45: 0 | O45: 0 | W45: 0 | AE45: 0
A46: =Copropriétaires!A17 -> 904 | B46: =Copropriétaires!B17 -> 0 | G46: 0 | O46: 0 | W46: 0 | AE46: 0
A47: =Copropriétaires!A18 -> 905 | B47: =Copropriétaires!B18 -> 0 | G47: 0 | O47: 0 | W47: 0 | AE47: 0
A48: =Copropriétaires!A19 -> 906 | B48: =Copropriétaires!B19 -> 0 | G48: 0 | O48: 0 | W48: 0 | AE48: 0
A49: =Copropriétaires!A20 -> 907 | B49: =Copropriétaires!B20 -> 0 | G49: 0 | O49: 0 | W49: 0 | AE49: 0
A50: =Copropriétaires!A21 -> 908 | B50: =Copropriétaires!B21 -> 0 | G50: 0 | O50: 0 | W50: 0 | AE50: 0
A51: =Copropriétaires!A22 -> 909 | B51: =Copropriétaires!B22 -> 0 | G51: 0 | O51: 0 | W51: 0 | AE51: 0
A52: =Copropriétaires!A23 -> 910 | B52: =Copropriétaires!B23 -> 0 | G52: 0 | O52: 0 | W52: 0 | AE52: 0
A53: =Copropriétaires!A24 -> 911 | B53: =Copropriétaires!B24 -> 0 | G53: 0 | O53: 0 | W53: 0 | AE53: 0
A54: =Copropriétaires!A25 -> 912 | B54: =Copropriétaires!B25 -> 0 | G54: 0 | O54: 0 | W54: 0 | AE54: 0
B55: REPARTIS | C55: =SUM(C35:C54) -> 4500 | D55: 6500 | E55: 6500 | F55: 4500 | G55: 22000 | H55: 26999.99 | I55: 0 | J55: 0 | K55: 0 | L55: 15000 | M55: 0 | N55: 0 | O55: =SUM(O35:O54) -> 15000 | P55: =SUM(P35:P54) -> 20000 | R55: =SUM(R35:R54) -> 0 | T55: =SUM(T35:T54) -> 6000 | U55: =SUM(U35:U54) -> 0 | V55: =SUM(V35:V54) -> 0 | W55: =SUM(W35:W54) -> 6000 | X55: =SUM(X35:X54) -> 0 | Z55: 0 | AB55: 10000 | AC55: 0 | AD55: 0 | AE55: 10000 | AF55: 0 | AH55: 0 | AJ55: 0 | AL55: 0 | AN55: =SUM(AN35:AN54) -> 0
B56: A REPARTIR | C56: =C23 -> 6500 | D56: =D23 -> 6500 | E56: 6500 | F56: 6500 | G56: 26000 | H56: =H23 -> 27000 | I56: 0 | J56: 0 | K56: 0 | O56: 25000 | P56: 0 | R56: 0 | T56: 6000 | U56: =U23 -> 0 | V56: 0 | W56: 6000 | X56: 0 | Z56: 0 | AB56: 10000 | AC56: 0 | AD56: 0 | AE56: 10000 | AF56: 0 | AH56: =AH23 -> 0 | AJ56: =AJ23 -> 0 | AL56: =AL23 -> 0 | AN56: =AN25 -> 1000
A58: Tableau 3
A59: AVANCES TRESORERIE
B60: 54
A61: FinAvTres | C61: 3 | D61: 4 | E61: 5 | F61: 6 | G61: 7 | H61: 8 | I61: 9 | J61: 10 | K61: 11 | O61: 15 | P61: 16 | Q61: 17 | R61: 18 | S61: 19 | T61: 20 | U61: 21 | V61: 22 | W61: 23 | X61: 24 | Y61: 25 | Z61: 26 | AA61: 27 | AB61: 28 | AC61: 29 | AD61: 30 | AE61: 31 | AG61: 33 | AH61: 34 | AK61: RetourDebTres
A62: Code | B62: Copropriétaires | C62: MONTANT | D62: 01/01/17.
A63: =GESTION!$A$35 -> 450.001 | B63: =GESTION!$B$35 -> AUBERT | C63: =SUM(D63:AJ63) -> 117 | D63: 117
A64: =GESTION!$A$36 -> 450.002 | B64: =GESTION!$B$36 -> CARDIN | C64: =SUM(D64:AJ64) -> 118.9 | D64: 118.9
A65: =GESTION!$A$37 -> 450.003 | B65: =GESTION!$B$37 -> DUBOIS | C65: 195 | D65: 195
A66: =GESTION!$A$38 -> 450.005 | B66: =GESTION!$B$38 -> FONTAINE | C66: 168 | D66: 168
A67: =GESTION!$A$39 -> 450.006 | B67: =GESTION!$B$39 -> HUBERT | C67: 233 | D67: 233
A68: =GESTION!$A$40 -> 450.007 | B68: =GESTION!$B$40 -> LONGUET | C68: 99 | D68: 99
A69: =GESTION!$A$41 -> 450.008 | B69: =GESTION!$B$41 -> MARTIAL | C69: 31.1 | D69: 31.1
A70: =GESTION!$A$42 -> 450.009 | B70: =GESTION!$B$42 -> PONTEL | C70: 38 | D70: 38
A71: =GESTION!$A$43 -> 450.011 | B71: =GESTION!$B$43 -> xxx | C71: 0
A72: =GESTION!$A$44 -> 902 | B72: =GESTION!$B$44 -> 0 | C72: 0
A73: =GESTION!$A$45 -> 903 | B73: =GESTION!$B$45 -> 0 | C73: 0
A74: =GESTION!$A$46 -> 904 | B74: =GESTION!$B$46 -> 0 | C74: 0
A75: =GESTION!$A$47 -> 905 | B75: =GESTION!$B$47 -> 0 | C75: 0
A76: =GESTION!$A$48 -> 906 | B76: =GESTION!$B$48 -> 0 | C76: 0
A77: =GESTION!$A$49 -> 907 | B77: =GESTION!$B$49 -> 0 | C77: 0
A78: =GESTION!$A$50 -> 908 | B78: =GESTION!$B$50 -> 0 | C78: 0
A79: =GESTION!$A$51 -> 909 | B79: =GESTION!$B$51 -> 0 | C79: 0
A80: =GESTION!$A$52 -> 910 | B80: =GESTION!$B$52 -> 0 | C80: 0
A81: =GESTION!$A$53 -> 911 | B81: =GESTION!$B$53 -> 0 | C81: 0
A82: =GESTION!$A$54 -> 912 | B82: =GESTION!$B$54 -> 0 | C82: 0
C83: =SUM(C63:C82) -> 1000 | D83: =SUM(D63:D82) -> 1000 | E83: 0 | F83: 0 | G83: 0 | H83: 0 | I83: 0 | J83: 0 | K83: 0 | L83: 0 | M83: 0 | N83: 0 | O83: 0 | P83: 0 | Q83: 0 | R83: 0 | S83: 0 | T83: 0 | U83: 0 | V83: 0 | W83: 0 | X83: 0 | Y83: 0 | Z83: 0 | AA83: 0 | AB83: 0 | AC83: 0 | AD83: 0 | AE83: 0 | AF83: 0 | AG83: =SUM(AG63:AG82) -> 0 | AH83: =SUM(AH63:AH82) -> 0 | AI83: =SUM(AI63:AI82) -> 0 | AJ83: =SUM(AJ63:AJ82) -> 0
A86: Table 4
A87: AVANCE TRAVAUX
A88: Montant : | B88: 500

Sheet Copropriétaires
A2: COPROPRIETAIRES
A4: Tableau A
A5: Code | B5: Nom abrégé | C5: Civilité et Nom | G5: Adresse | J5: C.P. Ville
A6: 450.001 | B6: AUBERT | C6: Mr AUBERT J.Paul | G6: 27 rue de Paris | J6: 08200 LETROU
A7: 450.002 | B7: CARDIN | C7: Mme CARDON Marie | G7: 27 rue de Paris | J7: 08200 LETROU
A8: 450.003 | B8: DUBOIS | C8: Mr DUBOIS | G8: 5 rue de Rennes | J8: 77150 Lésigny
A9: 450.005 | B9: FONTAINE | C9: Mme FONTAINE | G9: 10 rue de la Paix | J9: 85340 Olonne sur Mer
A10: 450.006 | B10: HUBERT | C10: Mr HUBERT | G10: 27 rue de Paris | J10: 08200 LETROU
A11: 450.007 | B11: LONGUET | C11: Mr LONGUET Jean Pierre | G11: 9 allée Verte | J11: 83270 Saint Cyr sur Mer
A12: 450.008 | B12: MARTIAL | C12: Mr MARTIAL Paul | G12: 27 rue de Paris | J12: 08200 LETROU
A13: 450.009 | B13: PONTEL | C13: Mr PONTEL Louis | G13: 27 rue de Paris | J13: 08200 LETROU
A14: 450.011 | B14: xxx | C14: xxx
A15: 902
A16: 903
A17: 904
A18: 905
A19: 906
A20: 907
A21: 908
A22: 909
A23: 910
A24: 911
A25: 912
X32: 1 | Y32: 2 | Z32: 3 | AA32: 4 | AB32: 5 | AC32: 6

Sheet Tant.Lots.Fds
A1: 99 | B1: 2 | C1: 3 | D1: 4 | E1: 5 | F1: 6 | G1: 7 | H1: 8 | I1: 9 | J1: 10 | K1: 11 | L1: 12 | M1: 13 | N1: 14 | O1: 15 | P1: Util.Av.Trav. | V1: Util.Av.Trav. | Y1: Utilisation | AD1: CONSOMMATIONS EAU
A2: Date de mise à jour 14 | M2: Prov.eau | N2: Eau Indiv. | Q2: =VLOOKUP(1,GESTION!$A$12:$AQ$27,GESTION!$G$4,0)*(GESTION!$K$1=2) -> 6000 | R2: =VLOOKUP(2,GESTION!$A$12:$AQ$27,GESTION!$G$4,0)*(GESTION!$K$1=2) -> 0 | S2: =VLOOKUP(3,GESTION!$A$12:$AQ$27,GESTION!$G$4,0)*(GESTION!$K$1=2) -> 0 | T2: =VLOOKUP(4,GESTION!$A$12:$AQ$27,GESTION!$G$4,0)*(GESTION!$K$1=2) -> 0 | U2: =VLOOKUP(5,GESTION!$A$12:$AQ$27,GESTION!$G$4,0)*(GESTION!$K$1=2) -> 0 | V2: =GESTION!$L$24*(GESTION!$G$4=12)+GESTION!$T$24*(GESTION!$G$4=20)+GESTION!$AB$24*(GESTION!$G$4=28) -> 0 | W2: =SUM(Q2:U2) -> 6000 | Y2: =GESTION!L1/100 -> 0.8
H3: Cle 1 | I3: Clé 2 | J3: Clé 3 | K3: Clé 4 | L3: Clé 5 | O3: Clé 8
A4: N°Lot | B4: Désignation | C4: Bât./Escal; | D4: Etage | E4: N°Cop | F4: Copopriétaires | G4: Locataires | H4: Ch.Géné | I4: Ch.Bât, | J4: Escal.A | K4: Escal.B | L4: WC Com | N4: 2017 | P4: =IF(GESTION!$J$1=1,GESTION!$D$5,"") -> 01//12/17 | Q4: Ch.Géné | R4: Ch.Bât, | S4: Escal.A | T4: Escal.B | U4: WC Com | V4: =IF(GESTION!$J$1=1,GESTION!$D$5,"") -> 01//12/17 | W4: A FINANCER | X4: FONDS | Y4: Utilisation | Z4: Reste | AB4: LOTS | AE4: 1 | AF4: 2015 | AG4: 2016 | AH4: 2017
A5: 2 | B5: Pavillon | D5: RDC | E5: 450.008 | F5: =IF(E5<>"",VLOOKUP(E5,Copropriétaires!$A$6:$L$25,2),"") -> MARTIAL | H5: 300 | N5: 17 | P5: =ROUND($P$3*H5/$H$36,2) -> 0 | Q5: =IF(H5>0,ROUND($Q$2*H5/10000,2),0) -> 180 | R5: =IF(I5>0,ROUND($R$2*I5/1000,2),0) -> 0 | S5: =IF(J5>0,ROUND($S$2*J5/1000,2),0) -> 0 | T5: =IF(K5>0,ROUND($T$2*K5/1000,2),0) -> 0 | U5: =IF(L5>0,ROUND($U$2*L5/1000,2),0) -> 0 | V5: =IF($H5>0,ROUND($V$2*$H5/10000,2),0) -> 0 | W5: =SUM(Q5:V5)*(SUM(Q5:V5)>0) -> 180 | X5: =VLOOKUP(A5,FdsTravLots!$A$4:$C$35,3,0) -> 141 | Y5: =IF(ROUND(W5*$Y$2,2),-X5,ROUND(W5*$Y$2,2)) -> -141 | Z5: =X5+Y5 -> 0 | AB5: =A5 -> 2 | AC5: =F5 -> MARTIAL | AF5: 31 | AG5: 16 | AH5: 17
A6: 11 | B6: Cave N° 1 | C6: 1,A | D6: SS | E6: 450.006 | F6: =IF(E6<>"",VLOOKUP(E6,Copropriétaires!$A$6:$L$25,2),"") -> HUBERT | H6: 70 | I6: 8 | J6: 127 | P6: =ROUND($P$3*H6/$H$36,2) -> 0 | Q6: 42 | R6: 0 | S6: 0 | T6: 0 | U6: 0 | V6: =IF($H6>0,ROUND($V$2*$H6/10000,2),0) -> 0 | W6: =SUM(Q6:V6)*(SUM(Q6:V6)>0) -> 42 | X6: =VLOOKUP(A6,FdsTravLots!$A$4:$C$35,3,0) -> 32.9 | Y6: =IF(ROUND(W6*$Y$2,2),-X6,ROUND(W6*$Y$2,2)) -> -32.9 | Z6: 0 | AB6: 11 | AC6: =F6 -> HUBERT
A7: 12 | B7: Cave N° 2 | C7: 1,A | D7: SS | E7: 450.005 | F7: =IF(E7<>"",VLOOKUP(E7,Copropriétaires!$A$6:$L$25,2),"") -> FONTAINE | H7: 40 | I7: 5 | J7: 79 | P7: 0 | Q7: 24 | R7: 0 | S7: 0 | T7: 0 | U7: 0 | V7: 0 | W7: 24 | X7: =VLOOKUP(A7,FdsTravLots!$A$4:$C$35,3,0) -> 18.8 | Y7: -18.8 | Z7: 0 | AB7: 12 | AC7: FONTAINE
A8: 13 | B8: Cave N° 3 | C8: 1,A | D8: SS | E8: 450.003 | F8: =IF(E8<>"",VLOOKUP(E8,Copropriétaires!$A$6:$L$25,2),"") -> DUBOIS | H8: 230 | I8: 27 | J8: 429 | P8: 0 | Q8: 138 | R8: 0 | S8: 0 | T8: 0 | U8: 0 | V8: 0 | W8: 138 | X8: =VLOOKUP(A8,FdsTravLots!$A$4:$C$35,3,0) -> 108.1 | Y8: -108.1 | Z8: 0 | AB8: 13 | AC8: DUBOIS
A9: 14 | B9: Cave N° 4 | C9: 1,A | D9: SS | E9: 450.009 | F9: =IF(E9<>"",VLOOKUP(E9,Copropriétaires!$A$6:$L$25,2),"") -> PONTEL | H9: 30 | I9: 4 | J9: 64 | P9: 0 | Q9: 18 | R9: 0 | S9: 0 | T9: 0 | U9: 0 | V9: 0 | W9: 18 | X9: =VLOOKUP(A9,FdsTravLots!$A$4:$C$35,3,0) -> 14.1 | Y9: -14.1 | Z9: 0 | AB9: 14 | AC9: PONTEL
A10: 15 | B10: Cave N° 5 | C10: 1,A | D10: SS | E10: 450.007 | F10: =IF(E10<>"",VLOOKUP(E10,Copropriétaires!$A$6:$L$25,2),"") -> LONGUET | H10: 80 | I10: 9 | J10: 143 | P10: 0 | Q10: 48 | R10: 0 | S10: 0 | T10: 0 | U10: 0 | V10: 0 | W10: 48 | X10: =VLOOKUP(A10,FdsTravLots!$A$4:$C$35,3,0) -> 37.6 | Y10: -37.6 | Z10: 0 | AB10: 15 | AC10: LONGUET
A11: 16 | B11: Cave N° 6 | C11: 1,A | D11: SS | E11: 450.001 | F11: =IF(E11<>"",VLOOKUP(E11,Copropriétaires!$A$6:$L$25,2),"") -> AUBERT | H11: 40 | I11: 5 | J11: 79 | P11: 0 | Q11: 24 | R11: 0 | S11: 0 | T11: 0 | U11: 0 | V11: 0 | W11: 24 | X11: =VLOOKUP(A11,FdsTravLots!$A$4:$C$35,3,0) -> 18.8 | Y11: -18.8 | Z11: 0 | AB11: 16 | AC11: AUBERT
A12: 17 | B12: Cave N° 7 | C12: 1,A | D12: SS | E12: 450.005 | F12: =IF(E12<>"",VLOOKUP(E12,Copropriétaires!$A$6:$L$25,2),"") -> FONTAINE | H12: 40 | I12: 5 | J12: 79 | P12: 0 | Q12: 24 | R12: 0 | S12: 0 | T12: 0 | U12: 0 | V12: 0 | W12: 24 | X12: =VLOOKUP(A12,FdsTravLots!$A$4:$C$35,3,0) -> 18.8 | Y12: -18.8 | Z12: 0 | AB12: 17 | AC12: FONTAINE
A13: 18 | B13: W.C. | C13: 1 | D13: RDC | E13: 450.003 | F13: =IF(E13<>"",VLOOKUP(E13,Copropriétaires!$A$6:$L$25,2),"") -> DUBOIS | H13: 30 | I13: 4 | P13: 0 | Q13: 18 | R13: 0 | S13: 0 | T13: 0 | U13: 0 | V13: 0 | W13: 18 | X13: =VLOOKUP(A13,FdsTravLots!$A$4:$C$35,3,0) -> 14.1 | Y13: -14.1 | Z13: 0 | AB13: 18 | AC13: DUBOIS
A14: 19 | B14: Commerce | C14: 1 | D14: RDC | E14: 450.003 | F14: =IF(E14<>"",VLOOKUP(E14,Copropriétaires!$A$6:$L$25,2),"") -> DUBOIS | H14: 910 | I14: 107 | P14: 0 | Q14: 546 | R14: 0 | S14: 0 | T14: 0 | U14: 0 | V14: 0 | W14: 546 | X14: =VLOOKUP(A14,FdsTravLots!$A$4:$C$35,3,0) -> 427.7 | Y14: -427.7 | Z14: 0 | AB14: 19 | AC14: DUBOIS
A15: 21 | B15: Appartement | C15: 1,B | D15: 1er | E15: 450.005 | F15: =IF(E15<>"",VLOOKUP(E15,Copropriétaires!$A$6:$L$25,2),"") -> FONTAINE | G15: Dupont | H15: 760 | I15: 89 | K15: 124 | L15: 401 | N15: 107 | P15: 0 | Q15: 456 | R15: 0 | S15: 0 | T15: 0 | U15: 0 | V15: 0 | W15: 456 | X15: =VLOOKUP(A15,FdsTravLots!$A$4:$C$35,3,0) -> 357.2 | Y15: -357.2 | Z15: 0 | AB15: 21 | AC15: FONTAINE | AF15: 82 | AG15: 105 | AH15: 107
A16: 22 | B16: Pièce | C16: 1,B | D16: 1er | E16: 450.009 | F16: =IF(E16<>"",VLOOKUP(E16,Copropriétaires!$A$6:$L$25,2),"") -> PONTEL | G16: Martial | H16: 350 | I16: 41 | K16: 57 | L16: 185 | N16: 47 | P16: 0 | Q16: 210 | R16: 0 | S16: 0 | T16: 0 | U16: 0 | V16: 0 | W16: 210 | X16: =VLOOKUP(A16,FdsTravLots!$A$4:$C$35,3,0) -> 164.5 | Y16: -164.5 | Z16: 0 | AB16: 22 | AC16: PONTEL | AF16: 44 | AG16: 44 | AH16: 47
A17: 23 | B17: Appartement | C17: 1,B | D17: 1er | E17: 450.003 | F17: =IF(E17<>"",VLOOKUP(E17,Copropriétaires!$A$6:$L$25,2),"") -> DUBOIS | H17: 780 | I17: 92 | K17: 128 | L17: 414 | P17: 0 | Q17: 468 | R17: 0 | S17: 0 | T17: 0 | U17: 0 | V17: 0 | W17: 468 | X17: =VLOOKUP(A17,FdsTravLots!$A$4:$C$35,3,0) -> 366.6 | Y17: -366.6 | Z17: 0 | AB17: 23 | AC17: DUBOIS
A18: 24 | B18: W.C. | C18: 1,B | D18: 2e | E18: 450.005 | F18: =IF(E18<>"",VLOOKUP(E18,Copropriétaires!$A$6:$L$25,2),"") -> FONTAINE | H18: 30 | I18: 4 | K18: 5 | P18: 0 | Q18: 18 | R18: 0 | S18: 0 | T18: 0 | U18: 0 | V18: 0 | W18: 18 | X18: =VLOOKUP(A18,FdsTravLots!$A$4:$C$35,3,0) -> 14.1 | Y18: -14.1 | Z18: 0 | AB18: 24 | AC18: FONTAINE
A19: 25 | B19: Appartement | C19: 1,B | D19: 2e | E19: 450.001 | F19: =IF(E19<>"",VLOOKUP(E19,Copropriétaires!$A$6:$L$25,2),"") -> AUBERT | H19: 780 | I19: 92 | K19: 134 | N19: 117 | P19: 0 | Q19: 468 | R19: 0 | S19: 0 | T19: 0 | U19: 0 | V19: 0 | W19: 468 | X19: =VLOOKUP(A19,FdsTravLots!$A$4:$C$35,3,0) -> 366.6 | Y19: -366.6 | Z19: 0 | AB19: 25 | AC19: AUBERT | AF19: 61 | AG19: 114 | AH19: 117
A20: 26 | B20: Pièce | C20: 1,B | D20: 2e | E20: 450.001 | F20: =IF(E20<>"",VLOOKUP(E20,Copropriétaires!$A$6:$L$25,2),"") -> AUBERT | H20: 350 | I20: 41 | K20: 60 | P20: 0 | Q20: 210 | R20: 0 | S20: 0 | T20: 0 | U20: 0 | V20: 0 | W20: 210 | X20: =VLOOKUP(A20,FdsTravLots!$A$4:$C$35,3,0) -> 164.5 | Y20: -164.5 | Z20: 0 | AB20: 26 | AC20: AUBERT
A21: 27 | B21: Appartement | C21: 1,B | D21: 2e | E21: 450.005 | F21: =IF(E21<>"",VLOOKUP(E21,Copropriétaires!$A$6:$L$25,2),"") -> FONTAINE | H21: 810 | I21: 95 | K21: 139 | N21: 107 | P21: 0 | Q21: 486 | R21: 0 | S21: 0 | T21: 0 | U21: 0 | V21: 0 | W21: 486 | X21: =VLOOKUP(A21,FdsTravLots!$A$4:$C$35,3,0) -> 380.7 | Y21: -380.7 | Z21: 0 | AB21: 27 | AC21: FONTAINE | AF21: 39 | AG21: 100 | AH21: 107
A22: 28 | B22: Appartement | C22: 1,B | D22: 3e | E22: 450.006 | F22: =IF(E22<>"",VLOOKUP(E22,Copropriétaires!$A$6:$L$25,2),"") -> HUBERT | H22: 2260 | I22: 265 | K22: 353 | N22: 77 | P22: 0 | Q22: 1356 | R22: 0 | S22: 0 | T22: 0 | U22: 0 | V22: 0 | W22: 1356 | X22: =VLOOKUP(A22,FdsTravLots!$A$4:$C$35,3,0) -> 1062.2 | Y22: -1062.2 | Z22: 0 | AB22: 28 | AC22: HUBERT | AF22: 71 | AG22: 74 | AH22: 77
A23: 29 | B23: Commerce | C23: 1 | D23: RDC -G | E23: 450.007 | F23: =IF(E23<>"",VLOOKUP(E23,Copropriétaires!$A$6:$L$25,2),"") -> LONGUET | H23: 480 | I23: 56 | N23: 107 | P23: 0 | Q23: 288 | R23: 0 | S23: 0 | T23: 0 | U23: 0 | V23: 0 | W23: 288 | X23: =VLOOKUP(A23,FdsTravLots!$A$4:$C$35,3,0) -> 225.6 | Y23: -225.6 | Z23: 0 | AB23: 29 | AC23: LONGUET | AF23: 103 | AG23: 103 | AH23: 107
A24: 30 | B24: Commerce | C24: 1 | D24: RDC-G | E24: 450.007 | F24: =IF(E24<>"",VLOOKUP(E24,Copropriétaires!$A$6:$L$25,2),"") -> LONGUET | G24: Cantin | H24: 430 | I24: 51 | N24: 67 | P24: 0 | Q24: 258 | R24: 0 | S24: 0 | T24: 0 | U24: 0 | V24: 0 | W24: 258 | X24: =VLOOKUP(A24,FdsTravLots!$A$4:$C$35,3,0) -> 202.1 | Y24: -202.1 | Z24: 0 | AB24: 30 | AC24: LONGUET | AF24: 67 | AG24: 67 | AH24: 67
A25: 41 | B25: Maison | C25: A | D25: RDC | E25: 450.002 | F25: =IF(E25<>"",VLOOKUP(E25,Copropriétaires!$A$6:$L$25,2),"") -> CARDIN | H25: 940 | N25: 114 | P25: 0 | Q25: 564 | R25: 0 | S25: 0 | T25: 0 | U25: 0 | V25: 0 | W25: 564 | X25: =VLOOKUP(A25,FdsTravLots!$A$4:$C$35,3,0) -> 441.8 | Y25: -441.8 | Z25: 0 | AB25: 41 | AC25: CARDIN | AF25: 117 | AG25: 117 | AH25: 114
A26: 42 | B26: Remises -Auvent | C26: B | D26: RDC | E26: 450.002 | F26: =IF(E26<>"",VLOOKUP(E26,Copropriétaires!$A$6:$L$25,2),"") -> CARDIN | H26: 100 | P26: 0 | Q26: 60 | R26: 0 | S26: 0 | T26: 0 | U26: 0 | V26: 0 | W26: 60 | X26: =VLOOKUP(A26,FdsTravLots!$A$4:$C$35,3,0) -> 47 | Y26: -47 | Z26: 0 | AB26: 42 | AC26: CARDIN
A27: 43 | B27: Remise | C27: C | D27: RDC | E27: 450.002 | F27: =IF(E27<>"",VLOOKUP(E27,Copropriétaires!$A$6:$L$25,2),"") -> CARDIN | H27: 20 | P27: 0 | Q27: 12 | R27: 0 | S27: 0 | T27: 0 | U27: 0 | V27: 0 | W27: 12 | X27: =VLOOKUP(A27,FdsTravLots!$A$4:$C$35,3,0) -> 9.4 | Y27: -9.4 | Z27: 0 | AB27: 43 | AC27: CARDIN
A28: 103 | B28: Jardin privatrif | E28: 450.002 | F28: =IF(E28<>"",VLOOKUP(E28,Copropriétaires!$A$6:$L$25,2),"") -> CARDIN | H28: 129 | P28: 0 | Q28: 77.4 | R28: 0 | S28: 0 | T28: 0 | U28: 0 | V28: 0 | W28: 77.4 | X28: =VLOOKUP(A28,FdsTravLots!$A$4:$C$35,3,0) -> 60.63 | Y28: -60.63 | Z28: 0 | AB28: 103 | AC28: CARDIN
A29: 104 | B29: Cour privative | E29: 450.008 | F29: =IF(E29<>"",VLOOKUP(E29,Copropriétaires!$A$6:$L$25,2),"") -> MARTIAL | H29: 1 | P29: 0 | Q29: 0.6 | R29: 0 | S29: 0 | T29: 0 | U29: 0 | V29: 0 | W29: 0.6 | X29: =VLOOKUP(A29,FdsTravLots!$A$4:$C$35,3,0) -> 0.47 | Y29: -0.47 | Z29: 0 | AB29: 104 | AC29: MARTIAL
A30: 105 | B30: Cour privative | E30: 450.008 | F30: =IF(E30<>"",VLOOKUP(E30,Copropriétaires!$A$6:$L$25,2),"") -> MARTIAL | H30: 9 | P30: 0 | Q30: 5.4 | R30: 0 | S30: 0 | T30: 0 | U30: 0 | V30: 0 | W30: 5.4 | X30: =VLOOKUP(A30,FdsTravLots!$A$4:$C$35,3,0) -> 4.23 | Y30: -4.23 | Z30: 0 | AB30: 105 | AC30: MARTIAL
A31: 106 | B31: Cour privative | E31: 450.008 | F31: =IF(E31<>"",VLOOKUP(E31,Copropriétaires!$A$6:$L$25,2),"") -> MARTIAL | H31: 1 | P31: 0 | Q31: 0.6 | R31: 0 | S31: 0 | T31: 0 | U31: 0 | V31: 0 | W31: 0.6 | X31: =VLOOKUP(A31,FdsTravLots!$A$4:$C$35,3,0) -> 0.47 | Y31: -0.47 | Z31: 0 | AB31: 106 | AC31: MARTIAL
P32: 0 | Q32: 0 | R32: 0 | S32: 0 | T32: 0 | U32: 0 | V32: 0 | W32: 0 | X32: =VLOOKUP(A32,FdsTravLots!$A$4:$C$35,3,0) -> 0 | Y32: 0 | Z32: 0
P33: 0 | Q33: 0 | R33: 0 | S33: 0 | T33: 0 | U33: 0 | V33: 0 | W33: 0 | X33: =VLOOKUP(A33,FdsTravLots!$A$4:$C$35,3,0) -> 0 | Y33: 0 | Z33: 0
F34: =IF(E34<>"",VLOOKUP(E34,Copropriétaires!$A$6:$L$25,2),"") ->  | P34: 0 | V34: 0 | W34: 0 | X34: =VLOOKUP(A34,FdsTravLots!$A$4:$C$35,3,0) -> 0 | Y34: 0
F35: =IF(E35<>"",VLOOKUP(E35,Copropriétaires!$A$6:$L$25,2),"") ->  | P35: 0 | V35: 0 | W35: 0 | X35: =VLOOKUP(A35,FdsTravLots!$A$4:$C$35,3,0) -> 0 | Y35: 0
A36: 99 | F36: =IF(E36<>"",VLOOKUP(E36,Copropriétaires!$A$6:$L$25,2),"") ->  | H36: =SUM(H5:H35) -> 10000 | I36: =SUM(I5:I35) -> 1000 | J36: 1000 | K36: 1000 | L36: 1000 | M36: 1 | N36: 760 | O36: 0 | P36: 0 | Q36: 6000 | R36: 0 | S36: 0 | T36: 0 | U36: 0 | V36: 0 | W36: 6000 | X36: 4700 | Y36: -4700 | Z36: 0 | AD36: =SUM(AD5:AD35) -> 0 | AE36: 0 | AF36: =SUM(AF5:AF35) -> 615 | AG36: =SUM(AG5:AG35) -> 740 | AH36: =SUM(AH5:AH35) -> 760
V37: Util.Av.Trav. | W37: Reste | X37: Fonds | Y37: Utilisations | Z37: Reste
W38: A financer | X38: Travaux | Y38: Fds Travaux | Z38: Fds Travaux

Sheet FdsTravLots
B2: 7 | D2: Utilisation | E2: 5 | F2: 6 | G2: 7 | H2: 8 | I2: 9 | J2: 10 | K2: 11 | L2: 12 | M2: 13 | N2: 14 | O2: 15 | P2: 16 | Q2: 17 | R2: 18 | S2: 19 | T2: 20 | U2: 21 | V2: 22 | W2: 23 | X2: 24 | Y2: 25 | Z2: 26
A3: N°Lot | B3: Désignation | C3: FONDS TRAV | D3: Utilisation | F3: 2007-01-10
A4: =Tant.Lots.Fds!A5 -> 2 | B4: =Tant.Lots.Fds!B5 -> Pavillon | C4: =SUM(E4:Z4) -> 141 | D4: -141 | E4: 96 | F4: 15 | H4: 15 | I4: 15
A5: =Tant.Lots.Fds!A6 -> 11 | B5: =Tant.Lots.Fds!B6 -> Cave N° 1 | C5: 32.9 | D5: -32.9 | E5: 22.4 | F5: 3.5 | H5: 3.5 | I5: 3.5
A6: =Tant.Lots.Fds!A7 -> 12 | B6: =Tant.Lots.Fds!B7 -> Cave N° 2 | C6: 18.8 | D6: -18.8 | E6: 12.8 | F6: 2 | H6: 2 | I6: 2
A7: =Tant.Lots.Fds!A8 -> 13 | B7: =Tant.Lots.Fds!B8 -> Cave N° 3 | C7: 108.1 | D7: -108.1 | E7: 73.6 | F7: 11.5 | H7: 11.5 | I7: 11.5
A8: =Tant.Lots.Fds!A9 -> 14 | B8: =Tant.Lots.Fds!B9 -> Cave N° 4 | C8: 14.1 | D8: -14.1 | E8: 9.6 | F8: 1.5 | H8: 1.5 | I8: 1.5
A9: =Tant.Lots.Fds!A10 -> 15 | B9: =Tant.Lots.Fds!B10 -> Cave N° 5 | C9: 37.6 | D9: -37.6 | E9: 25.6 | F9: 4 | H9: 4 | I9: 4
A10: =Tant.Lots.Fds!A11 -> 16 | B10: =Tant.Lots.Fds!B11 -> Cave N° 6 | C10: 18.8 | D10: -18.8 | E10: 12.8 | F10: 2 | H10: 2 | I10: 2
A11: =Tant.Lots.Fds!A12 -> 17 | B11: =Tant.Lots.Fds!B12 -> Cave N° 7 | C11: 18.8 | D11: -18.8 | E11: 12.8 | F11: 2 | H11: 2 | I11: 2
A12: =Tant.Lots.Fds!A13 -> 18 | B12: =Tant.Lots.Fds!B13 -> W.C. | C12: 14.1 | D12: -14.1 | E12: 9.6 | F12: 1.5 | H12: 1.5 | I12: 1.5
A13: =Tant.Lots.Fds!A14 -> 19 | B13: =Tant.Lots.Fds!B14 -> Commerce | C13: 427.7 | D13: -427.7 | E13: 291.2 | F13: 45.5 | H13: 45.5 | I13: 45.5
A14: =Tant.Lots.Fds!A15 -> 21 | B14: =Tant.Lots.Fds!B15 -> Appartement | C14: 357.2 | D14: -357.2 | E14: 243.2 | F14: 38 | H14: 38 | I14: 38
A15: =Tant.Lots.Fds!A16 -> 22 | B15: =Tant.Lots.Fds!B16 -> Pièce | C15: 164.5 | D15: -164.5 | E15: 112 | F15: 17.5 | H15: 17.5 | I15: 17.5
A16: =Tant.Lots.Fds!A17 -> 23 | B16: =Tant.Lots.Fds!B17 -> Appartement | C16: 366.6 | D16: -366.6 | E16: 249.6 | F16: 39 | H16: 39 | I16: 39
A17: =Tant.Lots.Fds!A18 -> 24 | B17: =Tant.Lots.Fds!B18 -> W.C. | C17: 14.1 | D17: -14.1 | E17: 9.6 | F17: 1.5 | H17: 1.5 | I17: 1.5
A18: =Tant.Lots.Fds!A19 -> 25 | B18: =Tant.Lots.Fds!B19 -> Appartement | C18: 366.6 | D18: -366.6 | E18: 249.6 | F18: 39 | H18: 39 | I18: 39
A19: =Tant.Lots.Fds!A20 -> 26 | B19: =Tant.Lots.Fds!B20 -> Pièce | C19: 164.5 | D19: -164.5 | E19: 112 | F19: 17.5 | H19: 17.5 | I19: 17.5
A20: =Tant.Lots.Fds!A21 -> 27 | B20: =Tant.Lots.Fds!B21 -> Appartement | C20: 380.7 | D20: -380.7 | E20: 259.2 | F20: 40.5 | H20: 40.5 | I20: 40.5
A21: =Tant.Lots.Fds!A22 -> 28 | B21: =Tant.Lots.Fds!B22 -> Appartement | C21: 1062.2 | D21: -1062.2 | E21: 723.2 | F21: 113 | H21: 113 | I21: 113
A22: =Tant.Lots.Fds!A23 -> 29 | B22: =Tant.Lots.Fds!B23 -> Commerce | C22: 225.6 | D22: -225.6 | E22: 153.6 | F22: 24 | H22: 24 | I22: 24
A23: =Tant.Lots.Fds!A24 -> 30 | B23: =Tant.Lots.Fds!B24 -> Commerce | C23: 202.1 | D23: -202.1 | E23: 137.6 | F23: 21.5 | H23: 21.5 | I23: 21.5
A24: =Tant.Lots.Fds!A25 -> 41 | B24: =Tant.Lots.Fds!B25 -> Maison | C24: 441.8 | D24: -441.8 | E24: 300.8 | F24: 47 | H24: 47 | I24: 47
A25: =Tant.Lots.Fds!A26 -> 42 | B25: =Tant.Lots.Fds!B26 -> Remises -Auvent | C25: 47 | D25: -47 | E25: 32 | F25: 5 | H25: 5 | I25: 5
A26: =Tant.Lots.Fds!A27 -> 43 | B26: =Tant.Lots.Fds!B27 -> Remise | C26: 9.4 | D26: -9.4 | E26: 6.4 | F26: 1 | H26: 1 | I26: 1
A27: =Tant.Lots.Fds!A28 -> 103 | B27: =Tant.Lots.Fds!B28 -> Jardin privatrif | C27: 60.63 | D27: -60.63 | E27: 41.28 | F27: 6.45 | H27: 6.45 | I27: 6.45
A28: =Tant.Lots.Fds!A29 -> 104 | B28: =Tant.Lots.Fds!B29 -> Cour privative | C28: 0.47 | D28: -0.47 | E28: 0.32 | F28: 0.05 | H28: 0.05 | I28: 0.05
A29: =Tant.Lots.Fds!A30 -> 105 | B29: =Tant.Lots.Fds!B30 -> Cour privative | C29: 4.23 | D29: -4.23 | E29: 2.88 | F29: 0.45 | H29: 0.45 | I29: 0.45
A30: =Tant.Lots.Fds!A31 -> 106 | B30: =Tant.Lots.Fds!B31 -> Cour privative | C30: 0.47 | D30: -0.47 | E30: 0.32 | F30: 0.05 | H30: 0.05 | I30: 0.05
A31: =Tant.Lots.Fds!A32 -> 0 | B31: =Tant.Lots.Fds!B32 -> 0 | C31: 0 | D31: 0 | E31: 0 | F31: 0 | H31: 0 | I31: 0
A32: =Tant.Lots.Fds!A33 -> 0 | B32: =Tant.Lots.Fds!B33 -> 0 | C32: 0 | D32: 0 | E32: 0 | F32: 0 | H32: 0 | I32: 0
A33: =Tant.Lots.Fds!A34 -> 0 | B33: =Tant.Lots.Fds!B34 -> 0 | C33: 0 | D33: 0 | E33: 0 | F33: 0 | H33: 0 | I33: 0
A34: =Tant.Lots.Fds!A35 -> 0 | B34: =Tant.Lots.Fds!B35 -> 0 | C34: 0 | D34: 0 | E34: 0 | F34: 0 | H34: 0 | I34: 0
C35: 0 | D35: 0 | E35: 0 | F35: 0 | H35: 0 | I35: 0
A36: 99 | C36: =SUM(C4:C35) -> 4700 | D36: -4700 | E36: =SUM(E4:E35) -> 3200 | F36: =SUM(F4:F35) -> 500 | G36: 0 | H36: 500 | I36: 500 | J36: 0 | K36: 0 | L36: 0 | M36: 0 | N36: 0 | O36: 0 | P36: 0 | Q36: 0 | R36: 0 | S36: 0 | T36: 0 | U36: 0 | V36: 0 | W36: 0 | X36: 0 | Y36: 0 | Z36: 0

Sheet Vérif
A1: =GESTION!A1 -> Syndicat des Copropriétaires | D1: Exercice du | E1: =GESTION!E1 -> 1er janvier | F1: =GESTION!F1 -> 2017
A2: =GESTION!A2 -> 27 rue de PARIS | D2: Au | E2: =GESTION!E2 -> 31 décembre. | F2: =GESTION!F2 -> 2017
A3: =GESTION!A3 -> 08200 LETROU
I6: Opération : | T6: Opération
I7: =GESTION!$G$4 -> 20 | J7: =GESTION!$H$4 -> 1er Appel Travaux | T7: =GESTION!$G$4 -> 20 | U7: =GESTION!$H$4 -> 1er Appel Travaux
B9: CLE | C9: Designation | E9: Tantièmes | G9: Réparti | I9: Code | J9: Copropriétaires | K9: Appels Ch.Ctes | L9: =IF(GESTION!$K$1=1,"Appel Fonds Travaux","Remb,Avance Travaux") -> Remb,Avance Travaux | M9: Av.Trésorerie | N9: Provisions | O9: Finan,Travaux | P9: SOLDES | Q9: Relevés Déb. | R9: Relevés Cred, | S9: Soldes | U9: T.V.A.
B10: 1 | C10: Charges Générales | E10: =SUM(AUBERT:PONTEL!$E$90) -> 10000 | G10: =SUM(AUBERT:PONTEL!$G$90) -> 6000 | I10: =Copropriétaires!A6 -> 450.001 | J10: =Copropriétaires!B6 -> AUBERT | K10: =AUBERT!$G$98 -> 702 | L10: =AUBERT!$G$99 -> 0 | M10: =AUBERT!$G$100 -> 0 | N10: =AUBERT!$G$38 -> 0 | O10: =AUBERT!$G$103 -> -549.9 | P10: =K10+L10+M10+N10+O10 -> 152.1 | Q10: =AUBERT!$F$49 -> 0 | R10: =AUBERT!$G$49 -> 0 | S10: =P10+Q10-R10 -> 152.1 | U10: =AUBERT!$L$37 -> 0
B11: 2 | C11: Ch.Bâtiment | E11: =SUM(AUBERT:PONTEL!$E$91) -> 1000 | G11: =SUM(AUBERT:PONTEL!$G$91) -> 0 | I11: =Copropriétaires!A7 -> 450.002 | J11: =Copropriétaires!B7 -> CARDIN | K11: =CARDON!$G$98 -> 713.4 | L11: =CARDON!$G$99 -> 0 | M11: =CARDON!$G$100 -> 0 | N11: =CARDON!$G$38 -> 0 | O11: =CARDON!$G$103 -> -558.83 | P11: =K11+L11+M11+N11+O11 -> 154.57 | Q11: =CARDON!$F$49 -> 0 | R11: =CARDON!$G$49 -> 0 | S11: =P11+Q11-R11 -> 154.57 | U11: =CARDON!$L$37 -> 0
B12: 3 | C12: Ch.Escal.A | E12: =SUM(AUBERT:PONTEL!$E$92) -> 1000 | G12: =SUM(AUBERT:PONTEL!$G$92) -> 0 | I12: =Copropriétaires!A8 -> 450.003 | J12: =Copropriétaires!B8 -> DUBOIS | K12: =DUBOIS!$G$98 -> 1170 | L12: =DUBOIS!$G$99 -> 0 | M12: =DUBOIS!$G$100 -> 0 | N12: =DUBOIS!$G$38 -> 0 | O12: =DUBOIS!$G$103 -> -916.5 | P12: 253.5 | Q12: =DUBOIS!$F$49 -> 0 | R12: =DUBOIS!$G$49 -> 0 | S12: 253.5 | U12: =DUBOIS!$L$37 -> 0
B13: 4 | C13: Ch,Escal.B | E13: =SUM(AUBERT:PONTEL!$E$93) -> 1000 | G13: =SUM(AUBERT:PONTEL!$G$93) -> 0 | I13: =Copropriétaires!A9 -> 450.005 | J13: =Copropriétaires!B9 -> FONTAINE | K13: =FONTAINE!$G$98 -> 1008 | L13: =FONTAINE!$G$99 -> 0 | M13: =FONTAINE!$G$100 -> 0 | N13: =FONTAINE!$G$68 -> 0 | O13: =FONTAINE!$G$103 -> -789.6 | P13: =K13+L13+M13+N13+O13 -> 218.4 | Q13: =FONTAINE!$F$79 -> 0 | R13: =FONTAINE!$G$79 -> 0 | S13: =P13+Q13-R13 -> 218.4 | U13: =FONTAINE!$L$67 -> 0
B14: 5 | C14: WC Commun | E14: =SUM(AUBERT:PONTEL!$E$94) -> 1000 | G14: =SUM(AUBERT:PONTEL!$G$94) -> 0 | I14: =Copropriétaires!A10 -> 450.006 | J14: =Copropriétaires!B10 -> HUBERT | K14: =HUBERT!$G$98 -> 1398 | L14: =HUBERT!$G$99 -> 0 | M14: =HUBERT!$G$100 -> 0 | N14: =HUBERT!$G$38 -> 0 | O14: =HUBERT!$G$103 -> -1095.1 | P14: =K14+L14+M14+N14+O14 -> 302.9 | Q14: =HUBERT!$F$49 -> 0 | R14: =HUBERT!$G$49 -> 0 | S14: =P14+Q14-R14 -> 302.9 | U14: =HUBERT!$L$37 -> 0
B15: 6 | C15: Prov.Eau | E15: =SUM(AUBERT:PONTEL!$E$95) -> 0 | G15: =SUM(AUBERT:PONTEL!$G$95) -> 0 | I15: =Copropriétaires!A11 -> 450.007 | J15: =Copropriétaires!B11 -> LONGUET | K15: =LONGUET!$G$98 -> 594 | L15: =LONGUET!$G$99 -> 0 | M15: =LONGUET!$G$100 -> 0 | N15: =LONGUET!$G$38 -> 0 | O15: =LONGUET!$G$103 -> -465.3 | P15: =K15+L15+M15+N15+O15 -> 128.7 | Q15: =LONGUET!$F$49 -> 0 | R15: =LONGUET!$G$49 -> 0 | S15: =P15+Q15-R15 -> 128.7 | U15: =LONGUET!$L$37 -> 0
B16: 7 | C16: EAU Individuelle | E16: =SUM(AUBERT:PONTEL!$E$96) -> 0 | G16: =SUM(AUBERT:PONTEL!$G$96) -> 0 | I16: =Copropriétaires!A12 -> 450.008 | J16: =Copropriétaires!B12 -> MARTIAL | K16: =MARTIAL!G98 -> 186.6 | L16: =MARTIAL!G99 -> 0 | M16: =MARTIAL!G100 -> 0 | N16: =MARTIAL!G38 -> 0 | O16: =MARTIAL!G103 -> -146.17 | P16: =K16+L16+M16+N16+O16 -> 40.43 | Q16: =MARTIAL!F49 -> 0 | R16: =MARTIAL!G49 -> 0 | S16: =P16+Q16-R16 -> 40.43 | U16: =MARTIAL!$L$37 -> 0
B17: 8 | C17: Eau Commune | E17: =SUM(AUBERT:PONTEL!$E$97) -> 0 | G17: =SUM(AUBERT:PONTEL!$G$97) -> 0 | I17: =Copropriétaires!A13 -> 450.009 | J17: =Copropriétaires!B13 -> PONTEL | K17: =PONTEL!$G$98 -> 228 | L17: =PONTEL!$G$99 -> 0 | M17: =PONTEL!$G$100 -> 0 | N17: =PONTEL!$G$38 -> 0 | O17: =PONTEL!$G$103 -> -178.6 | P17: 49.4 | Q17: =PONTEL!$F$49 -> 0 | R17: =PONTEL!$G$49 -> 0 | S17: 49.4
G18: =SUM(AUBERT:PONTEL!$G$98) -> 6000 | I18: 450.011 | J18: =Copropriétaires!B14 -> xxx | K18: =xxx!$G$98 -> 0 | L18: =xxx!$G$99 -> 0 | M18: =xxx!$G$100 -> 0 | N18: =xxx!$G$38 -> 0 | O18: =xxx!$G$103 -> 0 | P18: =K18+L18+M18+N18+O18 -> 0 | Q18: =xxx!$F$49 -> 0 | R18: =xxx!$G$49 -> 0 | S18: =P18+Q18-R18 -> 0
B19: 11 | C19: =IF(GESTION!$K$1=1,"Appel Fonds Travaux","Remb,Avance Travaux") -> Remb,Avance Travaux | E19: =SUM(AUBERT:PONTEL!$E$99) -> 10000 | G19: =SUM(AUBERT:PONTEL!$G$99) -> 0 | P19: 0 | S19: 0
B20: 12 | C20: Avance Trésorerie | G20: =SUM(AUBERT:PONTEL!$G$100) -> 0 | S20: 0
G21: =G18+G19+G20 -> 6000 | K21: =SUM(K10:K20) -> 6000 | L21: =SUM(L10:L20) -> 0 | M21: =SUM(M10:M20) -> 0 | N21: 0 | O21: -4700 | P21: 1300 | Q21: 0 | R21: 0 | S21: 1300 | U21: =SUM(U10:U20) -> 0
C23: Financement travaux | G23: =SUM(AUBERT:PONTEL!G103) -> -4700
L71: =IF(M53-N53=K69-L69,"","ERREUR") -> 

Sheet AUBERT
A1: =GESTION!A1 -> Syndicat des Copropriétaires
A2: =GESTION!A2 -> 27 rue de PARIS | G2: =Copropriétaires!$A$6 -> 450.001 | H2: =VLOOKUP($G$2,Copropriétaires!$A$6:'Copropriétaires'!$L$25,3,FALSE) -> Mr AUBERT J.Paul
A3: =GESTION!A3 -> 08200 LETROU | H3: =VLOOKUP($G$2,Copropriétaires!$A$6:'Copropriétaires'!$L$25,7,FALSE) -> 27 rue de Paris
H4: =VLOOKUP($G$2,Copropriétaires!$A$6:'Copropriétaires'!$L$25,10,FALSE) -> 08200 LETROU
D5: Date d'avis: | E5: =GESTION!$D$4 -> 20/10/17
D6: Exigible | E6: =GESTION!$D$5 -> 01//12/17
A8: Lots 16, 25, 26 | C8: =GESTION!$G$4 -> 20 | D8: =CONCATENATE(GESTION!$H$4," ",GESTION!$H$5) -> 1er Appel Travaux Electricité
B9: 1170/10000 | D9: =CONCATENATE("Exercice du ",GESTION!$E$1," ",GESTION!$F$1," au ",GESTION!$E$2," ",GESTION!$F$2) -> Exercice du 1er janvier 2017 au 31 décembre. 2017 | H9: =OR(GESTION!$G$4=8,GESTION!$G$4=16,GESTION!$G$4=24,GESTION!$G$4=32,GESTION!$G$4=36) -> FALSE
I10: =GESTION!$L$1 -> 80 | J10: %
A11: LOT | B11: CLE | C11: Designation | D11: A répartir | E11: V/Tantièmes | F11: Tantièmes Gén. | G11: V/Quote part | H11: FONDS | I11: Affectation | J11: Fd Restant | K11: TVA | L11: Q.P. T.V.A
A12: 16 | C12: =VLOOKUP(A12,Tant.Lots.Fds!$A$5:$B$35,2) -> Cave N° 6
A13: 16 | B13: 1 | C13: =VLOOKUP(B13,GESTION!$A$12:$B$26,2) -> Ch Gén. | D13: =VLOOKUP(B13,GESTION!$A$12:$AQ$27,GESTION!$G$4,0) -> 6000 | E13: =VLOOKUP(A13,Tant.Lots.Fds!$A$5:$AB$35,B13+7) -> 40 | F13: =VLOOKUP(99,Tant.Lots.Fds!$A$36:$O$36,B13+7) -> 10000 | G13: =ROUND(D13*E13/F13,2) -> 24 | K13: =IF(B13<>"",VLOOKUP(B13,GESTION!$A$12:$AQ$25,GESTION!$G$4+2),0)*((GESTION!$J$1=2)+(GESTION!$K$1=3)) -> 0 | L13: =IF($K13<>0,ROUND($K13*$E13/$F13,2),0) -> 0
A14: 16 | B14: 2 | C14: =VLOOKUP(B14,GESTION!$A$12:$B$26,2) -> Ch.Bât. | D14: =VLOOKUP(B14,GESTION!$A$12:$AQ$27,GESTION!$G$4,0) -> 0 | E14: =VLOOKUP(A14,Tant.Lots.Fds!$A$5:$AB$35,B14+7) -> 5 | F14: =VLOOKUP(99,Tant.Lots.Fds!$A$36:$O$36,B14+7) -> 1000 | G14: =ROUND(D14*E14/F14,2) -> 0 | K14: =IF(B14<>"",VLOOKUP(B14,GESTION!$A$12:$AQ$25,GESTION!$G$4+2),0)*((GESTION!$J$1=2)+(GESTION!$K$1=3)) -> 0 | L14: =IF($K14<>0,ROUND($K14*$E14/$F14,2),0) -> 0
A15: 16 | B15: 3 | C15: =VLOOKUP(B15,GESTION!$A$12:$B$26,2) -> Ch.Escal.A | D15: =VLOOKUP(B15,GESTION!$A$12:$AQ$27,GESTION!$G$4,0) -> 0 | E15: =VLOOKUP(A15,Tant.Lots.Fds!$A$5:$AB$35,B15+7) -> 79 | F15: =VLOOKUP(99,Tant.Lots.Fds!$A$36:$O$36,B15+7) -> 1000 | G15: =ROUND(D15*E15/F15,2) -> 0 | K15: =IF(B15<>"",VLOOKUP(B15,GESTION!$A$12:$AQ$25,GESTION!$G$4+2),0)*((GESTION!$J$1=2)+(GESTION!$K$1=3)) -> 0 | L15: =IF($K15<>0,ROUND($K15*$E15/$F15,2),0) -> 0
A16: 16 | B16: 11 | C16: =IF(GESTION!$K$1=1,"Appel Fonds Travaux","Remb,Avance Travaux") -> Remb,Avance Travaux | D16: =VLOOKUP(B16,GESTION!$A$12:$AQ$27,GESTION!$G$4,0)*(GESTION!$J$1=1)+(VLOOKUP(B16,GESTION!$A$12:$AQ$27,41,0)*(GESTION!$G$4=41)) -> 0 | E16: =VLOOKUP(A16,Tant.Lots.Fds!$A$5:$AB$35,8) -> 40 | F16: =VLOOKUP(99,Tant.Lots.Fds!$A$36:$O$36,8) -> 10000 | G16: =ROUND(D16*E16/F16,2) -> 0 | L16: =IF(J16<>0,ROUND(J16*D16/E16,2),"") -> 
A17: 16 | G17: =SUM(G13:G16) -> 24 | H17: =VLOOKUP(A17,FdsTravLots!$A$4:'FdsTravLots'!$C$35,3,0)*(GESTION!$K$1=2) -> 18.8 | I17: =IF(H17>ROUND(G17*$I$10/100,2),ROUND(G17*$I$10/100,2),H17)*-1*(G17>0) -> -18.8 | J17: =H17+I17 -> 0 | L17: =SUM(L13:L16) -> 0 | N17: =VLOOKUP(A17,FdsTravLots!$A$4:$D$35,3,0)+VLOOKUP(A17,FdsTravLots!$A$4:$D$35,4,0) -> 0
A18: 25 | C18: =VLOOKUP(A18,Tant.Lots.Fds!$A$5:$B$35,2) -> Appartement
A19: 25 | B19: 1 | C19: =VLOOKUP(B19,GESTION!$A$12:$B$26,2) -> Ch Gén. | D19: =VLOOKUP(B19,GESTION!$A$12:$AQ$27,GESTION!$G$4,0) -> 6000 | E19: =VLOOKUP(A19,Tant.Lots.Fds!$A$5:$AB$35,B19+7) -> 780 | F19: =VLOOKUP(99,Tant.Lots.Fds!$A$36:$O$36,B19+7) -> 10000 | G19: =ROUND(D19*E19/F19,2) -> 468 | K19: =IF(B19<>"",VLOOKUP(B19,GESTION!$A$12:$AQ$25,GESTION!$G$4+2),0)*((GESTION!$J$1=2)+(GESTION!$K$1=3)) -> 0 | L19: =IF($K19<>0,ROUND($K19*$E19/$F19,2),0) -> 0
A20: 25 | B20: 2 | C20: =VLOOKUP(B20,GESTION!$A$12:$B$26,2) -> Ch.Bât. | D20: =VLOOKUP(B20,GESTION!$A$12:$AQ$27,GESTION!$G$4,0) -> 0 | E20: =VLOOKUP(A20,Tant.Lots.Fds!$A$5:$AB$35,B20+7) -> 92 | F20: =VLOOKUP(99,Tant.Lots.Fds!$A$36:$O$36,B20+7) -> 1000 | G20: 0 | K20: =IF(B20<>"",VLOOKUP(B20,GESTION!$A$12:$AQ$25,GESTION!$G$4+2),0)*((GESTION!$J$1=2)+(GESTION!$K$1=3)) -> 0 | L20: 0
A21: 25 | B21: 4 | C21: =VLOOKUP(B21,GESTION!$A$12:$B$26,2) -> Ch Escal B | D21: =VLOOKUP(B21,GESTION!$A$12:$AQ$27,GESTION!$G$4,0) -> 0 | E21: =VLOOKUP(A21,Tant.Lots.Fds!$A$5:$AB$35,B21+7) -> 134 | F21: =VLOOKUP(99,Tant.Lots.Fds!$A$36:$O$36,B21+7) -> 1000 | G21: 0 | K21: =IF(B21<>"",VLOOKUP(B21,GESTION!$A$12:$AQ$25,GESTION!$G$4+2),0)*((GESTION!$J$1=2)+(GESTION!$K$1=3)) -> 0 | L21: 0
A22: 25 | B22: 6 | C22: =VLOOKUP(B22,GESTION!$A$12:$B$26,2) -> Provision Eau | D22: =VLOOKUP(B22,GESTION!$A$12:$AQ$27,GESTION!$G$4,0)*(GESTION!$J$1=1) -> 0 | E22: =VLOOKUP(A22,Tant.Lots.Fds!$A$5:$Z$35,13,0)*(GESTION!$J$1=1) -> 0 | F22: =VLOOKUP(99,Tant.Lots.Fds!$A$36:$O$36,B22+7) -> 1 | G22: 0 | K22: =IF(B22<>"",VLOOKUP(B22,GESTION!$A$12:$AQ$25,GESTION!$G$4+2),0)*((GESTION!$J$1=2)+(GESTION!$K$1=3)) -> 0 | L22: 0
A23: 25 | B23: 7 | C23: =VLOOKUP(B23,GESTION!$A$12:$B$26,2) -> EAU Individuelle | D23: =VLOOKUP(B23,GESTION!$A$12:$AQ$27,GESTION!$G$4,0)*((GESTION!$J$1=2)+(GESTION!$K$1=3)) -> 0 | E23: =VLOOKUP(A23,Tant.Lots.Fds!$A$5:$Z$35,14,0)*((GESTION!$J$1=2)+(GESTION!$K$1=3)) -> 0 | F23: =VLOOKUP(99,Tant.Lots.Fds!$A$36:$O$36,B23+7)+(Tant.Lots.Fds!$N$36=0) -> 760 | G23: 0 | K23: =IF(B23<>"",VLOOKUP(B23,GESTION!$A$12:$AQ$25,GESTION!$G$4+2),0)*((GESTION!$J$1=2)+(GESTION!$K$1=3)) -> 0 | L23: 0
A24: 25 | B24: 8 | K24: =IF(B24<>"",VLOOKUP(B24,GESTION!$A$12:$AQ$25,GESTION!$G$4+2),0)*((GESTION!$J$1=2)+(GESTION!$K$1=3)) -> 0 | L24: 0
A25: 25 | B25: 11 | C25: =IF(GESTION!$K$1=1,"Appel Fonds Travaux","Remb,Avance Travaux") -> Remb,Avance Travaux | D25: =VLOOKUP(B25,GESTION!$A$12:$AQ$27,GESTION!$G$4,0)*(GESTION!$J$1=1)+(VLOOKUP(B25,GESTION!$A$12:$AQ$27,41,0)*(GESTION!$G$4=41)) -> 0 | E25: =VLOOKUP(A25,Tant.Lots.Fds!$A$5:$AB$35,8) -> 780 | F25: =VLOOKUP(99,Tant.Lots.Fds!$A$36:$O$36,8) -> 10000 | G25: 0 | L25: =IF(J25<>0,ROUND(J25*D25/E25,2),"") -> 
A26: 25 | G26: =SUM(G19:G25) -> 468 | H26: =VLOOKUP(A26,FdsTravLots!$A$4:'FdsTravLots'!$C$35,3,0)*(GESTION!$K$1=2) -> 366.6 | I26: =IF(H26>ROUND(G26*$I$10/100,2),ROUND(G26*$I$10/100,2),H26)*-1*(G26>0) -> -366.6 | J26: =H26+I26 -> 0 | L26: =SUM(L19:L25) -> 0 | N26: =VLOOKUP(A26,FdsTravLots!$A$4:$D$35,3,0)+VLOOKUP(A26,FdsTravLots!$A$4:$D$35,4,0) -> 0
A27: 26 | C27: =VLOOKUP(A27,Tant.Lots.Fds!$A$5:$B$35,2) -> Pièce
A28: 26 | B28: 1 | C28: =VLOOKUP(B28,GESTION!$A$12:$B$26,2) -> Ch Gén. | D28: =VLOOKUP(B28,GESTION!$A$12:$AQ$27,GESTION!$G$4,0) -> 6000 | E28: =VLOOKUP(A28,Tant.Lots.Fds!$A$5:$AB$35,B28+7) -> 350 | F28: =VLOOKUP(99,Tant.Lots.Fds!$A$36:$O$36,B28+7) -> 10000 | G28: =ROUND(D28*E28/F28,2) -> 210 | K28: =IF(B28<>"",VLOOKUP(B28,GESTION!$A$12:$AQ$25,GESTION!$G$4+2),0)*((GESTION!$J$1=2)+(GESTION!$K$1=3)) -> 0 | L28: =IF($K28<>0,ROUND($K28*$E28/$F28,2),0) -> 0
A29: 26 | B29: 2 | C29: =VLOOKUP(B29,GESTION!$A$12:$B$26,2) -> Ch.Bât. | D29: =VLOOKUP(B29,GESTION!$A$12:$AQ$27,GESTION!$G$4,0) -> 0 | E29: =VLOOKUP(A29,Tant.Lots.Fds!$A$5:$AB$35,B29+7) -> 41 | F29: =VLOOKUP(99,Tant.Lots.Fds!$A$36:$O$36,B29+7) -> 1000 | G29: =ROUND(D29*E29/F29,2) -> 0 | K29: =IF(B29<>"",VLOOKUP(B29,GESTION!$A$12:$AQ$25,GESTION!$G$4+2),0)*((GESTION!$J$1=2)+(GESTION!$K$1=3)) -> 0 | L29: 0
A30: 26 | B30: 4 | C30: =VLOOKUP(B30,GESTION!$A$12:$B$26,2) -> Ch Escal B | D30: =VLOOKUP(B30,GESTION!$A$12:$AQ$27,GESTION!$G$4,0) -> 0 | E30: =VLOOKUP(A30,Tant.Lots.Fds!$A$5:$AB$35,B30+7) -> 60 | F30: =VLOOKUP(99,Tant.Lots.Fds!$A$36:$O$36,B30+7) -> 1000 | G30: 0 | K30: =IF(B30<>"",VLOOKUP(B30,GESTION!$A$12:$AQ$25,GESTION!$G$4+2),0)*((GESTION!$J$1=2)+(GESTION!$K$1=3)) -> 0 | L30: 0
A31: 26 | B31: 6 | C31: =VLOOKUP(B31,GESTION!$A$12:$B$26,2) -> Provision Eau | D31: =VLOOKUP(B31,GESTION!$A$12:$AQ$27,GESTION!$G$4,0)*(GESTION!$J$1=1) -> 0 | E31: =VLOOKUP(A31,Tant.Lots.Fds!$A$5:$Z$35,13,0)*(GESTION!$J$1=1) -> 0 | F31: =VLOOKUP(99,Tant.Lots.Fds!$A$36:$O$36,B31+7) -> 1 | G31: 0 | K31: =IF(B31<>"",VLOOKUP(B31,GESTION!$A$12:$AQ$25,GESTION!$G$4+2),0)*((GESTION!$J$1=2)+(GESTION!$K$1=3)) -> 0 | L31: 0
A32: 26 | B32: 7 | C32: =VLOOKUP(B32,GESTION!$A$12:$B$26,2) -> EAU Individuelle | D32: =VLOOKUP(B32,GESTION!$A$12:$AQ$27,GESTION!$G$4,0)*((GESTION!$J$1=2)+(GESTION!$K$1=3)) -> 0 | E32: =VLOOKUP(A32,Tant.Lots.Fds!$A$5:$Z$35,14,0)*((GESTION!$J$1=2)+(GESTION!$K$1=3)) -> 0 | F32: =VLOOKUP(99,Tant.Lots.Fds!$A$36:$O$36,B32+7)+(Tant.Lots.Fds!$N$36=0) -> 760 | G32: 0 | K32: =IF(B32<>"",VLOOKUP(B32,GESTION!$A$12:$AQ$25,GESTION!$G$4+2),0)*((GESTION!$J$1=2)+(GESTION!$K$1=3)) -> 0 | L32: 0
A33: 26 | B33: 8 | K33: =IF(B33<>"",VLOOKUP(B33,GESTION!$A$12:$AQ$25,GESTION!$G$4+2),0)*((GESTION!$J$1=2)+(GESTION!$K$1=3)) -> 0 | L33: 0
A34: 26 | B34: 11 | C34: =IF(GESTION!$K$1=1,"Appel Fonds Travaux","Remb,Avance Travaux") -> Remb,Avance Travaux | D34: =VLOOKUP(B34,GESTION!$A$12:$AQ$27,GESTION!$G$4,0)*(GESTION!$J$1=1)+(VLOOKUP(B34,GESTION!$A$12:$AQ$27,41,0)*(GESTION!$G$4=41)) -> 0 | E34: =VLOOKUP(A34,Tant.Lots.Fds!$A$5:$AB$35,8) -> 350 | F34: =VLOOKUP(99,Tant.Lots.Fds!$A$36:$O$36,8) -> 10000 | G34: 0 | L34: =IF(J34<>0,ROUND(J34*D34/E34,2),"") -> 
A35: 26 | G35: =SUM(G28:G34) -> 210 | H35: =VLOOKUP(A35,FdsTravLots!$A$4:'FdsTravLots'!$C$35,3,0)*(GESTION!$K$1=2) -> 164.5 | I35: =IF(H35>ROUND(G35*$I$10/100,2),ROUND(G35*$I$10/100,2),H35)*-1*(G35>0) -> -164.5 | J35: =H35+I35 -> 0 | L35: =SUM(L28:L34) -> 0 | N35: =VLOOKUP(A35,FdsTravLots!$A$4:$D$35,3,0)+VLOOKUP(A35,FdsTravLots!$A$4:$D$35,4,0) -> 0
A36: 1 | B36: 12 | C36: Avance Trésorerie | D36: =VLOOKUP(B36,GESTION!$A$12:'GESTION'!$AQ$25,GESTION!$G$4,0)*(GESTION!G4=40) -> 0 | E36: =SUMIF(B12:E35,1,E12:E35)*(GESTION!G4=40) -> 0 | F36: =VLOOKUP(99,Tant.Lots.Fds!$A$36:$O$36,8)*(GESTION!$G$4=40) -> 0 | G36: =ROUND(D36*E36/10000,2) -> 0
F37: TOTAL | G37: =(SUM(G12:G35)/2)+G36 -> 702 | H37: =SUM(H12:H36) -> 549.9 | I37: =SUM(I12:I36) -> -549.9 | J37: =SUM(J12:J36) -> 0 | L37: =SUM(L12:L36)/2 -> 0 | N37: =SUM(N13:N36) -> 0
E38: Provisions | G38: =SUM(K38:N38)*-1 -> 0 | K38: =IF(GESTION!$G$4=8,VLOOKUP($G$2,GESTION!$A$35:$AF$54,GESTION!$G$4-1,FALSE),"") ->  | L38: =IF(GESTION!$G$4=16,VLOOKUP($G$2,GESTION!$A$35:$AF$54,GESTION!$G$4-1,FALSE),"") ->  | M38: =IF(GESTION!$G$4=24,VLOOKUP($G$2,GESTION!$A$35:$AF$54,GESTION!$G$4-1,FALSE),"") ->  | N38: =IF(GESTION!$G$4=32,VLOOKUP($G$2,GESTION!$A$35:$AF$54,GESTION!$G$4-1,FALSE),"") -> 
E39: Financement Fond sTravaux | G39: =I37 -> -549.9 | K39: 8 | L39: 16 | M39: 24 | N39: 32
D40: SOLDE en votre faveur………………….. | G40: =IF(AND(H$4<>36,G37+G38+G39<0),G37+G38+G39,0) -> 0 | K40: =GESTION!$G$4 -> 20 | L40: =GESTION!$H$4 -> 1er Appel Travaux
D41: SOLDE dû au syndicat……………. | G41: =IF(AND($G$4<>36,G37+G38+G39>0),G37+G38+G39,0) -> 152.1
I42: =IF(L37>0,"Dont T.V.A.","") ->  | J42: =IF(L37<>0,L37,"") -> 
D43: RELEVE DE COMPTE | I43: =IF(M6<>0,#REF!,"") ->  | L43: La zône grisée n' est pas destinée
I44: =IF(M6<>0,#REF!,"") ->  | L44: a être imprimée et diffusée.
C45: Dates | D45: Libellés des operations | F45: DEBIT | G45: CREDIT
F49: =SUM(F46:F48) -> 0 | G49: =SUM(G46:G48) -> 0
C50: =IF(GESTION!$G$4<>36,E6,"") -> 01//12/17 | D50: =IF(GESTION!$G$4<>36,D8,"") -> 1er Appel Travaux Electricité | F50: =G41 -> 152.1 | G50: =IF(G40>0,G40,G40*-1) -> 0
F51: =SUM(F49:F50) -> 152.1 | G51: =SUM(G49:G50) -> 0
E52: =IF(F52<G52,"Montant à Payer","Montant à votre crédit") -> Montant à Payer | F52: =IF((F51-G51)>0,F51-G51,"") -> 152.1 | G52: =IF((G51-F51)>0,G51-F51,"") -> 
C54: Avance Trésorerie | D54: Av.Travaux | E54: Fds Travaux | F54: =IF($F$52<$G$52,"Règlement à faire à l'ordre du Syndicat des Copropriétaires.","") -> Règlement à faire à l'ordre du Syndicat des Copropriétaires.
C55: =VLOOKUP($G2,GESTION!$A$63:$C$82,3,FALSE) -> 117 | D55: =GESTION!$B$88*E99/Tant.Lots.Fds!$H$36 -> 58.5 | E55: =$N$37 -> 0
F56: Le syndic
E87: =AUBERT!$C$8 -> 20 | F87: =AUBERT!$D$8 -> 1er Appel Travaux Electricité
B89: CLE | C89: Designation | E89: V/Tantièmes | G89: V/Quote part
B90: 1 | C90: Charges Générales | E90: =SUMIF($B$12:$G$37,B90,$E$12:$E$37) -> 1170 | G90: =SUMIF($B$12:$B$36,B90,$G$12:$G$36) -> 702
B91: 2 | C91: Ch.Bâtiment | E91: 138 | G91: =SUMIF($B$12:$B$36,B91,$G$12:$G$36) -> 0
B92: 3 | C92: Ch.Escal.A | E92: 79 | G92: 0
B93: 4 | C93: Ch?Escal.B | E93: 194 | G93: 0
B94: 5 | C94: WW Commun | E94: 0 | G94: 0
B95: 6 | C95: Prov.Eau | E95: 0 | G95: 0
B96: 7 | C96: EAU Individuelle | E96: 0 | G96: 0
B97: 8 | E97: 0 | G97: 0
G98: =SUM(G90:G97) -> 702
B99: 11 | C99: =IF(GESTION!$K$1=1,"Appel Fonds Travaux","Remb,Avance Travaux") -> Remb,Avance Travaux | E99: =SUMIF($B$12:$G$37,B99,$E$12:$E$37) -> 1170 | G99: =SUMIF($B$12:$B$36,B99,$G$12:$G$36) -> 0
B100: 12 | C100: Avance de Trésorerie | E100: =SUMIF($B$12:$G$37,B100,$E$12:$E$37) -> 0 | G100: =SUMIF($B$12:$B$36,B100,$G$12:$G$36) -> 0
G101: =G98+G99+G100 -> 702 | H101: =G101+G38+G39-G40-G41 -> 0
C103: Financement des travaux | G103: =G39 -> -549.9

Sheet CARDON
A1: =GESTION!A1 -> Syndicat des Copropriétaires
A2: =GESTION!A2 -> 27 rue de PARIS | G2: =Copropriétaires!$A$7 -> 450.002 | H2: =VLOOKUP($G$2,Copropriétaires!$A$6:'Copropriétaires'!$L$25,3,FALSE) -> Mme CARDON Marie
A3: =GESTION!A3 -> 08200 LETROU | H3: =VLOOKUP($G$2,Copropriétaires!$A$6:'Copropriétaires'!$L$25,7,FALSE) -> 27 rue de Paris
H4: =VLOOKUP($G$2,Copropriétaires!$A$6:'Copropriétaires'!$L$25,10,FALSE) -> 08200 LETROU
D5: Date d'avis: | E5: =GESTION!$D$4 -> 20/10/17
D6: Exigible | E6: =GESTION!$D$5 -> 01//12/17
A8: Lots ,41, 42, 43, 103 | C8: =GESTION!$G$4 -> 20 | D8: =CONCATENATE(GESTION!$H$4," ",GESTION!$H$5) -> 1er Appel Travaux Electricité
B9: 1189/10000 | D9: =CONCATENATE("Exercice du ",GESTION!$E$1," ",GESTION!$F$1," au ",GESTION!$E$2," ",GESTION!$F$2) -> Exercice du 1er janvier 2017 au 31 décembre. 2017 | G9: =OR(GESTION!G4=8,GESTION!G4=16,GESTION!G4=24,GESTION!G4=32,GESTION!G4=36) -> FALSE
I10: =GESTION!$L$1 -> 80 | J10: %
A11: LOT | B11: CLE | C11: Designation | D11: A répartir | E11: V/Tantièmes | F11: Tantièmes Gén. | G11: V/Quote part | H11: FONDS | I11: Affectation | J11: Fd Restant | K11: TVA | L11: Q.P. T.V.A
A12: 41 | C12: =VLOOKUP(A12,Tant.Lots.Fds!$A$5:$B$35,2) -> Maison | H12: =IF(G12<>0,ROUND(G12*D12/E12,2),"") -> 
A13: 41 | B13: 1 | C13: =VLOOKUP(B13,GESTION!$A$12:$B$26,2) -> Ch Gén. | D13: =VLOOKUP(B13,GESTION!$A$12:$AQ$27,GESTION!$G$4,0) -> 6000 | E13: =VLOOKUP(A13,Tant.Lots.Fds!$A$5:$AB$35,B13+7) -> 940 | F13: =VLOOKUP(99,Tant.Lots.Fds!$A$36:$O$36,B13+7) -> 10000 | G13: =ROUND(D13*E13/F13,2) -> 564 | K13: =IF(B13<>"",VLOOKUP(B13,GESTION!$A$12:$AQ$25,GESTION!$G$4+2),0)*((GESTION!$J$1=2)+(GESTION!$K$1=3)) -> 0 | L13: =IF($K13<>0,ROUND($K13*$E13/$F13,2),0) -> 0
A14: 41 | B14: 6 | C14: =VLOOKUP(B14,GESTION!$A$12:$B$26,2) -> Provision Eau | D14: =VLOOKUP(B14,GESTION!$A$12:$AQ$27,GESTION!$G$4,0)*(GESTION!$J$1=1) -> 0 | E14: =VLOOKUP(A14,Tant.Lots.Fds!$A$5:$Z$35,13,0)*(GESTION!$J$1=1) -> 0 | F14: =VLOOKUP(99,Tant.Lots.Fds!$A$36:$O$36,B14+7) -> 1 | G14: =ROUND(D14*E14/F14,2) -> 0 | K14: =IF(B14<>"",VLOOKUP(B14,GESTION!$A$12:$AQ$25,GESTION!$G$4+2),0)*((GESTION!$J$1=2)+(GESTION!$K$1=3)) -> 0 | L14: =IF($K14<>0,ROUND($K14*$E14/$F14,2),0) -> 0
A15: 41 | B15: 7 | C15: =VLOOKUP(B15,GESTION!$A$12:$B$26,2) -> EAU Individuelle | D15: =VLOOKUP(B15,GESTION!$A$12:$AQ$27,GESTION!$G$4,0)*((GESTION!$J$1=2)+(GESTION!$K$1=3)) -> 0 | E15: =VLOOKUP(A15,Tant.Lots.Fds!$A$5:$Z$35,14,0)*((GESTION!$J$1=2)+(GESTION!$K$1=3)) -> 0 | F15: =VLOOKUP(99,Tant.Lots.Fds!$A$36:$O$36,B15+7)+(Tant.Lots.Fds!$N$36=0) -> 760 | G15: =ROUND(D15*E15/F15,2) -> 0 | K15: =IF(B15<>"",VLOOKUP(B15,GESTION!$A$12:$AQ$25,GESTION!$G$4+2),0)*((GESTION!$J$1=2)+(GESTION!$K$1=3)) -> 0 | L15: =IF($K15<>0,ROUND($K15*$E15/$F15,2),0) -> 0
A16: 41 | B16: 8 | K16: =IF(B16<>"",VLOOKUP(B16,GESTION!$A$12:$AQ$25,GESTION!$G$4+2),0)*((GESTION!$J$1=2)+(GESTION!$K$1=3)) -> 0 | L16: =IF($K16<>0,ROUND($K16*$E16/$F16,2),0) -> 0
A17: 41 | B17: 11 | C17: =IF(GESTION!$K$1=1,"Appel Fonds Travaux","Remb,Avance Travaux") -> Remb,Avance Travaux | D17: =VLOOKUP(B17,GESTION!$A$12:$AQ$27,GESTION!$G$4,0)*(GESTION!$J$1=1)+(VLOOKUP(B17,GESTION!$A$12:$AQ$27,41,0)*(GESTION!$G$4=41)) -> 0 | E17: =VLOOKUP(A17,Tant.Lots.Fds!$A$5:$AB$35,8) -> 940 | F17: =VLOOKUP(99,Tant.Lots.Fds!$A$36:$O$36,8) -> 10000 | G17: =ROUND(D17*E17/F17,2) -> 0
A18: 41 | G18: =SUM(G13:G17) -> 564 | H18: =VLOOKUP(A18,FdsTravLots!$A$4:'FdsTravLots'!$C$35,3,0)*(GESTION!$K$1=2) -> 441.8 | I18: =IF(H18>ROUND(G18*$I$10/100,2),ROUND(G18*$I$10/100,2),H18)*-1*(G18>0) -> -441.8 | J18: =H18+I18 -> 0 | L18: =SUM(L13:L17) -> 0 | N18: =VLOOKUP(A18,FdsTravLots!$A$4:$D$35,3,0)+VLOOKUP(A18,FdsTravLots!$A$4:$D$35,4,0) -> 0
A19: 42 | C19: =VLOOKUP(A19,Tant.Lots.Fds!$A$5:$B$35,2) -> Remises -Auvent
A20: 42 | B20: 1 | C20: =VLOOKUP(B20,GESTION!$A$12:$B$26,2) -> Ch Gén. | D20: =VLOOKUP(B20,GESTION!$A$12:$AQ$27,GESTION!$G$4,0) -> 6000 | E20: =VLOOKUP(A20,Tant.Lots.Fds!$A$5:$AB$35,B20+7) -> 100 | F20: =VLOOKUP(99,Tant.Lots.Fds!$A$36:$O$36,B20+7) -> 10000 | G20: =ROUND(D20*E20/F20,2) -> 60 | K20: =IF(B20<>"",VLOOKUP(B20,GESTION!$A$12:$AQ$25,GESTION!$G$4+2),0)*((GESTION!$J$1=2)+(GESTION!$K$1=3)) -> 0 | L20: =IF($K20<>0,ROUND($K20*$E20/$F20,2),0) -> 0
A21: 42 | B21: 11 | C21: =IF(GESTION!$K$1=1,"Appel Fonds Travaux","Remb,Avance Travaux") -> Remb,Avance Travaux | D21: =VLOOKUP(B21,GESTION!$A$12:$AQ$27,GESTION!$G$4,0)*(GESTION!$J$1=1)+(VLOOKUP(B21,GESTION!$A$12:$AQ$27,41,0)*(GESTION!$G$4=41)) -> 0 | E21: =VLOOKUP(A21,Tant.Lots.Fds!$A$5:$AB$35,8) -> 100 | F21: =VLOOKUP(99,Tant.Lots.Fds!$A$36:$O$36,8) -> 10000 | G21: =ROUND(D21*E21/F21,2) -> 0
A22: 42 | G22: =SUM(G20:G21) -> 60 | H22: =VLOOKUP(A22,FdsTravLots!$A$4:'FdsTravLots'!$C$35,3,0)*(GESTION!$K$1=2) -> 47 | I22: =IF(H22>ROUND(G22*$I$10/100,2),ROUND(G22*$I$10/100,2),H22)*-1*(G22>0) -> -47 | J22: =H22+I22 -> 0 | L22: =SUM(L20:L21) -> 0 | N22: =VLOOKUP(A22,FdsTravLots!$A$4:$D$35,3,0)+VLOOKUP(A22,FdsTravLots!$A$4:$D$35,4,0) -> 0
A23: 43 | C23: =VLOOKUP(A23,Tant.Lots.Fds!$A$5:$B$35,2) -> Remise
A24: 43 | B24: 1 | C24: =VLOOKUP(B24,GESTION!$A$12:$B$26,2) -> Ch Gén. | D24: =VLOOKUP(B24,GESTION!$A$12:$AQ$27,GESTION!$G$4,0) -> 6000 | E24: =VLOOKUP(A24,Tant.Lots.Fds!$A$5:$AB$35,B24+7) -> 20 | F24: =VLOOKUP(99,Tant.Lots.Fds!$A$36:$O$36,B24+7) -> 10000 | G24: =ROUND(D24*E24/F24,2) -> 12 | K24: =IF(B24<>"",VLOOKUP(B24,GESTION!$A$12:$AQ$25,GESTION!$G$4+2),0)*((GESTION!$J$1=2)+(GESTION!$K$1=3)) -> 0 | L24: =IF($K24<>0,ROUND($K24*$E24/$F24,2),0) -> 0
A25: 43 | B25: 11 | C25: =IF(GESTION!$K$1=1,"Appel Fonds Travaux","Remb,Avance Travaux") -> Remb,Avance Travaux | D25: =VLOOKUP(B25,GESTION!$A$12:$AQ$27,GESTION!$G$4,0)*(GESTION!$J$1=1)+(VLOOKUP(B25,GESTION!$A$12:$AQ$27,41,0)*(GESTION!$G$4=41)) -> 0 | E25: =VLOOKUP(A25,Tant.Lots.Fds!$A$5:$AB$35,8) -> 20 | F25: =VLOOKUP(99,Tant.Lots.Fds!$A$36:$O$36,8) -> 10000 | G25: =ROUND(D25*E25/F25,2) -> 0
A26: 43 | G26: =SUM(G24:G25) -> 12 | H26: =VLOOKUP(A26,FdsTravLots!$A$4:'FdsTravLots'!$C$35,3,0)*(GESTION!$K$1=2) -> 9.4 | I26: =IF(H26>ROUND(G26*$I$10/100,2),ROUND(G26*$I$10/100,2),H26)*-1*(G26>0) -> -9.4 | J26: =H26+I26 -> 0 | L26: =SUM(L24:L25) -> 0 | N26: =VLOOKUP(A26,FdsTravLots!$A$4:$D$35,3,0)+VLOOKUP(A26,FdsTravLots!$A$4:$D$35,4,0) -> 0
A27: 103 | C27: =VLOOKUP(A27,Tant.Lots.Fds!$A$5:$B$35,2) -> Jardin privatrif
A28: 103 | B28: 1 | C28: =VLOOKUP(B28,GESTION!$A$12:$B$26,2) -> Ch Gén. | D28: =VLOOKUP(B28,GESTION!$A$12:$AQ$27,GESTION!$G$4,0) -> 6000 | E28: =VLOOKUP(A28,Tant.Lots.Fds!$A$5:$AB$35,B28+7) -> 129 | F28: =VLOOKUP(99,Tant.Lots.Fds!$A$36:$O$36,B28+7) -> 10000 | G28: =ROUND(D28*E28/F28,2) -> 77.4 | K28: =IF(B28<>"",VLOOKUP(B28,GESTION!$A$12:$AQ$25,GESTION!$G$4+2),0)*((GESTION!$J$1=2)+(GESTION!$K$1=3)) -> 0 | L28: =IF($K28<>0,ROUND($K28*$E28/$F28,2),0) -> 0
A29: 103 | B29: 11 | C29: =IF(GESTION!$K$1=1,"Appel Fonds Travaux","Remb,Avance Travaux") -> Remb,Avance Travaux | D29: =VLOOKUP(B29,GESTION!$A$12:$AQ$27,GESTION!$G$4,0)*(GESTION!$J$1=1)+(VLOOKUP(B29,GESTION!$A$12:$AQ$27,41,0)*(GESTION!$G$4=41)) -> 0 | E29: =VLOOKUP(A29,Tant.Lots.Fds!$A$5:$AB$35,8) -> 129 | F29: =VLOOKUP(99,Tant.Lots.Fds!$A$36:$O$36,8) -> 10000 | G29: =ROUND(D29*E29/F29,2) -> 0
A30: 103 | G30: =SUM(G28:G29) -> 77.4 | H30: =VLOOKUP(A30,FdsTravLots!$A$4:'FdsTravLots'!$C$35,3,0)*(GESTION!$K$1=2) -> 60.63 | I30: =IF(H30>ROUND(G30*$I$10/100,2),ROUND(G30*$I$10/100,2),H30)*-1*(G30>0) -> -60.63 | J30: =H30+I30 -> 0 | L30: =SUM(L28:L29) -> 0 | N30: =VLOOKUP(A30,FdsTravLots!$A$4:$D$35,3,0)+VLOOKUP(A30,FdsTravLots!$A$4:$D$35,4,0) -> 0
A36: 1 | B36: 12 | C36: Avance Trésorerie | D36: =VLOOKUP(B36,GESTION!$A$12:'GESTION'!$AQ$25,GESTION!$G$4,0)*(GESTION!G4=40) -> 0 | E36: =SUMIF(B12:E35,1,E12:E35)*(GESTION!G4=40) -> 0 | F36: =VLOOKUP(99,Tant.Lots.Fds!$A$36:$O$36,8)*(GESTION!$G$4=40) -> 0 | G36: =ROUND(D36*E36/10000,2) -> 0
F37: TOTAL | G37: =(SUM(G12:G35)/2)+G36 -> 713.4 | H37: =SUM(H12:H36) -> 558.83 | I37: =SUM(I12:I36) -> -558.83 | J37: =SUM(J12:J36) -> 0 | L37: =SUM(L12:L36)/2 -> 0 | N37: =SUM(N13:N36) -> 0
E38: Provisions | G38: =SUM(K38:N38)*-1 -> 0 | K38: =IF(GESTION!$G$4=8,VLOOKUP($G$2,GESTION!$A$35:$AF$54,GESTION!$G$4-1,FALSE),"") ->  | L38: =IF(GESTION!$G$4=16,VLOOKUP($G$2,GESTION!$A$35:$AF$54,GESTION!$G$4-1,FALSE),"") ->  | M38: =IF(GESTION!$G$4=24,VLOOKUP($G$2,GESTION!$A$35:$AF$54,GESTION!$G$4-1,FALSE),"") ->  | N38: =IF(GESTION!$G$4=32,VLOOKUP($G$2,GESTION!$A$35:$AF$54,GESTION!$G$4-1,FALSE),"") -> 
E39: Financement Fonds Travaux | G39: =I37 -> -558.83 | K39: 8 | L39: 16 | M39: 24 | N39: 32 | O39: =VLOOKUP($D$2,GESTION!$A$63:'GESTION'!$AN$82,GESTION!$G$4-1)*(GESTION!$J$1<>2) -> 
D40: SOLDE en votre faveur………………….. | G40: =IF(AND(H$4<>36,G37+G38+G39<0),G37+G38+G39,0) -> 0 | K40: =GESTION!$G$4 -> 20 | L40: =GESTION!$H$4 -> 1er Appel Travaux
D41: SOLDE dû au syndicat……………. | G41: =IF(AND($G$4<>36,G37+G38+G39>0),G37+G38+G39,0) -> 154.57
I42: =IF(L37>0,"Dont T.V.A.","") ->  | J42: =IF(L37<>0,L37,"") -> 
D43: RELEVE DE COMPTE | I43: =IF(M6<>0,#REF!,"") ->  | L43: La zône grisée n' est pas destinée
I44: =IF(M6<>0,#REF!,"") ->  | L44: a être imprimée et diffusée.
C45: Dates | D45: Libellés des operations | F45: DEBIT | G45: CREDIT
F49: =SUM(F46:F48) -> 0 | G49: =SUM(G46:G48) -> 0
C50: =IF(GESTION!$G$4<>36,E6,"") -> 01//12/17 | D50: =IF(GESTION!$G$4<>36,D8,"") -> 1er Appel Travaux Electricité | F50: =G41 -> 154.57 | G50: =IF(G40>0,G40,G40*-1) -> 0
F51: =SUM(F49:F50) -> 154.57 | G51: =SUM(G49:G50) -> 0
E52: =IF(F52<G52,"Montant à Payer","Montant à votre crédit") -> Montant à Payer | F52: =IF((F51-G51)>0,F51-G51,"") -> 154.57 | G52: =IF((G51-F51)>0,G51-F51,"") -> 
C54: Avance Trésorerie | D54: Av.Travaux | E54: Fds Travaux | F54: =IF($F$52<$G$52,"Règlement à faire à l'ordre du Syndicat des Copropriétaires.","") -> Règlement à faire à l'ordre du Syndicat des Copropriétaires.
C55: =VLOOKUP($G2,GESTION!$A$63:$C$82,3,FALSE) -> 118.9 | D55: =GESTION!$B$88*E99/Tant.Lots.Fds!$H$36 -> 59.45 | E55: =$N$37 -> 0
F56: Le syndic
A65: =IF($E$59<$F$59,"Règlement à faire à l'ordre du Syndicat des Copropriétaires.","") -> 
E87: =AUBERT!$C$8 -> 20 | F87: =AUBERT!$D$8 -> 1er Appel Travaux Electricité
B89: CLE | C89: Designation | E89: V/Tantièmes | G89: V/Quote part
B90: 1 | C90: Charges Générales | E90: =SUMIF($B$12:$G$37,B90,$E$12:$E$37) -> 1189 | G90: =SUMIF($B$12:$B$36,B90,$G$12:$G$36) -> 713.4
B91: 2 | C91: Ch.Bâtiment | E91: =SUMIF($B$12:$G$37,B91,$E$12:$E$37) -> 0 | G91: =SUMIF($B$12:$B$36,B91,$G$12:$G$36) -> 0
B92: 3 | C92: Ch.Escal.A | E92: 0 | G92: 0
B93: 4 | C93: Ch?Escal.B | E93: 0 | G93: 0
B94: 5 | C94: WW Commun | E94: 0 | G94: 0
B95: 6 | C95: Prov.Eau | E95: 0 | G95: 0
B96: 7 | C96: Cons.Eau | E96: 0 | G96: 0
B97: 8 | E97: 0 | G97: 0
G98: =SUM(G90:G97) -> 713.4
B99: 11 | C99: =IF(GESTION!$K$1=1,"Appel Fonds Travaux","Remb,Avance Travaux") -> Remb,Avance Travaux | E99: =SUMIF($B$12:$G$37,B99,$E$12:$E$37) -> 1189 | G99: =SUMIF($B$12:$B$36,B99,$G$12:$G$36) -> 0
B100: 12 | C100: Avance de Trésorerie | E100: =SUMIF($B$12:$G$37,B100,$E$12:$E$37) -> 0 | G100: =SUMIF($B$12:$B$36,B100,$G$12:$G$36) -> 0
G101: =G98+G99+G100 -> 713.4 | H101: =G101+G38+G39-G40-G41 -> 0
C103: Financement des travaux | G103: =G39 -> -558.83

Sheet DUBOIS
A1: =GESTION!A1 -> Syndicat des Copropriétaires
A2: =GESTION!A2 -> 27 rue de PARIS | G2: =Copropriétaires!$A$8 -> 450.003 | H2: =VLOOKUP($G$2,Copropriétaires!$A$6:'Copropriétaires'!$L$25,3,FALSE) -> Mr DUBOIS
A3: =GESTION!A3 -> 08200 LETROU | H3: =VLOOKUP($G$2,Copropriétaires!$A$6:'Copropriétaires'!$L$25,7,FALSE) -> 5 rue de Rennes
H4: =VLOOKUP($G$2,Copropriétaires!$A$6:'Copropriétaires'!$L$25,10,FALSE) -> 77150 Lésigny
D5: Date d'avis: | E5: =GESTION!$D$4 -> 20/10/17
D6: Exigible | E6: =GESTION!$D$5 -> 01//12/17
A8: Lots 13, 18, 19, 23, | C8: =GESTION!$G$4 -> 20 | D8: =CONCATENATE(GESTION!$H$4," ",GESTION!$H$5) -> 1er Appel Travaux Electricité
B9: 1950/10,000 | D9: =CONCATENATE("Exercice du ",GESTION!$E$1," ",GESTION!$F$1," au ",GESTION!$E$2," ",GESTION!$F$2) -> Exercice du 1er janvier 2017 au 31 décembre. 2017 | H9: =OR(GESTION!G4=8,GESTION!G4=16,GESTION!G4=24,GESTION!G4=32,GESTION!G4=36) -> FALSE
I10: =GESTION!$L$1 -> 80 | J10: %
A11: LOT | B11: CLE | C11: Designation | D11: A répartir | E11: V/Tantièmes | F11: Tantièmes Gén. | G11: V/Quote part | H11: FONDS | I11: Affectation | J11: Fd Restant | K11: T.VA. | L11: Q.P. T.V.A
A12: 13 | C12: =VLOOKUP(A12,Tant.Lots.Fds!$A$5:$B$35,2) -> Cave N° 3 | I12: =IF(H12<>0,ROUND(H12*E12/F12,2),"") -> 
A13: 13 | B13: 1 | C13: =VLOOKUP(B13,GESTION!$A$12:$B$26,2) -> Ch Gén. | D13: =VLOOKUP(B13,GESTION!$A$12:$AQ$27,GESTION!$G$4,0) -> 6000 | E13: =VLOOKUP(A13,Tant.Lots.Fds!$A$5:$AB$35,B13+7) -> 230 | F13: =VLOOKUP(99,Tant.Lots.Fds!$A$36:$O$36,B13+7) -> 10000 | G13: =ROUND(D13*E13/F13,2) -> 138 | K13: =IF(B13<>"",VLOOKUP(B13,GESTION!$A$12:$AQ$25,GESTION!$G$4+2),0)*((GESTION!$J$1=2)+(GESTION!$K$1=3)) -> 0 | L13: =IF($K13<>0,ROUND($K13*$E13/$F13,2),0) -> 0
A14: 13 | B14: 2 | C14: =VLOOKUP(B14,GESTION!$A$12:$B$26,2) -> Ch.Bât. | D14: =VLOOKUP(B14,GESTION!$A$12:$AQ$27,GESTION!$G$4,0) -> 0 | E14: =VLOOKUP(A14,Tant.Lots.Fds!$A$5:$AB$35,B14+7) -> 27 | F14: =VLOOKUP(99,Tant.Lots.Fds!$A$36:$O$36,B14+7) -> 1000 | G14: =ROUND(D14*E14/F14,2) -> 0 | K14: =IF(B14<>"",VLOOKUP(B14,GESTION!$A$12:$AQ$25,GESTION!$G$4+2),0)*((GESTION!$J$1=2)+(GESTION!$K$1=3)) -> 0 | L14: =IF($K14<>0,ROUND($K14*$E14/$F14,2),0) -> 0
A15: 13 | B15: 3 | C15: =VLOOKUP(B15,GESTION!$A$12:$B$26,2) -> Ch.Escal.A | D15: =VLOOKUP(B15,GESTION!$A$12:$AQ$27,GESTION!$G$4,0) -> 0 | E15: =VLOOKUP(A15,Tant.Lots.Fds!$A$5:$AB$35,B15+7) -> 429 | F15: =VLOOKUP(99,Tant.Lots.Fds!$A$36:$O$36,B15+7) -> 1000 | G15: =ROUND(D15*E15/F15,2) -> 0 | K15: =IF(B15<>"",VLOOKUP(B15,GESTION!$A$12:$AQ$25,GESTION!$G$4+2),0)*((GESTION!$J$1=2)+(GESTION!$K$1=3)) -> 0 | L15: =IF($K15<>0,ROUND($K15*$E15/$F15,2),0) -> 0
A16: 13 | B16: 11 | C16: =IF(GESTION!$K$1=1,"Appel Fonds Travaux","Remb,Avance Travaux") -> Remb,Avance Travaux | D16: =VLOOKUP(B16,GESTION!$A$12:$AQ$27,GESTION!$G$4,0)*(GESTION!$J$1=1)+(VLOOKUP(B16,GESTION!$A$12:$AQ$27,41,0)*(GESTION!$G$4=41)) -> 0 | E16: =VLOOKUP(A16,Tant.Lots.Fds!$A$5:$AB$35,8) -> 230 | F16: =VLOOKUP(99,Tant.Lots.Fds!$A$36:$O$36,8) -> 10000 | G16: =ROUND(D16*E16/F16,2) -> 0 | L16: =IF(J16<>0,ROUND(J16*D16/E16,2),"") -> 
A17: 13 | G17: =SUM(G13:G16) -> 138 | H17: =VLOOKUP(A17,FdsTravLots!$A$4:'FdsTravLots'!$C$35,3,0)*(GESTION!$K$1=2) -> 108.1 | I17: =IF(H17>ROUND(G17*$I$10/100,2),ROUND(G17*$I$10/100,2),H17)*-1*(G17>0) -> -108.1 | J17: =H17+I17 -> 0 | L17: =SUM(L13:L16) -> 0 | N17: =VLOOKUP(A17,FdsTravLots!$A$4:$D$35,3,0)+VLOOKUP(A17,FdsTravLots!$A$4:$D$35,4,0) -> 0
A18: 18 | C18: =VLOOKUP(A18,Tant.Lots.Fds!$A$5:$B$35,2) -> W.C.
A19: 18 | B19: 1 | C19: =VLOOKUP(B19,GESTION!$A$12:$B$26,2) -> Ch Gén. | D19: =VLOOKUP(B19,GESTION!$A$12:$AQ$27,GESTION!$G$4,0) -> 6000 | E19: =VLOOKUP(A19,Tant.Lots.Fds!$A$5:$AB$35,B19+7) -> 30 | F19: =VLOOKUP(99,Tant.Lots.Fds!$A$36:$O$36,B19+7) -> 10000 | G19: =ROUND(D19*E19/F19,2) -> 18 | K19: =IF(B19<>"",VLOOKUP(B19,GESTION!$A$12:$AQ$25,GESTION!$G$4+2),0)*((GESTION!$J$1=2)+(GESTION!$K$1=3)) -> 0 | L19: =IF($K19<>0,ROUND($K19*$E19/$F19,2),0) -> 0
A20: 18 | B20: 2 | C20: =VLOOKUP(B20,GESTION!$A$12:$B$26,2) -> Ch.Bât. | D20: =VLOOKUP(B20,GESTION!$A$12:$AQ$27,GESTION!$G$4,0) -> 0 | E20: =VLOOKUP(A20,Tant.Lots.Fds!$A$5:$AB$35,B20+7) -> 4 | F20: =VLOOKUP(99,Tant.Lots.Fds!$A$36:$O$36,B20+7) -> 1000 | G20: =ROUND(D20*E20/F20,2) -> 0 | K20: =IF(B20<>"",VLOOKUP(B20,GESTION!$A$12:$AQ$25,GESTION!$G$4+2),0)*((GESTION!$J$1=2)+(GESTION!$K$1=3)) -> 0 | L20: =IF($K20<>0,ROUND($K20*$E20/$F20,2),0) -> 0
A21: 18 | B21: 11 | C21: =IF(GESTION!$K$1=1,"Appel Fonds Travaux","Remb,Avance Travaux") -> Remb,Avance Travaux | D21: =VLOOKUP(B21,GESTION!$A$12:$AQ$27,GESTION!$G$4,0) -> 0 | E21: =VLOOKUP(A21,Tant.Lots.Fds!$A$5:$AB$35,8) -> 30 | F21: =VLOOKUP(99,Tant.Lots.Fds!$A$36:$O$36,8) -> 10000 | G21: =ROUND(D21*E21/F21,2) -> 0
A22: 18 | G22: =SUM(G19:G21) -> 18 | H22: =VLOOKUP(A22,FdsTravLots!$A$4:'FdsTravLots'!$C$35,3,0)*(GESTION!$K$1=2) -> 14.1 | I22: =IF(H22>ROUND(G22*$I$10/100,2),ROUND(G22*$I$10/100,2),H22)*-1*(G22>0) -> -14.1 | J22: =H22+I22 -> 0 | L22: =SUM(L19:L21) -> 0 | N22: =VLOOKUP(A22,FdsTravLots!$A$4:$D$35,3,0)+VLOOKUP(A22,FdsTravLots!$A$4:$D$35,4,0) -> 0
A23: 19 | C23: =VLOOKUP(A23,Tant.Lots.Fds!$A$5:$B$35,2) -> Commerce | I23: =IF(H23<>0,ROUND(H23*E23/F23,2),"") -> 
A24: 19 | B24: 1 | C24: =VLOOKUP(B24,GESTION!$A$12:$B$26,2) -> Ch Gén. | D24: =VLOOKUP(B24,GESTION!$A$12:$AQ$27,GESTION!$G$4,0) -> 6000 | E24: =VLOOKUP(A24,Tant.Lots.Fds!$A$5:$AB$35,B24+7) -> 910 | F24: =VLOOKUP(99,Tant.Lots.Fds!$A$36:$O$36,B24+7) -> 10000 | G24: =ROUND(D24*E24/F24,2) -> 546 | K24: =IF(B24<>"",VLOOKUP(B24,GESTION!$A$12:$AQ$25,GESTION!$G$4+2),0)*((GESTION!$J$1=2)+(GESTION!$K$1=3)) -> 0 | L24: =IF($K24<>0,ROUND($K24*$E24/$F24,2),0) -> 0
A25: 19 | B25: 2 | C25: =VLOOKUP(B25,GESTION!$A$12:$B$26,2) -> Ch.Bât. | D25: =VLOOKUP(B25,GESTION!$A$12:$AQ$27,GESTION!$G$4,0) -> 0 | E25: =VLOOKUP(A25,Tant.Lots.Fds!$A$5:$AB$35,B25+7) -> 107 | F25: =VLOOKUP(99,Tant.Lots.Fds!$A$36:$O$36,B25+7) -> 1000 | G25: =ROUND(D25*E25/F25,2) -> 0 | K25: =IF(B25<>"",VLOOKUP(B25,GESTION!$A$12:$AQ$25,GESTION!$G$4+2),0)*((GESTION!$J$1=2)+(GESTION!$K$1=3)) -> 0 | L25: =IF($K25<>0,ROUND($K25*$E25/$F25,2),0) -> 0
A26: 19 | B26: 11 | C26: =IF(GESTION!$K$1=1,"Appel Fonds Travaux","Remb,Avance Travaux") -> Remb,Avance Travaux | D26: =VLOOKUP(B26,GESTION!$A$12:$AQ$27,GESTION!$G$4,0)*(GESTION!$J$1=1)+(VLOOKUP(B26,GESTION!$A$12:$AQ$27,41,0)*(GESTION!$G$4=41)) -> 0 | E26: =VLOOKUP(A26,Tant.Lots.Fds!$A$5:$AB$35,8) -> 910 | F26: =VLOOKUP(99,Tant.Lots.Fds!$A$36:$O$36,8) -> 10000 | G26: =ROUND(D26*E26/F26,2) -> 0 | L26: =IF(J26<>0,ROUND(J26*D26/E26,2),"") -> 
A27: 19 | G27: =SUM(G24:G26) -> 546 | H27: =VLOOKUP(A27,FdsTravLots!$A$4:'FdsTravLots'!$C$35,3,0)*(GESTION!$K$1=2) -> 427.7 | I27: =IF(H27>ROUND(G27*$I$10/100,2),ROUND(G27*$I$10/100,2),H27)*-1*(G27>0) -> -427.7 | J27: =H27+I27 -> 0 | L27: =SUM(L24:L26) -> 0 | N27: =VLOOKUP(A27,FdsTravLots!$A$4:$D$35,3,0)+VLOOKUP(A27,FdsTravLots!$A$4:$D$35,4,0) -> 0
A28: 23 | C28: =VLOOKUP(A28,Tant.Lots.Fds!$A$5:$B$35,2) -> Appartement
A29: 23 | B29: 1 | C29: =VLOOKUP(B29,GESTION!$A$12:$B$26,2) -> Ch Gén. | D29: =VLOOKUP(B29,GESTION!$A$12:$AQ$27,GESTION!$G$4,0) -> 6000 | E29: =VLOOKUP(A29,Tant.Lots.Fds!$A$5:$AB$35,B29+7) -> 780 | F29: =VLOOKUP(99,Tant.Lots.Fds!$A$36:$O$36,B29+7) -> 10000 | G29: =ROUND(D29*E29/F29,2) -> 468 | K29: =IF(B29<>"",VLOOKUP(B29,GESTION!$A$12:$AQ$25,GESTION!$G$4+2),0)*((GESTION!$J$1=2)+(GESTION!$K$1=3)) -> 0 | L29: =IF($K29<>0,ROUND($K29*$E29/$F29,2),0) -> 0
A30: 23 | B30: 2 | C30: =VLOOKUP(B30,GESTION!$A$12:$B$26,2) -> Ch.Bât. | D30: =VLOOKUP(B30,GESTION!$A$12:$AQ$27,GESTION!$G$4,0) -> 0 | E30: =VLOOKUP(A30,Tant.Lots.Fds!$A$5:$AB$35,B30+7) -> 92 | F30: =VLOOKUP(99,Tant.Lots.Fds!$A$36:$O$36,B30+7) -> 1000 | G30: =ROUND(D30*E30/F30,2) -> 0 | K30: =IF(B30<>"",VLOOKUP(B30,GESTION!$A$12:$AQ$25,GESTION!$G$4+2),0)*((GESTION!$J$1=2)+(GESTION!$K$1=3)) -> 0 | L30: =IF($K30<>0,ROUND($K30*$E30/$F30,2),0) -> 0
A31: 23 | B31: 4 | C31: =VLOOKUP(B31,GESTION!$A$12:$B$26,2) -> Ch Escal B | D31: =VLOOKUP(B31,GESTION!$A$12:$AQ$27,GESTION!$G$4,0) -> 0 | E31: =VLOOKUP(A31,Tant.Lots.Fds!$A$5:$AB$35,B31+7) -> 128 | F31: =VLOOKUP(99,Tant.Lots.Fds!$A$36:$O$36,B31+7) -> 1000 | G31: =ROUND(D31*E31/F31,2) -> 0 | K31: =IF(B31<>"",VLOOKUP(B31,GESTION!$A$12:$AQ$25,GESTION!$G$4+2),0)*((GESTION!$J$1=2)+(GESTION!$K$1=3)) -> 0 | L31: =IF($K31<>0,ROUND($K31*$E31/$F31,2),0) -> 0
A32: 23 | B32: 5 | C32: =VLOOKUP(B32,GESTION!$A$12:$B$26,2) -> WC | D32: =VLOOKUP(B32,GESTION!$A$12:$AQ$27,GESTION!$G$4,0) -> 0 | E32: =VLOOKUP(A32,Tant.Lots.Fds!$A$5:$AB$35,B32+7) -> 414 | F32: =VLOOKUP(99,Tant.Lots.Fds!$A$36:$O$36,B32+7) -> 1000 | G32: =ROUND(D32*E32/F32,2) -> 0 | K32: =IF(B32<>"",VLOOKUP(B32,GESTION!$A$12:$AQ$25,GESTION!$G$4+2),0)*((GESTION!$J$1=2)+(GESTION!$K$1=3)) -> 0 | L32: =IF($K32<>0,ROUND($K32*$E32/$F32,2),0) -> 0
A34: 23 | B34: 11 | C34: =IF(GESTION!$K$1=1,"Appel Fonds Travaux","Remb,Avance Travaux") -> Remb,Avance Travaux | D34: =VLOOKUP(B34,GESTION!$A$12:$AQ$27,GESTION!$G$4,0)*(GESTION!$J$1=1)+(VLOOKUP(B34,GESTION!$A$12:$AQ$27,41,0)*(GESTION!$G$4=41)) -> 0 | E34: =VLOOKUP(A34,Tant.Lots.Fds!$A$5:$AB$35,8) -> 780 | F34: =VLOOKUP(99,Tant.Lots.Fds!$A$36:$O$36,8) -> 10000 | G34: =ROUND(D34*E34/F34,2) -> 0 | L34: =IF(J34<>0,ROUND(J34*D34/E34,2),"") -> 
A35: 23 | G35: =SUM(G29:G34) -> 468 | H35: =VLOOKUP(A35,FdsTravLots!$A$4:'FdsTravLots'!$C$35,3,0)*(GESTION!$K$1=2) -> 366.6 | I35: =IF(H35>ROUND(G35*$I$10/100,2),ROUND(G35*$I$10/100,2),H35)*-1*(G35>0) -> -366.6 | J35: =H35+I35 -> 0 | L35: =SUM(L29:L34) -> 0 | N35: =VLOOKUP(A35,FdsTravLots!$A$4:$D$35,3,0)+VLOOKUP(A35,FdsTravLots!$A$4:$D$35,4,0) -> 0
A36: 1 | B36: 12 | C36: Avance Trésorerie | D36: =VLOOKUP(B36,GESTION!$A$12:'GESTION'!$AQ$25,GESTION!$G$4,0)*(GESTION!G4=40) -> 0 | E36: =SUMIF(B12:E35,1,E12:E35)*(GESTION!G4=40) -> 0 | F36: =VLOOKUP(99,Tant.Lots.Fds!$A$36:$O$36,8)*(GESTION!$G$4=40) -> 0 | G36: =ROUND(D36*E36/10000,2) -> 0 | I36: =IF(H36<>0,ROUND(H36*E36/F36,2),"") -> 
F37: TOTAL…………. | G37: =(SUM(G12:G35)/2)+G36 -> 1170 | H37: =SUM(H12:H36) -> 916.5 | I37: =SUM(I12:I36) -> -916.5 | J37: =SUM(J12:J36) -> 0 | L37: =SUM(L12:L36)/2 -> 0 | N37: =SUM(N13:N36) -> 0
E38: Provisions | G38: =SUM(K38:N38)*-1 -> 0 | K38: =IF(GESTION!$G$4=8,VLOOKUP($G$2,GESTION!$A$35:$AF$54,GESTION!$G$4-1,FALSE),"") ->  | L38: =IF(GESTION!$G$4=16,VLOOKUP($G$2,GESTION!$A$35:$AF$54,GESTION!$G$4-1,FALSE),"") ->  | M38: =IF(GESTION!$G$4=24,VLOOKUP($G$2,GESTION!$A$35:$AF$54,GESTION!$G$4-1,FALSE),"") ->  | N38: =IF(GESTION!$G$4=32,VLOOKUP($G$2,GESTION!$A$35:$AF$54,GESTION!$G$4-1,FALSE),"") -> 
E39: Financement Fonds Travaux | G39: =I37 -> -916.5 | K39: 8 | L39: 16 | M39: 24 | N39: 32
D40: SOLDE en votre faveur………………….. | G40: =IF(AND(H$4<>36,G37+G38+G39<0),G37+G38+G39,0) -> 0 | K40: =GESTION!$G$4 -> 20 | L40: =GESTION!$H$4 -> 1er Appel Travaux
D41: SOLDE dû au syndicat……………. | G41: =IF(AND($G$4<>36,G37+G38+G39>0),G37+G38+G39,0) -> 253.5
I42: =IF(L37>0,"Dont T.V.A.","") ->  | J42: =IF(L37<>0,L37,"") -> 
D43: RELEVE DE COMPTE | H43: =IF(M37<>0,"Dont TVA","") ->  | I43: =IF(M12<>0,M37,"") ->  | L43: La zône grisée n' est pas destinée
H44: =IF(N37<>0,"TVAs/Ch.Loc","") ->  | I44: =IF(M12<>0,N37,"") ->  | L44: a être imprimée et diffusée.
C45: Dates | D45: Libellés des operations | F45: DEBIT | G45: CREDIT
F49: =SUM(F46:F48) -> 0 | G49: =SUM(G46:G48) -> 0
C50: =IF(GESTION!$G$4<>36,E6,"") -> 01//12/17 | D50: =IF(GESTION!$G$4<>36,D8,"") -> 1er Appel Travaux Electricité | F50: =G41 -> 253.5 | G50: =IF(G40>0,G40,G40*-1) -> 0
F51: =SUM(F49:F50) -> 253.5 | G51: =SUM(G49:G50) -> 0
E52: =IF(F52<G52,"Montant à Payer","Montant à votre crédit") -> Montant à Payer | F52: =IF((F51-G51)>0,F51-G51,"") -> 253.5 | G52: =IF((G51-F51)>0,G51-F51,"") -> 
C54: Avance Trésorerie | D54: Av.Travaux | E54: Fds Travaux | F54: =IF($F$52<$G$52,"Règlement à faire à l'ordre du Syndicat des Copropriétaires.","") -> Règlement à faire à l'ordre du Syndicat des Copropriétaires.
C55: =VLOOKUP($G2,GESTION!$A$63:$C$82,3,FALSE) -> 195 | D55: =GESTION!$B$88*E99/Tant.Lots.Fds!$H$36 -> 97.5 | E55: =$N$37 -> 0
F56: Le syndic
E87: =AUBERT!$C$8 -> 20 | F87: =AUBERT!$D$8 -> 1er Appel Travaux Electricité
B89: CLE | C89: Designation | E89: V/Tantièmes | G89: V/Quote part
B90: 1 | C90: Charges Générales | E90: =SUMIF($B$12:$G$37,B90,$E$12:$E$37) -> 1950 | G90: =SUMIF($B$12:$B$36,B90,$G$12:$G$36) -> 1170
B91: 2 | C91: Ch.Bâtiment | E91: 230 | G91: =SUMIF($B$12:$B$36,B91,$G$12:$G$36) -> 0
B92: 3 | C92: Ch.Escal.A | E92: 429 | G92: 0
B93: 4 | C93: Ch?Escal.B | E93: 128 | G93: 0
B94: 5 | C94: WW Commun | E94: 414 | G94: 0
B95: 6 | C95: Prov.Eau | E95: 0 | G95: 0
B96: 7 | C96: Cons,Eau | E96: 0 | G96: 0
B97: 8 | E97: 0 | G97: 0
G98: =SUM(G90:G97) -> 1170
B99: 11 | C99: =IF(GESTION!$K$1=1,"Appel Fonds Travaux","Remb,Avance Travaux") -> Remb,Avance Travaux | E99: =SUMIF($B$12:$G$37,B99,$E$12:$E$37) -> 1950 | G99: =SUMIF($B$12:$B$36,B99,$G$12:$G$36) -> 0
B100: 12 | C100: Avance de Trésorerie | E100: =SUMIF($B$12:$G$37,B100,$E$12:$E$37) -> 0 | G100: =SUMIF($B$12:$B$36,B100,$G$12:$G$36) -> 0
G101: =G98+G99+G100 -> 1170 | H101: =G101+G38+G39-G40-G41 -> 0
C103: Financement des travaux | G103: =G39 -> -916.5

Sheet FONTAINE
A1: =GESTION!A1 -> Syndicat des Copropriétaires
A2: =GESTION!A2 -> 27 rue de PARIS | G2: 450.005 | H2: =VLOOKUP($G$2,Copropriétaires!$A$6:'Copropriétaires'!$L$25,3,FALSE) -> Mme FONTAINE
A3: =GESTION!A3 -> 08200 LETROU | H3: =VLOOKUP($G$2,Copropriétaires!$A$6:'Copropriétaires'!$L$25,7,FALSE) -> 10 rue de la Paix
H4: =VLOOKUP($G$2,Copropriétaires!$A$6:'Copropriétaires'!$L$25,10,FALSE) -> 85340 Olonne sur Mer
D5: Date d'avis: | E5: =GESTION!$D$4 -> 20/10/17
D6: Exigible | E6: =GESTION!$D$5 -> 01//12/17
A8: Lots 12, 14, 17 ,21, 22 | C8: =GESTION!$G$4 -> 20 | D8: =CONCATENATE(GESTION!$H$4," ",GESTION!$H$5) -> 1er Appel Travaux Electricité
A9: 24, 27 | B9: 2060/10000 | D9: =CONCATENATE("Exercice du ",GESTION!$E$1," ",GESTION!$F$1," au ",GESTION!$E$2," ",GESTION!$F$2) -> Exercice du 1er janvier 2017 au 31 décembre. 2017 | G9: =OR(GESTION!G4=8,GESTION!G4=16,GESTION!G4=24,GESTION!G4=32,GESTION!G4=36) -> FALSE
I10: =GESTION!$L$1 -> 80 | J10: %
A11: LOT | B11: CLE | C11: Designation | D11: A répartir | E11: V/Tantièmes | F11: Tantièmes Gén. | G11: V/Quote part | H11: FONDS | I11: Affectation | J11: Fd Restant | K11: TVA | L11: Q.P. T.V.A
A12: 12 | C12: =VLOOKUP(A12,Tant.Lots.Fds!$A$5:$B$35,2) -> Cave N° 2
A13: 12 | B13: 1 | C13: =VLOOKUP(B13,GESTION!$A$12:$B$26,2) -> Ch Gén. | D13: =VLOOKUP(B13,GESTION!$A$12:$AQ$27,GESTION!$G$4,0) -> 6000 | E13: =VLOOKUP(A13,Tant.Lots.Fds!$A$5:$AB$35,B13+7) -> 40 | F13: =VLOOKUP(99,Tant.Lots.Fds!$A$36:$O$36,B13+7) -> 10000 | G13: =ROUND(D13*E13/F13,2) -> 24 | K13: =IF(B13<>"",VLOOKUP(B13,GESTION!$A$12:$AQ$25,GESTION!$G$4+2),0)*((GESTION!$J$1=2)+(GESTION!$K$1=3)) -> 0 | L13: =IF($K13<>0,ROUND($K13*$E13/$F13,2),0) -> 0
A14: 12 | B14: 2 | C14: =VLOOKUP(B14,GESTION!$A$12:$B$26,2) -> Ch.Bât. | D14: =VLOOKUP(B14,GESTION!$A$12:$AQ$27,GESTION!$G$4,0) -> 0 | E14: =VLOOKUP(A14,Tant.Lots.Fds!$A$5:$AB$35,B14+7) -> 5 | F14: =VLOOKUP(99,Tant.Lots.Fds!$A$36:$O$36,B14+7) -> 1000 | G14: =ROUND(D14*E14/F14,2) -> 0 | K14: =IF(B14<>"",VLOOKUP(B14,GESTION!$A$12:$AQ$25,GESTION!$G$4+2),0)*((GESTION!$J$1=2)+(GESTION!$K$1=3)) -> 0 | L14: =IF($K14<>0,ROUND($K14*$E14/$F14,2),0) -> 0
A15: 12 | B15: 3 | C15: =VLOOKUP(B15,GESTION!$A$12:$B$26,2) -> Ch.Escal.A | D15: =VLOOKUP(B15,GESTION!$A$12:$AQ$27,GESTION!$G$4,0) -> 0 | E15: =VLOOKUP(A15,Tant.Lots.Fds!$A$5:$AB$35,B15+7) -> 79 | F15: =VLOOKUP(99,Tant.Lots.Fds!$A$36:$O$36,B15+7) -> 1000 | G15: =ROUND(D15*E15/F15,2) -> 0 | K15: =IF(B15<>"",VLOOKUP(B15,GESTION!$A$12:$AQ$25,GESTION!$G$4+2),0)*((GESTION!$J$1=2)+(GESTION!$K$1=3)) -> 0 | L15: =IF($K15<>0,ROUND($K15*$E15/$F15,2),0) -> 0
A16: 12 | B16: 11 | C16: =IF(GESTION!$K$1=1,"Appel Fonds Travaux","Remb,Avance Travaux") -> Remb,Avance Travaux | D16: =VLOOKUP(B16,GESTION!$A$12:$AQ$27,GESTION!$G$4,0)*(GESTION!$J$1=1)+(VLOOKUP(B16,GESTION!$A$12:$AQ$27,41,0)*(GESTION!$G$4=41)) -> 0 | E16: =VLOOKUP(A16,Tant.Lots.Fds!$A$5:$AB$35,8) -> 40 | F16: =VLOOKUP(99,Tant.Lots.Fds!$A$36:$O$36,8) -> 10000 | G16: =ROUND(D16*E16/F16,2) -> 0 | L16: =IF(J16<>0,ROUND(J16*D16/E16,2),"") -> 
A17: 12 | G17: =SUM(G13:G16) -> 24 | H17: =VLOOKUP(A17,FdsTravLots!$A$4:'FdsTravLots'!$C$35,3,0)*(GESTION!$K$1=2) -> 18.8 | I17: =IF(H17>ROUND(G17*$I$10/100,2),ROUND(G17*$I$10/100,2),H17)*-1*(G17>0) -> -18.8 | J17: =H17+I17 -> 0 | L17: =SUM(L13:L16) -> 0 | N17: =VLOOKUP(A17,FdsTravLots!$A$4:$D$35,3,0)+VLOOKUP(A17,FdsTravLots!$A$4:$D$35,4,0) -> 0
A24: 17 | C24: =VLOOKUP(A24,Tant.Lots.Fds!$A$5:$B$35,2) -> Cave N° 7
A25: 17 | B25: 1 | C25: =VLOOKUP(B25,GESTION!$A$12:$B$26,2) -> Ch Gén. | D25: =VLOOKUP(B25,GESTION!$A$12:$AQ$27,GESTION!$G$4,0) -> 6000 | E25: =VLOOKUP(A25,Tant.Lots.Fds!$A$5:$AB$35,B25+7) -> 40 | F25: =VLOOKUP(99,Tant.Lots.Fds!$A$36:$O$36,B25+7) -> 10000 | G25: =ROUND(D25*E25/F25,2) -> 24 | K25: =IF(B25<>"",VLOOKUP(B25,GESTION!$A$12:$AQ$25,GESTION!$G$4+2),0)*((GESTION!$J$1=2)+(GESTION!$K$1=3)) -> 0 | L25: =IF($K25<>0,ROUND($K25*$E25/$F25,2),0) -> 0
A26: 17 | B26: 2 | C26: =VLOOKUP(B26,GESTION!$A$12:$B$26,2) -> Ch.Bât. | D26: =VLOOKUP(B26,GESTION!$A$12:$AQ$27,GESTION!$G$4,0) -> 0 | E26: =VLOOKUP(A26,Tant.Lots.Fds!$A$5:$AB$35,B26+7) -> 5 | F26: =VLOOKUP(99,Tant.Lots.Fds!$A$36:$O$36,B26+7) -> 1000 | G26: =ROUND(D26*E26/F26,2) -> 0 | K26: =IF(B26<>"",VLOOKUP(B26,GESTION!$A$12:$AQ$25,GESTION!$G$4+2),0)*((GESTION!$J$1=2)+(GESTION!$K$1=3)) -> 0 | L26: =IF($K26<>0,ROUND($K26*$E26/$F26,2),0) -> 0
A27: 17 | B27: 3 | C27: =VLOOKUP(B27,GESTION!$A$12:$B$26,2) -> Ch.Escal.A | D27: =VLOOKUP(B27,GESTION!$A$12:$AQ$27,GESTION!$G$4,0) -> 0 | E27: =VLOOKUP(A27,Tant.Lots.Fds!$A$5:$AB$35,B27+7) -> 79 | F27: =VLOOKUP(99,Tant.Lots.Fds!$A$36:$O$36,B27+7) -> 1000 | G27: =ROUND(D27*E27/F27,2) -> 0 | K27: =IF(B27<>"",VLOOKUP(B27,GESTION!$A$12:$AQ$25,GESTION!$G$4+2),0)*((GESTION!$J$1=2)+(GESTION!$K$1=3)) -> 0 | L27: =IF($K27<>0,ROUND($K27*$E27/$F27,2),0) -> 0
A28: 17 | B28: 11 | C28: =IF(GESTION!$K$1=1,"Appel Fonds Travaux","Remb,Avance Travaux") -> Remb,Avance Travaux | D28: =VLOOKUP(B28,GESTION!$A$12:$AQ$27,GESTION!$G$4,0)*(GESTION!$J$1=1)+(VLOOKUP(B28,GESTION!$A$12:$AQ$27,41,0)*(GESTION!$G$4=41)) -> 0 | E28: =VLOOKUP(A28,Tant.Lots.Fds!$A$5:$AB$35,8) -> 40 | F28: =VLOOKUP(99,Tant.Lots.Fds!$A$36:$O$36,8) -> 10000 | G28: =ROUND(D28*E28/F28,2) -> 0 | L28: =IF(J28<>0,ROUND(J28*D28/E28,2),"") -> 
A29: 17 | G29: =SUM(G25:G28) -> 24 | H29: =VLOOKUP(A29,FdsTravLots!$A$4:'FdsTravLots'!$C$35,3,0)*(GESTION!$K$1=2) -> 18.8 | I29: =IF(H29>ROUND(G29*$I$10/100,2),ROUND(G29*$I$10/100,2),H29)*-1*(G29>0) -> -18.8 | J29: =H29+I29 -> 0 | L29: =SUM(L25:L28) -> 0 | N29: =VLOOKUP(A29,FdsTravLots!$A$4:$D$35,3,0)+VLOOKUP(A29,FdsTravLots!$A$4:$D$35,4,0) -> 0
A30: 21 | C30: =VLOOKUP(A30,Tant.Lots.Fds!$A$5:$B$35,2) -> Appartement
A31: 21 | B31: 1 | C31: =VLOOKUP(B31,GESTION!$A$12:$B$26,2) -> Ch Gén. | D31: =VLOOKUP(B31,GESTION!$A$12:$AQ$27,GESTION!$G$4,0) -> 6000 | E31: =VLOOKUP(A31,Tant.Lots.Fds!$A$5:$AB$35,B31+7) -> 760 | F31: =VLOOKUP(99,Tant.Lots.Fds!$A$36:$O$36,B31+7) -> 10000 | G31: =ROUND(D31*E31/F31,2) -> 456 | K31: =IF(B31<>"",VLOOKUP(B31,GESTION!$A$12:$AQ$25,GESTION!$G$4+2),0)*((GESTION!$J$1=2)+(GESTION!$K$1=3)) -> 0 | L31: =IF($K31<>0,ROUND($K31*$E31/$F31,2),0) -> 0
A32: 21 | B32: 2 | C32: =VLOOKUP(B32,GESTION!$A$12:$B$26,2) -> Ch.Bât. | D32: =VLOOKUP(B32,GESTION!$A$12:$AQ$27,GESTION!$G$4,0) -> 0 | E32: =VLOOKUP(A32,Tant.Lots.Fds!$A$5:$AB$35,B32+7) -> 89 | F32: =VLOOKUP(99,Tant.Lots.Fds!$A$36:$O$36,B32+7) -> 1000 | G32: 0 | K32: =IF(B32<>"",VLOOKUP(B32,GESTION!$A$12:$AQ$25,GESTION!$G$4+2),0)*((GESTION!$J$1=2)+(GESTION!$K$1=3)) -> 0 | L32: =IF($K32<>0,ROUND($K32*$E32/$F32,2),0) -> 0
A33: 21 | B33: 4 | C33: =VLOOKUP(B33,GESTION!$A$12:$B$26,2) -> Ch Escal B | D33: =VLOOKUP(B33,GESTION!$A$12:$AQ$27,GESTION!$G$4,0) -> 0 | E33: =VLOOKUP(A33,Tant.Lots.Fds!$A$5:$AB$35,B33+7) -> 124 | F33: =VLOOKUP(99,Tant.Lots.Fds!$A$36:$O$36,B33+7) -> 1000 | G33: 0 | K33: =IF(B33<>"",VLOOKUP(B33,GESTION!$A$12:$AQ$25,GESTION!$G$4+2),0)*((GESTION!$J$1=2)+(GESTION!$K$1=3)) -> 0 | L33: 0
A34: 21 | B34: 5 | C34: Wc Commun | D34: =VLOOKUP(B34,GESTION!$A$12:$AQ$27,GESTION!$G$4,0) -> 0 | E34: =VLOOKUP(A34,Tant.Lots.Fds!$A$5:$AB$35,B34+7) -> 401 | F34: =VLOOKUP(99,Tant.Lots.Fds!$A$36:$O$36,B34+7) -> 1000 | G34: 0 | K34: =IF(B34<>"",VLOOKUP(B34,GESTION!$A$12:$AQ$25,GESTION!$G$4+2),0)*((GESTION!$J$1=2)+(GESTION!$K$1=3)) -> 0 | L34: 0
A35: 21 | B35: 6 | C35: =VLOOKUP(B35,GESTION!$A$12:$B$26,2) -> Provision Eau | D35: =VLOOKUP(B35,GESTION!$A$12:$AQ$27,GESTION!$G$4,0)*(GESTION!$J$1=1) -> 0 | E35: =VLOOKUP(A35,Tant.Lots.Fds!$A$5:$Z$35,13,0)*(GESTION!$J$1=1) -> 0 | F35: =VLOOKUP(99,Tant.Lots.Fds!$A$36:$O$36,B35+7) -> 1 | G35: 0 | K35: =IF(B35<>"",VLOOKUP(B35,GESTION!$A$12:$AQ$25,GESTION!$G$4+2),0)*((GESTION!$J$1=2)+(GESTION!$K$1=3)) -> 0 | L35: 0
A36: 21 | B36: 7 | C36: =VLOOKUP(B36,GESTION!$A$12:$B$26,2) -> EAU Individuelle | D36: =VLOOKUP(B36,GESTION!$A$12:$AQ$27,GESTION!$G$4,0)*((GESTION!$J$1=2)+(GESTION!$K$1=3)) -> 0 | E36: =VLOOKUP(A36,Tant.Lots.Fds!$A$5:$Z$35,14,0)*((GESTION!$J$1=2)+(GESTION!$K$1=3)) -> 0 | F36: =VLOOKUP(99,Tant.Lots.Fds!$A$36:$O$36,B36+7)+(Tant.Lots.Fds!$N$36=0) -> 760 | G36: 0 | K36: =IF(B36<>"",VLOOKUP(B36,GESTION!$A$12:$AQ$25,GESTION!$G$4+2),0)*((GESTION!$J$1=2)+(GESTION!$K$1=3)) -> 0 | L36: 0
A37: 21 | B37: 8 | K37: =IF(B37<>"",VLOOKUP(B37,GESTION!$A$12:$AQ$25,GESTION!$G$4+2),0)*((GESTION!$J$1=2)+(GESTION!$K$1=3)) -> 0 | L37: 0
A38: 21 | B38: 11 | C38: =IF(GESTION!$K$1=1,"Appel Fonds Travaux","Remb,Avance Travaux") -> Remb,Avance Travaux | D38: =VLOOKUP(B38,GESTION!$A$12:$AQ$27,GESTION!$G$4,0)*(GESTION!$J$1=1)+(VLOOKUP(B38,GESTION!$A$12:$AQ$27,41,0)*(GESTION!$G$4=41)) -> 0 | E38: =VLOOKUP(A38,Tant.Lots.Fds!$A$5:$AB$35,8) -> 760 | F38: =VLOOKUP(99,Tant.Lots.Fds!$A$36:$O$36,8) -> 10000 | G38: 0 | L38: =IF(J38<>0,ROUND(J38*D38/E38,2),"") -> 
A39: 21 | G39: =SUM(G31:G38) -> 456 | H39: =VLOOKUP(A39,FdsTravLots!$A$4:'FdsTravLots'!$C$35,3,0)*(GESTION!$K$1=2) -> 357.2 | I39: =IF(H39>ROUND(G39*$I$10/100,2),ROUND(G39*$I$10/100,2),H39)*-1*(G39>0) -> -357.2 | J39: =H39+I39 -> 0 | L39: =SUM(L31:L38) -> 0 | N39: =VLOOKUP(A39,FdsTravLots!$A$4:$D$35,3,0)+VLOOKUP(A39,FdsTravLots!$A$4:$D$35,4,0) -> 0
A50: 24 | C50: =VLOOKUP(A50,Tant.Lots.Fds!$A$5:$B$35,2) -> W.C.
A51: 24 | B51: 1 | C51: =VLOOKUP(B51,GESTION!$A$12:$B$26,2) -> Ch Gén. | D51: =VLOOKUP(B51,GESTION!$A$12:$AQ$27,GESTION!$G$4,0) -> 6000 | E51: =VLOOKUP(A51,Tant.Lots.Fds!$A$5:$AB$35,B51+7) -> 30 | F51: =VLOOKUP(99,Tant.Lots.Fds!$A$36:$O$36,B51+7) -> 10000 | G51: =ROUND(D51*E51/F51,2) -> 18 | K51: =IF(B51<>"",VLOOKUP(B51,GESTION!$A$12:$AQ$25,GESTION!$G$4+2),0)*((GESTION!$J$1=2)+(GESTION!$K$1=3)) -> 0 | L51: =IF($K51<>0,ROUND($K51*$E51/$F51,2),0) -> 0
A52: 24 | B52: 2 | C52: =VLOOKUP(B52,GESTION!$A$12:$B$26,2) -> Ch.Bât. | D52: =VLOOKUP(B52,GESTION!$A$12:$AQ$27,GESTION!$G$4,0) -> 0 | E52: =VLOOKUP(A52,Tant.Lots.Fds!$A$5:$AB$35,B52+7) -> 4 | F52: =VLOOKUP(99,Tant.Lots.Fds!$A$36:$O$36,B52+7) -> 1000 | G52: =ROUND(D52*E52/F52,2) -> 0 | K52: =IF(B52<>"",VLOOKUP(B52,GESTION!$A$12:$AQ$25,GESTION!$G$4+2),0)*((GESTION!$J$1=2)+(GESTION!$K$1=3)) -> 0 | L52: =IF($K52<>0,ROUND($K52*$E52/$F52,2),0) -> 0
A53: 24 | B53: 4 | C53: =VLOOKUP(B53,GESTION!$A$12:$B$26,2) -> Ch Escal B | D53: =VLOOKUP(B53,GESTION!$A$12:$AQ$27,GESTION!$G$4,0) -> 0 | E53: =VLOOKUP(A53,Tant.Lots.Fds!$A$5:$AB$35,B53+7) -> 5 | F53: =VLOOKUP(99,Tant.Lots.Fds!$A$36:$O$36,B53+7) -> 1000 | G53: =ROUND(D53*E53/F53,2) -> 0 | K53: =IF(B53<>"",VLOOKUP(B53,GESTION!$A$12:$AQ$25,GESTION!$G$4+2),0)*((GESTION!$J$1=2)+(GESTION!$K$1=3)) -> 0 | L53: =IF($K53<>0,ROUND($K53*$E53/$F53,2),0) -> 0
A54: 24 | B54: 8 | K54: =IF(B54<>"",VLOOKUP(B54,GESTION!$A$12:$AQ$25,GESTION!$G$4+2),0)*((GESTION!$J$1=2)+(GESTION!$K$1=3)) -> 0 | L54: =IF($K54<>0,ROUND($K54*$E54/$F54,2),0) -> 0
A55: 24 | B55: 11 | C55: =IF(GESTION!$K$1=1,"Appel Fonds Travaux","Remb,Avance Travaux") -> Remb,Avance Travaux | D55: =VLOOKUP(B55,GESTION!$A$12:$AQ$27,GESTION!$G$4,0)*(GESTION!$J$1=1)+(VLOOKUP(B55,GESTION!$A$12:$AQ$27,41,0)*(GESTION!$G$4=41)) -> 0 | E55: =VLOOKUP(A55,Tant.Lots.Fds!$A$5:$AB$35,8) -> 30 | F55: =VLOOKUP(99,Tant.Lots.Fds!$A$36:$O$36,8) -> 10000 | G55: =ROUND(D55*E55/F55,2) -> 0 | L55: =IF(J55<>0,ROUND(J55*D55/E55,2),"") -> 
A56: 24 | G56: =SUM(G51:G55) -> 18 | H56: =VLOOKUP(A56,FdsTravLots!$A$4:'FdsTravLots'!$C$35,3,0)*(GESTION!$K$1=2) -> 14.1 | I56: =IF(H56>ROUND(G56*$I$10/100,2),ROUND(G56*$I$10/100,2),H56)*-1*(G56>0) -> -14.1 | J56: =H56+I56 -> 0 | L56: =SUM(L51:L55) -> 0 | N56: =VLOOKUP(A56,FdsTravLots!$A$4:$D$35,3,0)+VLOOKUP(A56,FdsTravLots!$A$4:$D$35,4,0) -> 0
A57: 27 | C57: =VLOOKUP(A57,Tant.Lots.Fds!$A$5:$B$35,2) -> Appartement
A58: 27 | B58: 1 | C58: =VLOOKUP(B58,GESTION!$A$12:$B$26,2) -> Ch Gén. | D58: =VLOOKUP(B58,GESTION!$A$12:$AQ$27,GESTION!$G$4,0) -> 6000 | E58: =VLOOKUP(A58,Tant.Lots.Fds!$A$5:$AB$35,B58+7) -> 810 | F58: =VLOOKUP(99,Tant.Lots.Fds!$A$36:$O$36,B58+7) -> 10000 | G58: =ROUND(D58*E58/F58,2) -> 486 | K58: =IF(B58<>"",VLOOKUP(B58,GESTION!$A$12:$AQ$25,GESTION!$G$4+2),0)*((GESTION!$J$1=2)+(GESTION!$K$1=3)) -> 0 | L58: =IF($K58<>0,ROUND($K58*$E58/$F58,2),0) -> 0
A59: 27 | B59: 2 | C59: =VLOOKUP(B59,GESTION!$A$12:$B$26,2) -> Ch.Bât. | D59: =VLOOKUP(B59,GESTION!$A$12:$AQ$27,GESTION!$G$4,0) -> 0 | E59: =VLOOKUP(A59,Tant.Lots.Fds!$A$5:$AB$35,B59+7) -> 95 | F59: =VLOOKUP(99,Tant.Lots.Fds!$A$36:$O$36,B59+7) -> 1000 | G59: =ROUND(D59*E59/F59,2) -> 0 | K59: =IF(B59<>"",VLOOKUP(B59,GESTION!$A$12:$AQ$25,GESTION!$G$4+2),0)*((GESTION!$J$1=2)+(GESTION!$K$1=3)) -> 0 | L59: 0
A60: 27 | B60: 4 | C60: =VLOOKUP(B60,GESTION!$A$12:$B$26,2) -> Ch Escal B | D60: =VLOOKUP(B60,GESTION!$A$12:$AQ$27,GESTION!$G$4,0) -> 0 | E60: =VLOOKUP(A60,Tant.Lots.Fds!$A$5:$AB$35,B60+7) -> 139 | F60: =VLOOKUP(99,Tant.Lots.Fds!$A$36:$O$36,B60+7) -> 1000 | G60: 0 | K60: =IF(B60<>"",VLOOKUP(B60,GESTION!$A$12:$AQ$25,GESTION!$G$4+2),0)*((GESTION!$J$1=2)+(GESTION!$K$1=3)) -> 0 | L60: 0
A61: 27 | B61: 6 | C61: =VLOOKUP(B61,GESTION!$A$12:$B$26,2) -> Provision Eau | D61: =VLOOKUP(B61,GESTION!$A$12:$AQ$27,GESTION!$G$4,0)*(GESTION!$J$1=1) -> 0 | E61: =VLOOKUP(A61,Tant.Lots.Fds!$A$5:$Z$35,13,0)*(GESTION!$J$1=1) -> 0 | F61: =VLOOKUP(99,Tant.Lots.Fds!$A$36:$O$36,B61+7) -> 1 | G61: 0 | K61: =IF(B61<>"",VLOOKUP(B61,GESTION!$A$12:$AQ$25,GESTION!$G$4+2),0)*((GESTION!$J$1=2)+(GESTION!$K$1=3)) -> 0 | L61: 0
A62: 27 | B62: 7 | C62: =VLOOKUP(B62,GESTION!$A$12:$B$26,2) -> EAU Individuelle | D62: =VLOOKUP(B62,GESTION!$A$12:$AQ$27,GESTION!$G$4,0)*((GESTION!$J$1=2)+(GESTION!$K$1=3)) -> 0 | E62: =VLOOKUP(A62,Tant.Lots.Fds!$A$5:$Z$35,14,0)*((GESTION!$J$1=2)+(GESTION!$K$1=3)) -> 0 | F62: =VLOOKUP(99,Tant.Lots.Fds!$A$36:$O$36,B62+7)+(Tant.Lots.Fds!$N$36=0) -> 760 | G62: 0 | K62: =IF(B62<>"",VLOOKUP(B62,GESTION!$A$12:$AQ$25,GESTION!$G$4+2),0)*((GESTION!$J$1=2)+(GESTION!$K$1=3)) -> 0 | L62: 0
A63: 27 | B63: 8 | K63: =IF(B63<>"",VLOOKUP(B63,GESTION!$A$12:$AQ$25,GESTION!$G$4+2),0)*((GESTION!$J$1=2)+(GESTION!$K$1=3)) -> 0 | L63: 0
A64: 27 | B64: 11 | C64: =IF(GESTION!$K$1=1,"Appel Fonds Travaux","Remb,Avance Travaux") -> Remb,Avance Travaux | D64: =VLOOKUP(B64,GESTION!$A$12:$AQ$27,GESTION!$G$4,0)*(GESTION!$J$1=1)+(VLOOKUP(B64,GESTION!$A$12:$AQ$27,41,0)*(GESTION!$G$4=41)) -> 0 | E64: =VLOOKUP(A64,Tant.Lots.Fds!$A$5:$AB$35,8) -> 810 | F64: =VLOOKUP(99,Tant.Lots.Fds!$A$36:$O$36,8) -> 10000 | G64: 0 | L64: =IF(J64<>0,ROUND(J64*D64/E64,2),"") -> 
A65: 27 | G65: =SUM(G58:G64) -> 486 | H65: =VLOOKUP(A65,FdsTravLots!$A$4:'FdsTravLots'!$C$35,3,0)*(GESTION!$K$1=2) -> 380.7 | I65: =IF(H65>ROUND(G65*$I$10/100,2),ROUND(G65*$I$10/100,2),H65)*-1*(G65>0) -> -380.7 | J65: =H65+I65 -> 0 | L65: =SUM(L58:L64) -> 0 | N65: =VLOOKUP(A65,FdsTravLots!$A$4:$D$35,3,0)+VLOOKUP(A65,FdsTravLots!$A$4:$D$35,4,0) -> 0
A66: 1 | B66: 12 | C66: Avance Trésorerie | D66: =VLOOKUP(B66,GESTION!$A$12:'GESTION'!$AQ$25,GESTION!$G$4,0)*(GESTION!G4=40) -> 0 | E66: =SUMIF(B12:E65,1,E12:E65)*(GESTION!$G$4=40) -> 0 | F66: =VLOOKUP(99,Tant.Lots.Fds!$A$36:$O$36,8)*(GESTION!$G$4=40) -> 0 | G66: =ROUND(D66*E66/10000,2) -> 0
F67: TOTAL | G67: =(SUM(G12:G65)/2)+G66 -> 1008 | H67: =SUM(H12:H66) -> 789.6 | I67: =SUM(I12:I66) -> -789.6 | J67: =SUM(J12:J66) -> 0 | L67: =SUM(L12:L66)/2 -> 0 | N67: =SUM(N12:N65) -> 0
E68: Provisions | G68: =SUM(K68:N68)*-1 -> 0 | K68: =IF(GESTION!$G$4=8,VLOOKUP($G$2,GESTION!$A$35:$AF$54,GESTION!$G$4-1,FALSE),"") ->  | L68: =IF(GESTION!$G$4=16,VLOOKUP($G$2,GESTION!$A$35:$AF$54,GESTION!$G$4-1,FALSE),"") ->  | M68: =IF(GESTION!$G$4=24,VLOOKUP($G$2,GESTION!$A$35:$AF$54,GESTION!$G$4-1,FALSE),"") ->  | N68: =IF(GESTION!$G$4=32,VLOOKUP($G$2,GESTION!$A$35:$AF$54,GESTION!$G$4-1,FALSE),"") -> 
E69: Financement Fonds Travaux | G69: =I67 -> -789.6 | K69: 8 | L69: 16 | M69: 24 | N69: 32
D70: SOLDE en votre faveur………………….. | G70: =IF(AND(H$4<>36,G67+G68+G69<0),G67+G68+G69,0) -> 0 | K70: =GESTION!$G$4 -> 20 | L70: =GESTION!$H$4 -> 1er Appel Travaux
D71: SOLDE dû au syndicat……………. | G71: =IF(AND($G$4<>36,G67+G68+G69>0),G67+G68+G69,0) -> 218.4
I72: =IF(L67>0,"Dont T.V.A.","") ->  | J72: =IF(L67<>0,L67,"") -> 
D73: RELEVE DE COMPTE | L73: La zône grisée n' est pas destinée
L74: a être imprimée et diffusée.
C75: Dates | D75: Libellés des operations | F75: DEBIT | G75: CREDIT
F79: =SUM(F76:F78) -> 0 | G79: =SUM(G76:G78) -> 0
C80: =IF(GESTION!$G$4<>36,E36,"") -> 00:00:00 | D80: =IF(GESTION!$G$4<>36,D8,"") -> 1er Appel Travaux Electricité | F80: =G71 -> 218.4 | G80: =IF(G70>0,G70,G70*-1) -> 0
F81: =SUM(F79:F80) -> 218.4 | G81: =SUM(G79:G80) -> 0
E82: =IF(F82<G82,"Montant à Payer","Montant à votre crédit") -> Montant à Payer | F82: =IF((F81-G81)>0,F81-G81,"") -> 218.4 | G82: =IF((G81-F81)>0,G81-F81,"") -> 
C84: Avance Trésorerie | D84: Av.Travaux | E84: Fds Travaux | F84: =IF($F$52<$G$52,"Règlement à faire à l'ordre du Syndicat des Copropriétaires.","") -> 
C85: =VLOOKUP($G2,GESTION!$A$63:$C$82,3,FALSE) -> 168 | D85: =GESTION!$B$88*E99/Tant.Lots.Fds!$H$36 -> 84 | E85: =$N$37 -> 0
F86: Le syndic
E87: =AUBERT!$C$8 -> 20 | F87: =AUBERT!$D$8 -> 1er Appel Travaux Electricité
B89: CLE | C89: Designation | E89: V/Tantièmes | G89: V/Quote part
B90: 1 | C90: Charges Générales | E90: =SUMIF($B$12:$G$66,B90,$E$12:$E$66) -> 1680 | G90: =SUMIF($B$12:$B$66,B90,$G$12:$G$66) -> 1008
B91: 2 | C91: Ch.Bâtiment | E91: =SUMIF($B$12:$G$66,B91,$E$12:$E$66) -> 198 | G91: =SUMIF($B$12:$B$66,B91,$G$12:$G$66) -> 0
B92: 3 | C92: Ch.Escal.A | E92: =SUMIF($B$12:$G$66,B92,$E$12:$E$66) -> 158 | G92: 0
B93: 4 | C93: Ch?Escal.B | E93: =SUMIF($B$12:$B$66,B93,$E$12:$E$66) -> 268 | G93: 0
B94: 5 | C94: WC Commun | E94: =SUMIF($B$12:$G$66,B94,$E$12:$E$66) -> 401 | G94: 0
B95: 6 | C95: Prov.Eau | E95: =SUMIF($B$12:$G$66,B95,$E$12:$E$66) -> 0 | G95: 0
B96: 7 | C96: 07/09/2016Eau | E96: =SUMIF($B$12:$G$66,B96,$E$12:$E$66) -> 0 | G96: 0
B97: 8 | E97: =SUMIF($B$12:$G$66,B97,$E$12:$E$66) -> 0 | G97: 0
G98: =SUM(G90:G97) -> 1008 | Q98: =IF($F$52<$G$52,"Règlement à faire à l'ordre du Syndicat des Copropriétaires.","") -> 
B99: 11 | C99: =IF(GESTION!$K$1=1,"Appel Fonds Travaux","Remb,Avance Travaux") -> Remb,Avance Travaux | E99: =SUMIF($B$12:$G$66,B99,$E$12:$E$37) -> 1680 | G99: =SUMIF($B$12:$B$66,B99,$G$12:$G$66) -> 0
B100: 12 | C100: Avance de Trésorerie | E100: =SUMIF($B$12:$G$37,B100,$E$12:$E$37) -> 0 | G100: =SUMIF($B$12:$B$66,B100,$G$12:$G$66) -> 0
G101: =G98+G99+G100 -> 1008 | H101: =G101+G68+G69-G70-G71 -> 0
C103: Financement des travaux | G103: =G69 -> -789.6

Sheet HUBERT
A1: =GESTION!A1 -> Syndicat des Copropriétaires
A2: =GESTION!A2 -> 27 rue de PARIS | G2: =Copropriétaires!$A$10 -> 450.006 | H2: =VLOOKUP($G$2,Copropriétaires!$A$6:'Copropriétaires'!$L$25,3,FALSE) -> Mr HUBERT
A3: =GESTION!A3 -> 08200 LETROU | H3: =VLOOKUP($G$2,Copropriétaires!$A$6:'Copropriétaires'!$L$25,7,FALSE) -> 27 rue de Paris
H4: =VLOOKUP($G$2,Copropriétaires!$A$6:'Copropriétaires'!$L$25,10,FALSE) -> 08200 LETROU
D5: Date d'avis: | E5: =GESTION!$D$4 -> 20/10/17
D6: Exigible | E6: =GESTION!$D$5 -> 01//12/17
A8: Lots 11, 28, | D8: =GESTION!$G$4 -> 20 | E8: =CONCATENATE(GESTION!$H$4," ",GESTION!$H$5) -> 1er Appel Travaux Electricité
C9: 2230/10000 | E9: =CONCATENATE("Exercice du ",GESTION!$E$1," ",GESTION!$F$1," au ",GESTION!$E$2," ",GESTION!$F$2) -> Exercice du 1er janvier 2017 au 31 décembre. 2017 | H9: =OR(GESTION!G4=8,GESTION!G4=16,GESTION!G4=24,GESTION!G4=32,GESTION!G4=36) -> FALSE
I10: =GESTION!$L$1 -> 80 | J10: %
A11: LOT | B11: CLE | C11: Designation | D11: A répartir | E11: V/Tantièmes | F11: Tantièmes Gén. | G11: V/Quote part | H11: FONDS | I11: Affectation | J11: Fd Restant | K11: T.VA. | L11: Q.P.TVA
A12: 11 | C12: =VLOOKUP(A12,Tant.Lots.Fds!$A$5:$B$35,2) -> Cave N° 1 | I12: =IF(H12<>0,ROUND(H12*E12/F12,2),"") -> 
A13: 11 | B13: 1 | C13: =VLOOKUP(B13,GESTION!$A$12:$B$26,2) -> Ch Gén. | D13: =VLOOKUP(B13,GESTION!$A$12:$AQ$27,GESTION!$G$4,0) -> 6000 | E13: =VLOOKUP(A13,Tant.Lots.Fds!$A$5:$AB$35,B13+7) -> 70 | F13: =VLOOKUP(99,Tant.Lots.Fds!$A$36:$O$36,B13+7) -> 10000 | G13: =ROUND(D13*E13/F13,2) -> 42 | K13: =IF(B13<>"",VLOOKUP(B13,GESTION!$A$12:$AQ$25,GESTION!$G$4+2),0)*((GESTION!$J$1=2)+(GESTION!$K$1=3)) -> 0 | L13: =IF($K13<>0,ROUND($K13*$E13/$F13,2),0) -> 0
A14: 11 | B14: 2 | C14: =VLOOKUP(B14,GESTION!$A$12:$B$26,2) -> Ch.Bât. | D14: =VLOOKUP(B14,GESTION!$A$12:$AQ$27,GESTION!$G$4,0) -> 0 | E14: =VLOOKUP(A14,Tant.Lots.Fds!$A$5:$AB$35,B14+7) -> 8 | F14: =VLOOKUP(99,Tant.Lots.Fds!$A$36:$O$36,B14+7) -> 1000 | G14: =ROUND(D14*E14/F14,2) -> 0 | K14: =IF(B14<>"",VLOOKUP(B14,GESTION!$A$12:$AQ$25,GESTION!$G$4+2),0)*((GESTION!$J$1=2)+(GESTION!$K$1=3)) -> 0 | L14: =IF($K14<>0,ROUND($K14*$E14/$F14,2),0) -> 0
A15: 11 | B15: 3 | C15: =VLOOKUP(B15,GESTION!$A$12:$B$26,2) -> Ch.Escal.A | D15: =VLOOKUP(B15,GESTION!$A$12:$AQ$27,GESTION!$G$4,0) -> 0 | E15: =VLOOKUP(A15,Tant.Lots.Fds!$A$5:$AB$35,B15+7) -> 127 | F15: =VLOOKUP(99,Tant.Lots.Fds!$A$36:$O$36,B15+7) -> 1000 | G15: =ROUND(D15*E15/F15,2) -> 0 | K15: =IF(B15<>"",VLOOKUP(B15,GESTION!$A$12:$AQ$25,GESTION!$G$4+2),0)*((GESTION!$J$1=2)+(GESTION!$K$1=3)) -> 0 | L15: =IF($K15<>0,ROUND($K15*$E15/$F15,2),0) -> 0
A16: 11 | B16: 11 | C16: =IF(GESTION!$K$1=1,"Appel Fonds Travaux","Remb,Avance Travaux") -> Remb,Avance Travaux | D16: =VLOOKUP(B16,GESTION!$A$12:$AQ$27,GESTION!$G$4,0)*(GESTION!$J$1=1)+(VLOOKUP(B16,GESTION!$A$12:$AQ$27,41,0)*(GESTION!$G$4=41)) -> 0 | E16: =VLOOKUP(A16,Tant.Lots.Fds!$A$5:$AB$35,8) -> 70 | F16: =VLOOKUP(99,Tant.Lots.Fds!$A$36:$O$36,8) -> 10000 | G16: =ROUND(D16*E16/F16,2) -> 0 | L16: =IF(J16<>0,ROUND(J16*D16/E16,2),"") -> 
A17: 11 | G17: =SUM(G13:G16) -> 42 | H17: =VLOOKUP(A17,FdsTravLots!$A$4:'FdsTravLots'!$C$35,3,0)*(GESTION!$K$1=2) -> 32.9 | I17: =IF(H17>ROUND(G17*$I$10/100,2),ROUND(G17*$I$10/100,2),H17)*-1*(G17>0) -> -32.9 | J17: =H17+I17 -> 0 | L17: =SUM(L13:L16) -> 0 | N17: =VLOOKUP(A17,FdsTravLots!$A$4:$D$35,3,0)+VLOOKUP(A17,FdsTravLots!$A$4:$D$35,4,0) -> 0
A18: 28 | C18: =VLOOKUP(A18,Tant.Lots.Fds!$A$5:$B$35,2) -> Appartement | I18: =IF(H18<>0,ROUND(H18*E18/F18,2),"") -> 
A19: 28 | B19: 1 | C19: =VLOOKUP(B19,GESTION!$A$12:$B$26,2) -> Ch Gén. | D19: =VLOOKUP(B19,GESTION!$A$12:$AQ$27,GESTION!$G$4,0) -> 6000 | E19: =VLOOKUP(A19,Tant.Lots.Fds!$A$5:$AB$35,B19+7) -> 2260 | F19: =VLOOKUP(99,Tant.Lots.Fds!$A$36:$O$36,B19+7) -> 10000 | G19: =ROUND(D19*E19/F19,2) -> 1356 | K19: =IF(B19<>"",VLOOKUP(B19,GESTION!$A$12:$AQ$25,GESTION!$G$4+2),0)*((GESTION!$J$1=2)+(GESTION!$K$1=3)) -> 0 | L19: =IF($K19<>0,ROUND($K19*$E19/$F19,2),0) -> 0
A20: 28 | B20: 2 | C20: =VLOOKUP(B20,GESTION!$A$12:$B$26,2) -> Ch.Bât. | D20: =VLOOKUP(B20,GESTION!$A$12:$AQ$27,GESTION!$G$4,0) -> 0 | E20: =VLOOKUP(A20,Tant.Lots.Fds!$A$5:$AB$35,B20+7) -> 265 | F20: =VLOOKUP(99,Tant.Lots.Fds!$A$36:$O$36,B20+7) -> 1000 | G20: 0 | K20: =IF(B20<>"",VLOOKUP(B20,GESTION!$A$12:$AQ$25,GESTION!$G$4+2),0)*((GESTION!$J$1=2)+(GESTION!$K$1=3)) -> 0 | L20: 0
A21: 28 | B21: 4 | C21: =VLOOKUP(B21,GESTION!$A$12:$B$26,2) -> Ch Escal B | D21: =VLOOKUP(B21,GESTION!$A$12:$AQ$27,GESTION!$G$4,0) -> 0 | E21: =VLOOKUP(A21,Tant.Lots.Fds!$A$5:$AB$35,B21+7) -> 353 | F21: =VLOOKUP(99,Tant.Lots.Fds!$A$36:$O$36,B21+7) -> 1000 | G21: 0 | K21: =IF(B21<>"",VLOOKUP(B21,GESTION!$A$12:$AQ$25,GESTION!$G$4+2),0)*((GESTION!$J$1=2)+(GESTION!$K$1=3)) -> 0 | L21: 0
A22: 28 | B22: 6 | C22: =VLOOKUP(B22,GESTION!$A$12:$B$26,2) -> Provision Eau | D22: =VLOOKUP(B22,GESTION!$A$12:$AQ$27,GESTION!$G$4,0)*(GESTION!$J$1=1) -> 0 | E22: =VLOOKUP(A22,Tant.Lots.Fds!$A$5:$AB$35,B22+7)*(GESTION!$J$1=1) -> 0 | F22: =VLOOKUP(99,Tant.Lots.Fds!$A$36:$O$36,B22+7) -> 1 | G22: 0 | K22: =IF(B22<>"",VLOOKUP(B22,GESTION!$A$12:$AQ$25,GESTION!$G$4+2),0)*((GESTION!$J$1=2)+(GESTION!$K$1=3)) -> 0 | L22: 0
A23: 28 | B23: 7 | C23: =VLOOKUP(B23,GESTION!$A$12:$B$26,2) -> EAU Individuelle | D23: =VLOOKUP(B23,GESTION!$A$12:$AQ$27,GESTION!$G$4,0)*((GESTION!$J$1=2)+(GESTION!$K$1=3)) -> 0 | E23: =VLOOKUP(A23,Tant.Lots.Fds!$A$5:$Z$35,14,0)*((GESTION!$J$1=2)+(GESTION!$K$1=3)) -> 0 | F23: =VLOOKUP(99,Tant.Lots.Fds!$A$36:$O$36,B23+7)+(Tant.Lots.Fds!$N$36=0) -> 760 | G23: 0 | K23: =IF(B23<>"",VLOOKUP(B23,GESTION!$A$12:$AQ$25,GESTION!$G$4+2),0)*((GESTION!$J$1=2)+(GESTION!$K$1=3)) -> 0 | L23: 0
A24: 28 | B24: 8 | K24: =IF(B24<>"",VLOOKUP(B24,GESTION!$A$12:$AQ$25,GESTION!$G$4+2),0)*((GESTION!$J$1=2)+(GESTION!$K$1=3)) -> 0 | L24: 0
A25: 28 | B25: 11 | C25: =IF(GESTION!$K$1=1,"Appel Fonds Travaux","Remb,Avance Travaux") -> Remb,Avance Travaux | D25: =VLOOKUP(B25,GESTION!$A$12:$AQ$27,GESTION!$G$4,0)*(GESTION!$J$1=1)+(VLOOKUP(B25,GESTION!$A$12:$AQ$27,41,0)*(GESTION!$G$4=41)) -> 0 | E25: =VLOOKUP(A25,Tant.Lots.Fds!$A$5:$AB$35,8) -> 2260 | F25: =VLOOKUP(99,Tant.Lots.Fds!$A$36:$O$36,8) -> 10000 | G25: =ROUND(D25*E25/F25,2) -> 0 | L25: =IF(J25<>0,ROUND(J25*D25/E25,2),"") -> 
A26: 28 | G26: =SUM(G19:G25) -> 1356 | H26: =VLOOKUP(A26,FdsTravLots!$A$4:'FdsTravLots'!$C$35,3,0)*(GESTION!$K$1=2) -> 1062.2 | I26: =IF(H26>ROUND(G26*$I$10/100,2),ROUND(G26*$I$10/100,2),H26)*-1*(G26>0) -> -1062.2 | J26: =H26+I26 -> 0 | L26: =SUM(L19:L25) -> 0 | N26: =VLOOKUP(A26,FdsTravLots!$A$4:$D$35,3,0)+VLOOKUP(A26,FdsTravLots!$A$4:$D$35,4,0) -> 0
A36: 1 | B36: 12 | C36: Avance Trésorerie | D36: =VLOOKUP(B36,GESTION!$A$12:'GESTION'!$AQ$25,GESTION!$G$4,0)*(GESTION!G4=40) -> 0 | E36: =SUMIF(B12:E35,1,E12:E35)*(GESTION!G4=40) -> 0 | F36: =VLOOKUP(99,Tant.Lots.Fds!$A$36:$O$36,8)*(GESTION!$G$4=40) -> 0 | G36: =ROUND(D36*E36/10000,2) -> 0
F37: TOTAL | G37: =(SUM(G12:G35)/2)+G36 -> 1398 | H37: =SUM(H12:H36) -> 1095.1 | I37: =SUM(I12:I36) -> -1095.1 | J37: =SUM(J12:J36) -> 0 | L37: =SUM(L12:L36)/2 -> 0 | N37: =SUM(N13:N36) -> 0
E38: Provisions | G38: =SUM(K38:N38)*-1 -> 0 | K38: =IF(GESTION!$G$4=8,VLOOKUP($G$2,GESTION!$A$35:$AF$54,GESTION!$G$4-1,FALSE),"") ->  | L38: =IF(GESTION!$G$4=16,VLOOKUP($G$2,GESTION!$A$35:$AF$54,GESTION!$G$4-1,FALSE),"") ->  | M38: =IF(GESTION!$G$4=24,VLOOKUP($G$2,GESTION!$A$35:$AF$54,GESTION!$G$4-1,FALSE),"") ->  | N38: =IF(GESTION!$G$4=32,VLOOKUP($G$2,GESTION!$A$35:$AF$54,GESTION!$G$4-1,FALSE),"") -> 
E39: Financement Fonds Travaux | G39: =I37 -> -1095.1 | K39: 8 | L39: 16 | M39: 24 | N39: 32
D40: SOLDE en votre faveur………………….. | G40: =IF(AND(H$4<>36,G37+G38+G39<0),G37+G38+G39,0) -> 0 | K40: =GESTION!$G$4 -> 20 | L40: =GESTION!$H$4 -> 1er Appel Travaux
D41: SOLDE dû au syndicat……………. | G41: =IF(AND($G$4<>36,G37+G38+G39>0),G37+G38+G39,0) -> 302.9
I42: =IF(L37>0,"Dont T.V.A.","") ->  | J42: =IF(L37<>0,L37,"") -> 
D43: RELEVE DE COMPTE | I43: =IF(M6<>0,#REF!,"") ->  | L43: La zône grisée n' est pas destinée
I44: =IF(M6<>0,#REF!,"") ->  | L44: a être imprimée et diffusée.
C45: Dates | D45: Libellés des operations | F45: DEBIT | G45: CREDIT
F49: =SUM(F46:F48) -> 0 | G49: =SUM(G46:G48) -> 0
C50: =IF(GESTION!$G$4<>36,E6,"") -> 01//12/17 | D50: =IF(GESTION!$G$4<>36,D8,"") -> 20 | F50: =G41 -> 302.9 | G50: =IF(G40>0,G40,G40*-1) -> 0
F51: =SUM(F49:F50) -> 302.9 | G51: =SUM(G49:G50) -> 0
E52: =IF(F52<G52,"Montant à Payer","Montant à votre crédit") -> Montant à Payer | F52: =IF((F51-G51)>0,F51-G51,"") -> 302.9 | G52: =IF((G51-F51)>0,G51-F51,"") -> 
C54: Avance Trésorerie | D54: Av.Travaux | E54: Fds Travaux | F54: =IF($F$52<$G$52,"Règlement à faire à l'ordre du Syndicat des Copropriétaires.","") -> Règlement à faire à l'ordre du Syndicat des Copropriétaires.
C55: =VLOOKUP($G2,GESTION!$A$63:$C$82,3,FALSE) -> 233 | D55: =GESTION!$B$88*E99/Tant.Lots.Fds!$H$36 -> 116.5 | E55: =$N$37 -> 0
F56: Le syndic
B57: =IF(G4<>36,"",B6) -> 
E87: =AUBERT!$C$8 -> 20 | F87: =AUBERT!$D$8 -> 1er Appel Travaux Electricité
B89: CLE | C89: Designation | E89: V/Tantièmes | G89: V/Quote part
B90: 1 | C90: Charges Générales | E90: =SUMIF($B$12:$G$37,B90,$E$12:$E$37) -> 2330 | G90: =SUMIF($B$12:$B$36,B90,$G$12:$G$36) -> 1398
B91: 2 | C91: Ch.Bâtiment | E91: =SUMIF($B$12:$G$37,B91,$E$12:$E$37) -> 273 | G91: =SUMIF($B$12:$B$36,B91,$G$12:$G$36) -> 0
B92: 3 | C92: Ch.Escal.A | E92: 127 | G92: 0
B93: 4 | C93: Ch.scal.B | E93: 353 | G93: 0
B94: 5 | C94: WW Commun | E94: 0 | G94: 0
B95: 6 | C95: Prov.Eau | E95: 0 | G95: 0
B96: 7 | C96: Cons. Eau | E96: 0 | G96: 0
B97: 8 | C97: Eau Commune | E97: 0 | G97: 0
G98: =SUM(G90:G97) -> 1398
B99: 11 | C99: =IF(GESTION!$K$1=1,"Appel Fonds Travaux","Remb,Avance Travaux") -> Remb,Avance Travaux | E99: =SUMIF($B$12:$G$37,B99,$E$12:$E$37) -> 2330 | G99: =SUMIF($B$12:$B$36,B99,$G$12:$G$36) -> 0
B100: 12 | C100: Avance de Trésorerie | E100: =SUMIF($B$12:$G$37,B100,$E$12:$E$37) -> 0 | G100: =SUMIF($B$12:$B$36,B100,$G$12:$G$36) -> 0
G101: =G98+G99+G100 -> 1398 | H101: =G101+G38+G39-G40-G41 -> 0
C103: Financement des travaux | G103: =G39 -> -1095.1

Sheet LONGUET
A1: =GESTION!A1 -> Syndicat des Copropriétaires
A2: =GESTION!A2 -> 27 rue de PARIS | G2: =Copropriétaires!$A$11 -> 450.007 | H2: =VLOOKUP($G$2,Copropriétaires!$A$6:'Copropriétaires'!$L$25,3,FALSE) -> Mr LONGUET Jean Pierre
A3: =GESTION!A3 -> 08200 LETROU | H3: =VLOOKUP($G$2,Copropriétaires!$A$6:'Copropriétaires'!$L$25,7,FALSE) -> 9 allée Verte
H4: =VLOOKUP($G$2,Copropriétaires!$A$6:'Copropriétaires'!$L$25,10,FALSE) -> 83270 Saint Cyr sur Mer
D5: Date d'avis: | E5: =GESTION!$D$4 -> 20/10/17
D6: Exigible | E6: =GESTION!$D$5 -> 01//12/17
A8: Lots 15,29, 30, | C8: =GESTION!$G$4 -> 20 | D8: =CONCATENATE(GESTION!$H$4," ",GESTION!$H$5) -> 1er Appel Travaux Electricité
B9: 990/10,000 | D9: =CONCATENATE("Exercice du ",GESTION!$E$1," ",GESTION!$F$1," au ",GESTION!$E$2," ",GESTION!$F$2) -> Exercice du 1er janvier 2017 au 31 décembre. 2017 | H9: =OR(GESTION!G4=8,GESTION!G4=16,GESTION!G4=24,GESTION!G4=32,GESTION!G4=36) -> FALSE
I10: =GESTION!$L$1 -> 80 | J10: %
A11: LOT | B11: CLE | C11: Designation | D11: A répartir | E11: V/Tantièmes | F11: Tantièmes Gén. | G11: V/Quote part | H11: FONDS | I11: Affectation | J11: Fd Restant | K11: T.VA. | L11: Q.P. T.V.A
A12: 15 | C12: =VLOOKUP(A12,Tant.Lots.Fds!$A$5:$B$35,2) -> Cave N° 5 | I12: =IF(H12<>0,ROUND(H12*E12/F12,2),"") -> 
A13: 15 | B13: 1 | C13: =VLOOKUP(B13,GESTION!$A$12:$B$26,2) -> Ch Gén. | D13: =VLOOKUP(B13,GESTION!$A$12:$AQ$27,GESTION!$G$4,0) -> 6000 | E13: =VLOOKUP(A13,Tant.Lots.Fds!$A$5:$AB$35,B13+7) -> 80 | F13: =VLOOKUP(99,Tant.Lots.Fds!$A$36:$O$36,B13+7) -> 10000 | G13: =ROUND(D13*E13/F13,2) -> 48 | K13: =IF(B13<>"",VLOOKUP(B13,GESTION!$A$12:$AQ$25,GESTION!$G$4+2),0)*((GESTION!$J$1=2)+(GESTION!$K$1=3)) -> 0 | L13: =IF($K13<>0,ROUND($K13*$E13/$F13,2),0) -> 0
A14: 15 | B14: 2 | C14: =VLOOKUP(B14,GESTION!$A$12:$B$26,2) -> Ch.Bât. | D14: =VLOOKUP(B14,GESTION!$A$12:$AQ$27,GESTION!$G$4,0) -> 0 | E14: =VLOOKUP(A14,Tant.Lots.Fds!$A$5:$AB$35,B14+7) -> 9 | F14: =VLOOKUP(99,Tant.Lots.Fds!$A$36:$O$36,B14+7) -> 1000 | G14: =ROUND(D14*E14/F14,2) -> 0 | K14: =IF(B14<>"",VLOOKUP(B14,GESTION!$A$12:$AQ$25,GESTION!$G$4+2),0)*((GESTION!$J$1=2)+(GESTION!$K$1=3)) -> 0 | L14: =IF($K14<>0,ROUND($K14*$E14/$F14,2),0) -> 0
A15: 15 | B15: 3 | C15: =VLOOKUP(B15,GESTION!$A$12:$B$26,2) -> Ch.Escal.A | D15: =VLOOKUP(B15,GESTION!$A$12:$AQ$27,GESTION!$G$4,0) -> 0 | E15: =VLOOKUP(A15,Tant.Lots.Fds!$A$5:$AB$35,B15+7) -> 143 | F15: =VLOOKUP(99,Tant.Lots.Fds!$A$36:$O$36,B15+7) -> 1000 | G15: =ROUND(D15*E15/F15,2) -> 0 | K15: =IF(B15<>"",VLOOKUP(B15,GESTION!$A$12:$AQ$25,GESTION!$G$4+2),0)*((GESTION!$J$1=2)+(GESTION!$K$1=3)) -> 0 | L15: =IF($K15<>0,ROUND($K15*$E15/$F15,2),0) -> 0
A16: 15 | B16: 11 | C16: =IF(GESTION!$K$1=1,"Appel Fonds Travaux","Remb,Avance Travaux") -> Remb,Avance Travaux | D16: =VLOOKUP(B16,GESTION!$A$12:$AQ$27,GESTION!$G$4,0)*(GESTION!$J$1=1)+(VLOOKUP(B16,GESTION!$A$12:$AQ$27,41,0)*(GESTION!$G$4=41)) -> 0 | E16: =VLOOKUP(A16,Tant.Lots.Fds!$A$5:$AB$35,8) -> 80 | F16: =VLOOKUP(99,Tant.Lots.Fds!$A$36:$O$36,8) -> 10000 | G16: =ROUND(D16*E16/F16,2) -> 0 | L16: =IF(J16<>0,ROUND(J16*D16/E16,2),"") -> 
A17: 15 | G17: =SUM(G13:G16) -> 48 | H17: =VLOOKUP(A17,FdsTravLots!$A$4:'FdsTravLots'!$C$35,3,0)*(GESTION!$K$1=2) -> 37.6 | I17: =IF(H17>ROUND(G17*$I$10/100,2),ROUND(G17*$I$10/100,2),H17)*-1*(G17>0) -> -37.6 | J17: =H17+I17 -> 0 | L17: =SUM(L13:L16) -> 0 | N17: =VLOOKUP(A17,FdsTravLots!$A$4:$D$35,3,0)+VLOOKUP(A17,FdsTravLots!$A$4:$D$35,4,0) -> 0
A18: 29 | C18: =VLOOKUP(A18,Tant.Lots.Fds!$A$5:$B$35,2) -> Commerce | I18: =IF(H18<>0,ROUND(H18*E18/F18,2),"") -> 
A19: 29 | B19: 1 | C19: =VLOOKUP(B19,GESTION!$A$12:$B$26,2) -> Ch Gén. | D19: =VLOOKUP(B19,GESTION!$A$12:$AQ$27,GESTION!$G$4,0) -> 6000 | E19: =VLOOKUP(A19,Tant.Lots.Fds!$A$5:$AB$35,B19+7) -> 480 | F19: =VLOOKUP(99,Tant.Lots.Fds!$A$36:$O$36,B19+7) -> 10000 | G19: =ROUND(D19*E19/F19,2) -> 288 | K19: =IF(B19<>"",VLOOKUP(B19,GESTION!$A$12:$AQ$25,GESTION!$G$4+2),0)*((GESTION!$J$1=2)+(GESTION!$K$1=3)) -> 0 | L19: =IF($K19<>0,ROUND($K19*$E19/$F19,2),0) -> 0
A20: 29 | B20: 2 | C20: =VLOOKUP(B20,GESTION!$A$12:$B$26,2) -> Ch.Bât. | D20: =VLOOKUP(B20,GESTION!$A$12:$AQ$27,GESTION!$G$4,0) -> 0 | E20: =VLOOKUP(A20,Tant.Lots.Fds!$A$5:$AB$35,B20+7) -> 56 | F20: =VLOOKUP(99,Tant.Lots.Fds!$A$36:$O$36,B20+7) -> 1000 | G20: 0 | K20: =IF(B20<>"",VLOOKUP(B20,GESTION!$A$12:$AQ$25,GESTION!$G$4+2),0)*((GESTION!$J$1=2)+(GESTION!$K$1=3)) -> 0 | L20: =IF($K20<>0,ROUND($K20*$E20/$F20,2),0) -> 0
A21: 29 | B21: 6 | C21: =VLOOKUP(B21,GESTION!$A$12:$B$26,2) -> Provision Eau | D21: =VLOOKUP(B21,GESTION!$A$12:$AQ$27,GESTION!$G$4,0)*(GESTION!$J$1=1) -> 0 | E21: =VLOOKUP(A21,Tant.Lots.Fds!$A$5:$Z$35,13,0)*(GESTION!$J$1=1) -> 0 | F21: =VLOOKUP(99,Tant.Lots.Fds!$A$36:$O$36,B21+7) -> 1 | G21: 0 | K21: =IF(B21<>"",VLOOKUP(B21,GESTION!$A$12:$AQ$25,GESTION!$G$4+2),0)*((GESTION!$J$1=2)+(GESTION!$K$1=3)) -> 0 | L21: =IF($K21<>0,ROUND($K21*$E21/$F21,2),0) -> 0
A22: 29 | B22: 7 | C22: =VLOOKUP(B22,GESTION!$A$12:$B$26,2) -> EAU Individuelle | D22: =VLOOKUP(B22,GESTION!$A$12:$AQ$27,GESTION!$G$4,0)*((GESTION!$J$1=2)+(GESTION!$K$1=3)) -> 0 | E22: =VLOOKUP(A22,Tant.Lots.Fds!$A$5:$Z$35,14,0)*((GESTION!$J$1=2)+(GESTION!$K$1=3)) -> 0 | F22: =VLOOKUP(99,Tant.Lots.Fds!$A$36:$O$36,B22+7)+(Tant.Lots.Fds!$N$36=0) -> 760 | G22: 0 | K22: =IF(B22<>"",VLOOKUP(B22,GESTION!$A$12:$AQ$25,GESTION!$G$4+2),0)*((GESTION!$J$1=2)+(GESTION!$K$1=3)) -> 0 | L22: =IF($K22<>0,ROUND($K22*$E22/$F22,2),0) -> 0
A23: 29 | B23: 8 | G23: = | K23: =IF(B23<>"",VLOOKUP(B23,GESTION!$A$12:$AQ$25,GESTION!$G$4+2),0)*((GESTION!$J$1=2)+(GESTION!$K$1=3)) -> 0 | L23: =IF($K23<>0,ROUND($K23*$E23/$F23,2),0) -> 0
A24: 29 | B24: 11 | C24: =IF(GESTION!$K$1=1,"Appel Fonds Travaux","Remb,Avance Travaux") -> Remb,Avance Travaux | D24: =VLOOKUP(B24,GESTION!$A$12:$AQ$27,GESTION!$G$4,0)*(GESTION!$J$1=1)+(VLOOKUP(B24,GESTION!$A$12:$AQ$27,41,0)*(GESTION!$G$4=41)) -> 0 | E24: =VLOOKUP(A24,Tant.Lots.Fds!$A$5:$AB$35,8) -> 480 | F24: =VLOOKUP(99,Tant.Lots.Fds!$A$36:$O$36,8) -> 10000 | G24: 0 | L24: =IF(J24<>0,ROUND(J24*D24/E24,2),"") -> 
A25: 29 | G25: =SUM(G19:G24) -> 288 | H25: =VLOOKUP(A25,FdsTravLots!$A$4:'FdsTravLots'!$C$35,3,0)*(GESTION!$K$1=2) -> 225.6 | I25: =IF(H25>ROUND(G25*$I$10/100,2),ROUND(G25*$I$10/100,2),H25)*-1*(G25>0) -> -225.6 | J25: =H25+I25 -> 0 | L25: =SUM(L19:L24) -> 0 | N25: =VLOOKUP(A25,FdsTravLots!$A$4:$D$35,3,0)+VLOOKUP(A25,FdsTravLots!$A$4:$D$35,4,0) -> 0
A26: 30 | C26: =VLOOKUP(A26,Tant.Lots.Fds!$A$5:$B$35,2) -> Commerce | G26: =IF(D26<>0,ROUND(D26*E26/F26,2),"") -> 
A27: 30 | B27: 1 | C27: =VLOOKUP(B27,GESTION!$A$12:$B$26,2) -> Ch Gén. | D27: =VLOOKUP(B27,GESTION!$A$12:$AQ$27,GESTION!$G$4,0) -> 6000 | E27: =VLOOKUP(A27,Tant.Lots.Fds!$A$5:$AB$35,B27+7) -> 430 | F27: =VLOOKUP(99,Tant.Lots.Fds!$A$36:$O$36,B27+7) -> 10000 | G27: =ROUND(D27*E27/F27,2) -> 258 | K27: =IF(B27<>"",VLOOKUP(B27,GESTION!$A$12:$AQ$25,GESTION!$G$4+2),0)*((GESTION!$J$1=2)+(GESTION!$K$1=3)) -> 0 | L27: =IF($K27<>0,ROUND($K27*$E27/$F27,2),0) -> 0
A28: 30 | B28: 2 | C28: =VLOOKUP(B28,GESTION!$A$12:$B$26,2) -> Ch.Bât. | D28: =VLOOKUP(B28,GESTION!$A$12:$AQ$27,GESTION!$G$4,0) -> 0 | E28: =VLOOKUP(A28,Tant.Lots.Fds!$A$5:$AB$35,B28+7) -> 51 | F28: =VLOOKUP(99,Tant.Lots.Fds!$A$36:$O$36,B28+7) -> 1000 | G28: 0 | K28: =IF(B28<>"",VLOOKUP(B28,GESTION!$A$12:$AQ$25,GESTION!$G$4+2),0)*((GESTION!$J$1=2)+(GESTION!$K$1=3)) -> 0 | L28: =IF($K28<>0,ROUND($K28*$E28/$F28,2),0) -> 0
A29: 30 | B29: 6 | C29: =VLOOKUP(B29,GESTION!$A$12:$B$26,2) -> Provision Eau | D29: =VLOOKUP(B29,GESTION!$A$12:$AQ$27,GESTION!$G$4,0)*(GESTION!$J$1=1) -> 0 | E29: =VLOOKUP(A29,Tant.Lots.Fds!$A$5:$Z$35,13,0)*(GESTION!$J$1=1) -> 0 | F29: =VLOOKUP(99,Tant.Lots.Fds!$A$36:$O$36,B29+7) -> 1 | G29: 0 | K29: =IF(B29<>"",VLOOKUP(B29,GESTION!$A$12:$AQ$25,GESTION!$G$4+2),0)*((GESTION!$J$1=2)+(GESTION!$K$1=3)) -> 0 | L29: =IF($K29<>0,ROUND($K29*$E29/$F29,2),0) -> 0
A30: 30 | B30: 7 | C30: =VLOOKUP(B30,GESTION!$A$12:$B$26,2) -> EAU Individuelle | D30: =VLOOKUP(B30,GESTION!$A$12:$AQ$27,GESTION!$G$4,0)*((GESTION!$J$1=2)+(GESTION!$K$1=3)) -> 0 | E30: =VLOOKUP(A30,Tant.Lots.Fds!$A$5:$Z$35,14,0)*((GESTION!$J$1=2)+(GESTION!$K$1=3)) -> 0 | F30: =VLOOKUP(99,Tant.Lots.Fds!$A$36:$O$36,B30+7)+(Tant.Lots.Fds!$N$36=0) -> 760 | G30: 0 | K30: =IF(B30<>"",VLOOKUP(B30,GESTION!$A$12:$AQ$25,GESTION!$G$4+2),0)*((GESTION!$J$1=2)+(GESTION!$K$1=3)) -> 0 | L30: =IF($K30<>0,ROUND($K30*$E30/$F30,2),0) -> 0
A31: 30 | B31: 8 | K31: =IF(B31<>"",VLOOKUP(B31,GESTION!$A$12:$AQ$25,GESTION!$G$4+2),0)*((GESTION!$J$1=2)+(GESTION!$K$1=3)) -> 0 | L31: =IF($K31<>0,ROUND($K31*$E31/$F31,2),0) -> 0
A32: 30 | B32: 11 | C32: =IF(GESTION!$K$1=1,"Appel Fonds Travaux","Remb,Avance Travaux") -> Remb,Avance Travaux | D32: =VLOOKUP(B32,GESTION!$A$12:$AQ$27,GESTION!$G$4,0)*(GESTION!$J$1=1)+(VLOOKUP(B32,GESTION!$A$12:$AQ$27,41,0)*(GESTION!$G$4=41)) -> 0 | E32: =VLOOKUP(A32,Tant.Lots.Fds!$A$5:$AB$35,8) -> 430 | F32: =VLOOKUP(99,Tant.Lots.Fds!$A$36:$O$36,8) -> 10000 | G32: 0 | L32: =IF(J32<>0,ROUND(J32*D32/E32,2),"") -> 
A33: 30 | G33: =SUM(G27:G32) -> 258 | H33: =VLOOKUP(A33,FdsTravLots!$A$4:'FdsTravLots'!$C$35,3,0)*(GESTION!$K$1=2) -> 202.1 | I33: =IF(H33>ROUND(G33*$I$10/100,2),ROUND(G33*$I$10/100,2),H33)*-1*(G33>0) -> -202.1 | J33: =H33+I33 -> 0 | L33: =SUM(L27:L32) -> 0 | N33: =VLOOKUP(A33,FdsTravLots!$A$4:$D$35,3,0)+VLOOKUP(A33,FdsTravLots!$A$4:$D$35,4,0) -> 0
A36: 1 | B36: 12 | C36: Avance Trésorerie | D36: =VLOOKUP(B36,GESTION!$A$12:'GESTION'!$AQ$25,GESTION!$G$4,0)*(GESTION!G4=40) -> 0 | E36: =SUMIF(B12:E35,1,E12:E35)*(GESTION!G4=40) -> 0 | F36: =VLOOKUP(99,Tant.Lots.Fds!$A$36:$O$36,8)*(GESTION!$G$4=40) -> 0 | G36: =ROUND(D36*E36/10000,2) -> 0 | I36: =IF(H36<>0,ROUND(H36*E36/F36,2),"") -> 
F37: TOTAL | G37: =(SUM(G12:G35)/2)+G36 -> 594 | H37: =SUM(H12:H36) -> 465.3 | I37: =SUM(I12:I36) -> -465.3 | J37: =SUM(J12:J36) -> 0 | L37: =SUM(L12:L36)/2 -> 0 | N37: =SUM(N13:N36) -> 0
E38: Provisions | G38: =SUM(K38:N38)*-1 -> 0 | K38: =IF(GESTION!$G$4=8,VLOOKUP($G$2,GESTION!$A$35:$AF$54,GESTION!$G$4-1,FALSE),"") ->  | L38: =IF(GESTION!$G$4=16,VLOOKUP($G$2,GESTION!$A$35:$AF$54,GESTION!$G$4-1,FALSE),"") ->  | M38: =IF(GESTION!$G$4=24,VLOOKUP($G$2,GESTION!$A$35:$AF$54,GESTION!$G$4-1,FALSE),"") ->  | N38: =IF(GESTION!$G$4=32,VLOOKUP($G$2,GESTION!$A$35:$AF$54,GESTION!$G$4-1,FALSE),"") -> 
E39: Financement Fonds Travaux | G39: =I37 -> -465.3 | K39: 8 | L39: 16 | M39: 24 | N39: 32
D40: SOLDE en votre faveur………………….. | G40: =IF(AND(H$4<>36,G37+G38+G39<0),G37+G38+G39,0) -> 0 | K40: =GESTION!$G$4 -> 20 | L40: =GESTION!$H$4 -> 1er Appel Travaux
D41: SOLDE dû au syndicat……………. | G41: =IF(AND($G$4<>36,G37+G38+G39>0),G37+G38+G39,0) -> 128.7
I42: =IF(L37>0,"Dont T.V.A.","") ->  | J42: =IF(L37<>0,L37,"") -> 
D43: RELEVE DE COMPTE | H43: =IF(M37<>0,"Dont TVA","") ->  | I43: =IF(M12<>0,M37,"") ->  | L43: La zône grisée n' est pas destinée
H44: =IF(N37<>0,"TVAs/Ch.Loc","") ->  | I44: =IF(M12<>0,N37,"") ->  | L44: a être imprimée et diffusée.
C45: Dates | D45: Libellés des operations | F45: DEBIT | G45: CREDIT
J46: =IF(M42<>0,"Dont T.V.A.","") ->  | K46: =IF(M41<>0,M41,"") -> 
F49: =SUM(F46:F48) -> 0 | G49: =SUM(G46:G48) -> 0
C50: =IF(GESTION!$G$4<>36,E6,"") -> 01//12/17 | D50: =IF(GESTION!$G$4<>36,D8,"") -> 1er Appel Travaux Electricité | F50: =G41 -> 128.7 | G50: =IF(G40>0,G40,G40*-1) -> 0
F51: =SUM(F49:F50) -> 128.7 | G51: =SUM(G49:G50) -> 0
E52: =IF(F52<G52,"Montant à Payer","Montant à votre crédit") -> Montant à Payer | F52: =IF((F51-G51)>0,F51-G51,"") -> 128.7 | G52: =IF((G51-F51)>0,G51-F51,"") -> 
C54: Avance Trésorerie | D54: Av.Travaux | E54: Fds Travaux | F54: =IF($F$52<$G$52,"Règlement à faire à l'ordre du Syndicat des Copropriétaires.","") -> Règlement à faire à l'ordre du Syndicat des Copropriétaires.
C55: =VLOOKUP($G2,GESTION!$A$63:$C$82,3,FALSE) -> 99 | D55: =GESTION!$B$88*E99/Tant.Lots.Fds!$H$36 -> 49.5 | E55: =$N$37 -> 0
F56: Le syndic
E87: =AUBERT!$C$8 -> 20 | F87: =AUBERT!$D$8 -> 1er Appel Travaux Electricité
B89: CLE | C89: Designation | E89: V/Tantièmes | G89: V/Quote part
B90: 1 | C90: Charges Générales | E90: =SUMIF($B$12:$G$37,B90,$E$12:$E$37) -> 990 | G90: =SUMIF($B$12:$B$36,B90,$G$12:$G$36) -> 594
B91: 2 | C91: Ch.Bâtiment | E91: =SUMIF($B$12:$G$37,B91,$E$12:$E$37) -> 116 | G91: =SUMIF($B$12:$B$36,B91,$G$12:$G$36) -> 0
B92: 3 | C92: Ch.Escal.A | E92: 143 | G92: 0
B93: 4 | C93: Ch?Escal.B | E93: 0 | G93: 0
B94: 5 | C94: WW Commun | E94: 0 | G94: 0
B95: 6 | C95: Prov.Eau | E95: 0 | G95: 0
B96: 7 | C96: Cons.Eau | E96: 0 | G96: 0
B97: 8 | C97: Eau Commune | E97: 0 | G97: 0
G98: =SUM(G90:G97) -> 594
B99: 11 | C99: =IF(GESTION!$K$1=1,"Appel Fonds Travaux","Remb,Avance Travaux") -> Remb,Avance Travaux | E99: 990 | G99: =SUMIF($B$12:$B$36,B99,$G$12:$G$36) -> 0
B100: 12 | C100: Avance de Trésorerie | E100: 0 | G100: =SUMIF($B$12:$B$36,B100,$G$12:$G$36) -> 0
G101: =G98+G99+G100 -> 594 | H101: =G101+G38+G39-G40-G41 -> 0
C103: Financement des travaux | G103: =G39 -> -465.3

Sheet MARTIAL
A1: =GESTION!A1 -> Syndicat des Copropriétaires
A2: =GESTION!A2 -> 27 rue de PARIS | G2: =Copropriétaires!$A$12 -> 450.008 | H2: =VLOOKUP($G$2,Copropriétaires!$A$6:'Copropriétaires'!$L$25,3,FALSE) -> Mr MARTIAL Paul
A3: =GESTION!A3 -> 08200 LETROU | H3: =VLOOKUP($G$2,Copropriétaires!$A$6:'Copropriétaires'!$L$25,7,FALSE) -> 27 rue de Paris
H4: =VLOOKUP($G$2,Copropriétaires!$A$6:'Copropriétaires'!$L$25,10,FALSE) -> 08200 LETROU
D5: Date d'avis: | E5: =GESTION!$D$4 -> 20/10/17
D6: Exigible | E6: =GESTION!$D$5 -> 01//12/17
A8: Lot 2, 104,105,106 | C8: =GESTION!$G$4 -> 20 | D8: =CONCATENATE(GESTION!$H$4," ",GESTION!$H$5) -> 1er Appel Travaux Electricité
B9: 311/10,000 | D9: =CONCATENATE("Exercice du ",GESTION!$E$1," ",GESTION!$F$1," au ",GESTION!$E$2," ",GESTION!$F$2) -> Exercice du 1er janvier 2017 au 31 décembre. 2017 | G9: =OR(GESTION!G4=8,GESTION!G4=16,GESTION!G4=24,GESTION!G4=32,GESTION!G4=36) -> FALSE
I10: =GESTION!$L$1 -> 80 | J10: %
A11: LOT | B11: CLE | C11: Designation | D11: A répartir | E11: V/Tantièmes | F11: Tantièmes Gén. | G11: V/Quote part | H11: FONDS | I11: Affectation | J11: Fd Restant | K11: TVA | L11: Q.P. T.V.A
A12: 2 | C12: =VLOOKUP(A12,Tant.Lots.Fds!$A$5:$B$35,2) -> Pavillon
A13: 2 | B13: 1 | C13: =VLOOKUP(B13,GESTION!$A$12:$B$26,2) -> Ch Gén. | D13: =VLOOKUP(B13,GESTION!$A$12:$AQ$27,GESTION!$G$4,0) -> 6000 | E13: =VLOOKUP(A13,Tant.Lots.Fds!$A$5:$AB$35,B13+7) -> 300 | F13: =VLOOKUP(99,Tant.Lots.Fds!$A$36:$O$36,B13+7) -> 10000 | G13: =ROUND(D13*E13/F13,2) -> 180 | K13: =IF(B13<>"",VLOOKUP(B13,GESTION!$A$12:$AQ$25,GESTION!$G$4+2),0)*((GESTION!$J$1=2)+(GESTION!$K$1=3)) -> 0 | L13: =IF($K13<>0,ROUND($K13*$E13/$F13,2),0) -> 0
A14: 2 | B14: 6 | C14: =VLOOKUP(B14,GESTION!$A$12:$B$26,2) -> Provision Eau | D14: =VLOOKUP(B14,GESTION!$A$12:$AQ$27,GESTION!$G$4,0)*(GESTION!$J$1=1) -> 0 | E14: =VLOOKUP(A14,Tant.Lots.Fds!$A$5:$Z$35,13,0)*(GESTION!$J$1=1) -> 0 | F14: =VLOOKUP(99,Tant.Lots.Fds!$A$36:$O$36,B14+7) -> 1 | G14: =ROUND(D14*E14/F14,2) -> 0 | K14: =IF(B14<>"",VLOOKUP(B14,GESTION!$A$12:$AQ$25,GESTION!$G$4+2),0)*((GESTION!$J$1=2)+(GESTION!$K$1=3)) -> 0 | L14: =IF($K14<>0,ROUND($K14*$E14/$F14,2),0) -> 0
A15: 2 | B15: 7 | C15: =VLOOKUP(B15,GESTION!$A$12:$B$26,2) -> EAU Individuelle | D15: =VLOOKUP(B15,GESTION!$A$12:$AQ$27,GESTION!$G$4,0)*((GESTION!$J$1=2)+(GESTION!$K$1=3)) -> 0 | E15: =VLOOKUP(A15,Tant.Lots.Fds!$A$5:$Z$35,14,0)*((GESTION!$J$1=2)+(GESTION!$K$1=3)) -> 0 | F15: =VLOOKUP(99,Tant.Lots.Fds!$A$36:$O$36,B15+7)+(Tant.Lots.Fds!$N$36=0) -> 760 | G15: =ROUND(D15*E15/F15,2) -> 0 | K15: =IF(B15<>"",VLOOKUP(B15,GESTION!$A$12:$AQ$25,GESTION!$G$4+2),0)*((GESTION!$J$1=2)+(GESTION!$K$1=3)) -> 0 | L15: =IF($K15<>0,ROUND($K15*$E15/$F15,2),0) -> 0
A16: 2 | B16: 8 | K16: =IF(B16<>"",VLOOKUP(B16,GESTION!$A$12:$AQ$25,GESTION!$G$4+2),0)*((GESTION!$J$1=2)+(GESTION!$K$1=3)) -> 0 | L16: =IF($K16<>0,ROUND($K16*$E16/$F16,2),0) -> 0
A17: 2 | B17: 11 | C17: =IF(GESTION!$K$1=1,"Appel Fonds Travaux","Remb,Avance Travaux") -> Remb,Avance Travaux | D17: =VLOOKUP(B17,GESTION!$A$12:$AQ$27,GESTION!$G$4,0)*(GESTION!$J$1=1)+(VLOOKUP(B17,GESTION!$A$12:$AQ$27,41,0)*(GESTION!$G$4=41)) -> 0 | E17: =VLOOKUP(A17,Tant.Lots.Fds!$A$5:$AB$35,8) -> 300 | F17: =VLOOKUP(99,Tant.Lots.Fds!$A$36:$O$36,8) -> 10000 | G17: =ROUND(D17*E17/F17,2) -> 0
A18: 2 | G18: =SUM(G13:G17) -> 180 | H18: =VLOOKUP(A18,FdsTravLots!$A$4:'FdsTravLots'!$C$35,3,0)*(GESTION!$K$1=2) -> 141 | I18: =IF(H18>ROUND(G18*$I$10/100,2),ROUND(G18*$I$10/100,2),H18)*-1*(G18>0) -> -141 | J18: =H18+I18 -> 0 | L18: =SUM(L13:L17) -> 0 | N18: =VLOOKUP(A18,FdsTravLots!$A$4:$D$35,3,0)+VLOOKUP(A18,FdsTravLots!$A$4:$D$35,4,0) -> 0
A19: 104 | C19: =VLOOKUP(A19,Tant.Lots.Fds!$A$5:$B$35,2) -> Cour privative
A20: 104 | B20: 1 | C20: =VLOOKUP(B20,GESTION!$A$12:$B$26,2) -> Ch Gén. | D20: =VLOOKUP(B20,GESTION!$A$12:$AQ$27,GESTION!$G$4,0) -> 6000 | E20: =VLOOKUP(A20,Tant.Lots.Fds!$A$5:$AB$35,B20+7) -> 1 | F20: =VLOOKUP(99,Tant.Lots.Fds!$A$36:$O$36,B20+7) -> 10000 | G20: =ROUND(D20*E20/F20,2) -> 0.6 | K20: =IF(B20<>"",VLOOKUP(B20,GESTION!$A$12:$AQ$25,GESTION!$G$4+2),0)*((GESTION!$J$1=2)+(GESTION!$K$1=3)) -> 0 | L20: =IF($K20<>0,ROUND($K20*$E20/$F20,2),0) -> 0
A21: 104 | B21: 11 | C21: =IF(GESTION!$K$1=1,"Appel Fonds Travaux","Remb,Avance Travaux") -> Remb,Avance Travaux | D21: =VLOOKUP(B21,GESTION!$A$12:$AQ$27,GESTION!$G$4,0)*(GESTION!$J$1=1)+(VLOOKUP(B21,GESTION!$A$12:$AQ$27,41,0)*(GESTION!$G$4=41)) -> 0 | E21: =VLOOKUP(A21,Tant.Lots.Fds!$A$5:$AB$35,8) -> 1 | F21: =VLOOKUP(99,Tant.Lots.Fds!$A$36:$O$36,8) -> 10000 | G21: =ROUND(D21*E21/F21,2) -> 0
A22: 104 | G22: =SUM(G20:G21) -> 0.6 | H22: =VLOOKUP(A22,FdsTravLots!$A$4:'FdsTravLots'!$C$35,3,0)*(GESTION!$K$1=2) -> 0.47 | I22: =IF(H22>ROUND(G22*$I$10/100,2),ROUND(G22*$I$10/100,2),H22)*-1*(G22>0) -> -0.47 | J22: =H22+I22 -> 0 | L22: =SUM(L20:L21) -> 0 | N22: =VLOOKUP(A22,FdsTravLots!$A$4:$D$35,3,0)+VLOOKUP(A22,FdsTravLots!$A$4:$D$35,4,0) -> 0
A23: 105 | C23: =VLOOKUP(A23,Tant.Lots.Fds!$A$5:$B$35,2) -> Cour privative
A24: 105 | B24: 1 | C24: =VLOOKUP(B24,GESTION!$A$12:$B$26,2) -> Ch Gén. | D24: =VLOOKUP(B24,GESTION!$A$12:$AQ$27,GESTION!$G$4,0) -> 6000 | E24: =VLOOKUP(A24,Tant.Lots.Fds!$A$5:$AB$35,B24+7) -> 9 | F24: =VLOOKUP(99,Tant.Lots.Fds!$A$36:$O$36,B24+7) -> 10000 | G24: =ROUND(D24*E24/F24,2) -> 5.4 | K24: =IF(B24<>"",VLOOKUP(B24,GESTION!$A$12:$AQ$25,GESTION!$G$4+2),0)*((GESTION!$J$1=2)+(GESTION!$K$1=3)) -> 0 | L24: =IF($K24<>0,ROUND($K24*$E24/$F24,2),0) -> 0
A25: 105 | B25: 11 | C25: =IF(GESTION!$K$1=1,"Appel Fonds Travaux","Remb,Avance Travaux") -> Remb,Avance Travaux | D25: =VLOOKUP(B25,GESTION!$A$12:$AQ$27,GESTION!$G$4,0)*(GESTION!$J$1=1)+(VLOOKUP(B25,GESTION!$A$12:$AQ$27,41,0)*(GESTION!$G$4=41)) -> 0 | E25: =VLOOKUP(A25,Tant.Lots.Fds!$A$5:$AB$35,8) -> 9 | F25: =VLOOKUP(99,Tant.Lots.Fds!$A$36:$O$36,8) -> 10000 | G25: =ROUND(D25*E25/F25,2) -> 0
A26: 105 | G26: =SUM(G24:G25) -> 5.4 | H26: =VLOOKUP(A26,FdsTravLots!$A$4:'FdsTravLots'!$C$35,3,0)*(GESTION!$K$1=2) -> 4.23 | I26: =IF(H26>ROUND(G26*$I$10/100,2),ROUND(G26*$I$10/100,2),H26)*-1*(G26>0) -> -4.23 | J26: =H26+I26 -> 0 | L26: =SUM(L24:L25) -> 0 | N26: =VLOOKUP(A26,FdsTravLots!$A$4:$D$35,3,0)+VLOOKUP(A26,FdsTravLots!$A$4:$D$35,4,0) -> 0
A27: 106 | C27: =VLOOKUP(A27,Tant.Lots.Fds!$A$5:$B$35,2) -> Cour privative
A28: 106 | B28: 1 | C28: =VLOOKUP(B28,GESTION!$A$12:$B$26,2) -> Ch Gén. | D28: =VLOOKUP(B28,GESTION!$A$12:$AQ$27,GESTION!$G$4,0) -> 6000 | E28: =VLOOKUP(A28,Tant.Lots.Fds!$A$5:$AB$35,B28+7) -> 1 | F28: =VLOOKUP(99,Tant.Lots.Fds!$A$36:$O$36,B28+7) -> 10000 | G28: =ROUND(D28*E28/F28,2) -> 0.6 | K28: =IF(B28<>"",VLOOKUP(B28,GESTION!$A$12:$AQ$25,GESTION!$G$4+2),0)*((GESTION!$J$1=2)+(GESTION!$K$1=3)) -> 0 | L28: =IF($K28<>0,ROUND($K28*$E28/$F28,2),0) -> 0
A29: 106 | B29: 11 | C29: =IF(GESTION!$K$1=1,"Appel Fonds Travaux","Remb,Avance Travaux") -> Remb,Avance Travaux | D29: =VLOOKUP(B29,GESTION!$A$12:$AQ$27,GESTION!$G$4,0)*(GESTION!$J$1=1)+(VLOOKUP(B29,GESTION!$A$12:$AQ$27,41,0)*(GESTION!$G$4=41)) -> 0 | E29: =VLOOKUP(A29,Tant.Lots.Fds!$A$5:$AB$35,8) -> 1 | F29: =VLOOKUP(99,Tant.Lots.Fds!$A$36:$O$36,8) -> 10000 | G29: =ROUND(D29*E29/F29,2) -> 0
A30: 106 | G30: =SUM(G28:G29) -> 0.6 | H30: =VLOOKUP(A30,FdsTravLots!$A$4:'FdsTravLots'!$C$35,3,0)*(GESTION!$K$1=2) -> 0.47 | I30: =IF(H30>ROUND(G30*$I$10/100,2),ROUND(G30*$I$10/100,2),H30)*-1*(G30>0) -> -0.47 | J30: =H30+I30 -> 0 | L30: =SUM(L28:L29) -> 0 | N30: =VLOOKUP(A30,FdsTravLots!$A$4:$D$35,3,0)+VLOOKUP(A30,FdsTravLots!$A$4:$D$35,4,0) -> 0
A36: 1 | B36: 12 | C36: Avance Trésorerie | D36: =VLOOKUP(B36,GESTION!$A$12:'GESTION'!$AQ$25,GESTION!$G$4,0)*(GESTION!G4=40) -> 0 | E36: =SUMIF(B12:E35,1,E12:E35)*(GESTION!G4=40) -> 0 | F36: =VLOOKUP(99,Tant.Lots.Fds!$A$36:$O$36,8)*(GESTION!$G$4=40) -> 0 | G36: =ROUND(D36*E36/10000,2) -> 0
F37: TOTAL | G37: =(SUM(G12:G35)/2)+G36 -> 186.6 | H37: =SUM(H12:H36) -> 146.17 | I37: =SUM(I12:I36) -> -146.17 | J37: =SUM(J12:J36) -> 0 | L37: =SUM(L12:L36)/2 -> 0 | N37: =SUM(N13:N36) -> 0
E38: Provisions | G38: =SUM(K38:N38)*-1 -> 0 | K38: =IF(GESTION!$G$4=8,VLOOKUP($G$2,GESTION!$A$35:$AF$54,GESTION!$G$4-1,FALSE),"") ->  | L38: =IF(GESTION!$G$4=16,VLOOKUP($G$2,GESTION!$A$35:$AF$54,GESTION!$G$4-1,FALSE),"") ->  | M38: =IF(GESTION!$G$4=24,VLOOKUP($G$2,GESTION!$A$35:$AF$54,GESTION!$G$4-1,FALSE),"") ->  | N38: =IF(GESTION!$G$4=32,VLOOKUP($G$2,GESTION!$A$35:$AF$54,GESTION!$G$4-1,FALSE),"") -> 
E39: Financement Fonds Travaux | G39: =I37 -> -146.17 | K39: 8 | L39: 16 | M39: 24 | N39: 32
D40: SOLDE en votre faveur………………….. | G40: =IF(AND(H$4<>36,G37+G38+G39<0),G37+G38+G39,0) -> 0 | K40: =GESTION!$G$4 -> 20 | L40: =GESTION!$H$4 -> 1er Appel Travaux
D41: SOLDE dû au syndicat……………. | G41: =IF(AND($G$4<>36,G37+G38+G39>0),G37+G38+G39,0) -> 40.43
I42: =IF(L37>0,"Dont T.V.A.","") ->  | J42: =IF(L37<>0,L37,"") -> 
D43: RELEVE DE COMPTE | I43: =IF(M6<>0,#REF!,"") ->  | L43: La zône grisée n' est pas destinée
I44: =IF(M6<>0,#REF!,"") ->  | L44: a être imprimée et diffusée.
C45: Dates | D45: Libellés des operations | F45: DEBIT | G45: CREDIT
F49: =SUM(F46:F48) -> 0 | G49: =SUM(G46:G48) -> 0
C50: =IF(GESTION!$G$4<>36,E6,"") -> 01//12/17 | D50: =IF(GESTION!$G$4<>36,D8,"") -> 1er Appel Travaux Electricité | F50: =G41 -> 40.43 | G50: =IF(G40>0,G40,G40*-1) -> 0
F51: =SUM(F49:F50) -> 40.43 | G51: =SUM(G49:G50) -> 0
E52: =IF(F52<G52,"Montant à Payer","Montant à votre crédit") -> Montant à Payer | F52: =IF((F51-G51)>0,F51-G51,"") -> 40.43 | G52: =IF((G51-F51)>0,G51-F51,"") -> 
C54: Avance Trésorerie | D54: Av.Travaux | E54: Fds Travaux | F54: =IF($F$52<$G$52,"Règlement à faire à l'ordre du Syndicat des Copropriétaires.","") -> Règlement à faire à l'ordre du Syndicat des Copropriétaires.
C55: =VLOOKUP($G2,GESTION!$A$63:$C$82,3,FALSE) -> 31.1 | D55: =GESTION!$B$88*E99/Tant.Lots.Fds!$H$36 -> 15.55 | E55: =$N$37 -> 0
F56: Le syndic
E87: =AUBERT!$C$8 -> 20 | F87: =AUBERT!$D$8 -> 1er Appel Travaux Electricité
B89: CLE | C89: Designation | E89: V/Tantièmes | G89: V/Quote part
B90: 1 | C90: Charges Générales | E90: =SUMIF($B$12:$G$37,B90,$E$12:$E$37) -> 311 | G90: =SUMIF($B$12:$B$36,B90,$G$12:$G$36) -> 186.6
B91: 2 | C91: Ch.Bâtiment | E91: =SUMIF($B$12:$G$37,B91,$E$12:$E$37) -> 0 | G91: =SUMIF($B$12:$B$36,B91,$G$12:$G$36) -> 0
B92: 3 | C92: Ch.Escal.A | E92: 0 | G92: 0
B93: 4 | C93: Ch?Escal.B | E93: 0 | G93: 0
B94: 5 | C94: WW Commun | E94: 0 | G94: 0
B95: 6 | C95: Prov.Eau | E95: 0 | G95: 0
B96: 7 | C96: EAU Individuelle | E96: 0 | G96: 0
B97: 8 | C97: Eau Commune | E97: 0 | G97: 0
G98: =SUM(G90:G97) -> 186.6
B99: 11 | C99: =IF(GESTION!$K$1=1,"Appel Fonds Travaux","Remb,Avance Travaux") -> Remb,Avance Travaux | E99: =SUMIF($B$12:$G$37,B99,$E$12:$E$37) -> 311 | G99: =SUMIF($B$12:$B$36,B99,$G$12:$G$36) -> 0
B100: 12 | C100: Avance de Trésorerie | E100: =SUMIF($B$12:$G$37,B100,$E$12:$E$37) -> 0 | G100: =SUMIF($B$12:$B$36,B100,$G$12:$G$36) -> 0
G101: =G98+G99+G100 -> 186.6 | H101: =G101+G38+G39-G40-G41 -> 0
C103: Financement des travaux | G103: =G39 -> -146.17

Sheet PONTEL
A1: =GESTION!A1 -> Syndicat des Copropriétaires
A2: =GESTION!A2 -> 27 rue de PARIS | G2: =Copropriétaires!$A$13 -> 450.009 | H2: =VLOOKUP($G$2,Copropriétaires!$A$6:'Copropriétaires'!$L$25,3,FALSE) -> Mr PONTEL Louis
A3: =GESTION!A3 -> 08200 LETROU | H3: =VLOOKUP($G$2,Copropriétaires!$A$6:'Copropriétaires'!$L$25,7,FALSE) -> 27 rue de Paris
H4: =VLOOKUP($G$2,Copropriétaires!$A$6:'Copropriétaires'!$L$25,10,FALSE) -> 08200 LETROU
D5: Date d'avis: | E5: =GESTION!$D$4 -> 20/10/17
D6: Exigible | E6: =GESTION!$D$5 -> 01//12/17
A8: Lot 14, 22, | C8: =GESTION!$G$4 -> 20 | D8: =CONCATENATE(GESTION!$H$4," ",GESTION!$H$5) -> 1er Appel Travaux Electricité
B9: 380/10000 | D9: =CONCATENATE("Exercice du ",GESTION!$E$1," ",GESTION!$F$1," au ",GESTION!$E$2," ",GESTION!$F$2) -> Exercice du 1er janvier 2017 au 31 décembre. 2017 | G9: =OR(GESTION!G4=8,GESTION!G4=16,GESTION!G4=24,GESTION!G4=32,GESTION!G4=36) -> FALSE
I10: =GESTION!$L$1 -> 80 | J10: %
A11: LOT | B11: CLE | C11: Designation | D11: A répartir | E11: V/Tantièmes | F11: Tantièmes Gén. | G11: V/Quote part | H11: FONDS | I11: Affectation | J11: Fd Restant | K11: T.VA. | L11: Q.P.TVA
A12: 14 | C12: =VLOOKUP(A12,Tant.Lots.Fds!$A$5:$B$35,2) -> Cave N° 4
A13: 14 | B13: 1 | C13: =VLOOKUP(B13,GESTION!$A$12:$B$26,2) -> Ch Gén. | D13: =VLOOKUP(B13,GESTION!$A$12:$AQ$27,GESTION!$G$4,0) -> 6000 | E13: =VLOOKUP(A13,Tant.Lots.Fds!$A$5:$AB$35,B13+7) -> 30 | F13: =VLOOKUP(99,Tant.Lots.Fds!$A$36:$O$36,B13+7) -> 10000 | G13: =ROUND(D13*E13/F13,2) -> 18
A14: 14 | B14: 2 | C14: =VLOOKUP(B14,GESTION!$A$12:$B$26,2) -> Ch.Bât. | D14: =VLOOKUP(B14,GESTION!$A$12:$AQ$27,GESTION!$G$4,0) -> 0 | E14: =VLOOKUP(A14,Tant.Lots.Fds!$A$5:$AB$35,B14+7) -> 4 | F14: =VLOOKUP(99,Tant.Lots.Fds!$A$36:$O$36,B14+7) -> 1000 | G14: =ROUND(D14*E14/F14,2) -> 0
A15: 14 | B15: 3 | C15: =VLOOKUP(B15,GESTION!$A$12:$B$26,2) -> Ch.Escal.A | D15: =VLOOKUP(B15,GESTION!$A$12:$AQ$27,GESTION!$G$4,0) -> 0 | E15: =VLOOKUP(A15,Tant.Lots.Fds!$A$5:$AB$35,B15+7) -> 64 | F15: =VLOOKUP(99,Tant.Lots.Fds!$A$36:$O$36,B15+7) -> 1000 | G15: =ROUND(D15*E15/F15,2) -> 0
A16: 14 | B16: 11 | C16: =IF(GESTION!$K$1=1,"Appel Fonds Travaux","Remb,Avance Travaux") -> Remb,Avance Travaux | D16: =VLOOKUP(B16,GESTION!$A$12:$AQ$27,GESTION!$G$4,0)*(GESTION!$J$1=1)+(VLOOKUP(B16,GESTION!$A$12:$AQ$27,41,0)*(GESTION!$G$4=41)) -> 0 | E16: =VLOOKUP(A16,Tant.Lots.Fds!$A$5:$AB$35,8) -> 30 | F16: =VLOOKUP(99,Tant.Lots.Fds!$A$36:$O$36,8) -> 10000 | G16: =ROUND(D16*E16/F16,2) -> 0
A17: 14 | G17: =SUM(G13:G16) -> 18 | H17: =VLOOKUP(A17,FdsTravLots!$A$4:'FdsTravLots'!$C$35,3,0)*(GESTION!$K$1=2) -> 14.1 | I17: =IF(H17>ROUND(G17*$I$10/100,2),ROUND(G17*$I$10/100,2),H17)*-1*(G17>0) -> -14.1 | J17: =H17+I17 -> 0
A18: 22 | C18: =VLOOKUP(A18,Tant.Lots.Fds!$A$5:$B$35,2) -> Pièce
A19: 22 | B19: 1 | C19: =VLOOKUP(B19,GESTION!$A$12:$B$26,2) -> Ch Gén. | D19: =VLOOKUP(B19,GESTION!$A$12:$AQ$27,GESTION!$G$4,0) -> 6000 | E19: =VLOOKUP(A19,Tant.Lots.Fds!$A$5:$AB$35,B19+7) -> 350 | F19: =VLOOKUP(99,Tant.Lots.Fds!$A$36:$O$36,B19+7) -> 10000 | G19: =ROUND(D19*E19/F19,2) -> 210
A20: 22 | B20: 2 | C20: =VLOOKUP(B20,GESTION!$A$12:$B$26,2) -> Ch.Bât. | D20: =VLOOKUP(B20,GESTION!$A$12:$AQ$27,GESTION!$G$4,0) -> 0 | E20: =VLOOKUP(A20,Tant.Lots.Fds!$A$5:$AB$35,B20+7) -> 41 | F20: =VLOOKUP(99,Tant.Lots.Fds!$A$36:$O$36,B20+7) -> 1000 | G20: 0
A21: 22 | B21: 4 | C21: =VLOOKUP(B21,GESTION!$A$12:$B$26,2) -> Ch Escal B | D21: =VLOOKUP(B21,GESTION!$A$12:$AQ$27,GESTION!$G$4,0) -> 0 | E21: =VLOOKUP(A21,Tant.Lots.Fds!$A$5:$AB$35,B21+7) -> 57 | F21: =VLOOKUP(99,Tant.Lots.Fds!$A$36:$O$36,B21+7) -> 1000 | G21: 0
A22: 22 | B22: 5 | C22: =VLOOKUP(B22,GESTION!$A$12:$B$26,2) -> WC | D22: =VLOOKUP(B22,GESTION!$A$12:$AQ$27,GESTION!$G$4,0) -> 0 | E22: =VLOOKUP(A22,Tant.Lots.Fds!$A$5:$AB$35,B22+7) -> 185 | F22: =VLOOKUP(99,Tant.Lots.Fds!$A$36:$O$36,B22+7) -> 1000 | G22: 0
A23: 22 | B23: 6 | C23: =VLOOKUP(B23,GESTION!$A$12:$B$26,2) -> Provision Eau | D23: =VLOOKUP(B23,GESTION!$A$12:$AQ$27,GESTION!$G$4,0)*(GESTION!$J$1=1) -> 0 | E23: =VLOOKUP(A23,Tant.Lots.Fds!$A$5:$Z$35,13,0)*(GESTION!$J$1=1) -> 0 | F23: =VLOOKUP(99,Tant.Lots.Fds!$A$36:$AB$36,B23+7) -> 1 | G23: 0
A24: 22 | B24: 7 | C24: =VLOOKUP(B24,GESTION!$A$12:$B$26,2) -> EAU Individuelle | D24: =VLOOKUP(B24,GESTION!$A$12:$AQ$27,GESTION!$G$4,0)*((GESTION!$J$1=2)+(GESTION!$K$1=3)) -> 0 | E24: =VLOOKUP(A24,Tant.Lots.Fds!$A$5:$Z$35,14,0)*((GESTION!$J$1=2)+(GESTION!$K$1=3)) -> 0 | F24: =VLOOKUP(99,Tant.Lots.Fds!$A$36:$O$36,B24+7)+(Tant.Lots.Fds!$N$36=0) -> 760 | G24: 0 | K24: =IF(B24<>"",VLOOKUP(B24,GESTION!$A$12:$AQ$25,GESTION!$G$4+2),0)*((GESTION!$J$1=2)+(GESTION!$K$1=3)) -> 0 | L24: =IF($K24<>0,ROUND($K24*$E24/$F24,2),0) -> 0
A25: 22 | B25: 11 | C25: =IF(GESTION!$K$1=1,"Appel Fonds Travaux","Remb,Avance Travaux") -> Remb,Avance Travaux | D25: =VLOOKUP(B25,GESTION!$A$12:$AQ$27,GESTION!$G$4,0)*(GESTION!$J$1=1)+(VLOOKUP(B25,GESTION!$A$12:$AQ$27,41,0)*(GESTION!$G$4=41)) -> 0 | E25: =VLOOKUP(A25,Tant.Lots.Fds!$A$5:$AB$35,8) -> 350 | F25: =VLOOKUP(99,Tant.Lots.Fds!$A$36:$O$36,8) -> 10000 | G25: 0
A26: 22 | G26: =SUM(G19:G25) -> 210 | H26: =VLOOKUP(A26,FdsTravLots!$A$4:'FdsTravLots'!$C$35,3,0)*(GESTION!$K$1=2) -> 164.5 | I26: =IF(H26>ROUND(G26*$I$10/100,2),ROUND(G26*$I$10/100,2),H26)*-1*(G26>0) -> -164.5 | J26: =H26+I26 -> 0
A36: 1 | B36: 12 | C36: Avance Trésorerie | D36: =VLOOKUP(B36,GESTION!$A$12:'GESTION'!$AQ$25,GESTION!$G$4,0)*(GESTION!G4=40) -> 0 | E36: =SUMIF(B12:E35,1,E12:E35)*(GESTION!G4=40) -> 0 | F36: =VLOOKUP(99,Tant.Lots.Fds!$A$36:$O$36,8)*(GESTION!$G$4=40) -> 0 | G36: =ROUND(D36*E36/10000,2) -> 0
F37: TOTAL | G37: =(SUM(G12:G35)/2)+G36 -> 228 | H37: =SUM(H12:H36) -> 178.6 | I37: =SUM(I12:I36) -> -178.6 | J37: =SUM(J12:J36) -> 0 | K37: =SUM(K12:K36) -> 0 | L37: =SUM(L12:L36) -> 0 | N37: =SUM(N13:N36) -> 0
E38: Provisions | G38: =SUM(K38:N38)*-1 -> 0 | K38: =IF(GESTION!$G$4=8,VLOOKUP($G$2,GESTION!$A$35:$AF$54,GESTION!$G$4-1,FALSE),"") ->  | L38: =IF(GESTION!$G$4=16,VLOOKUP($G$2,GESTION!$A$35:$AF$54,GESTION!$G$4-1,FALSE),"") ->  | M38: =IF(GESTION!$G$4=24,VLOOKUP($G$2,GESTION!$A$35:$AF$54,GESTION!$G$4-1,FALSE),"") ->  | N38: =IF(GESTION!$G$4=32,VLOOKUP($G$2,GESTION!$A$35:$AF$54,GESTION!$G$4-1,FALSE),"") -> 
E39: Financement Fonds Travaux | G39: =I37 -> -178.6 | K39: 8 | L39: 16 | M39: 24 | N39: 32
D40: SOLDE en votre faveur………………….. | G40: =IF(AND(H$4<>36,G37+G38+G39<0),G37+G38+G39,0) -> 0 | K40: =GESTION!$G$4 -> 20 | L40: =GESTION!$H$4 -> 1er Appel Travaux
D41: SOLDE dû au syndicat……………. | G41: =IF(AND($G$4<>36,G37+G38+G39>0),G37+G38+G39,0) -> 49.4
I42: =IF(L37>0,"Dont T.V.A.","") ->  | J42: =IF(L37<>0,L37,"") -> 
D43: RELEVE DE COMPTE | I43: =IF(M6<>0,#REF!,"") ->  | L43: La zône grisée n' est pas destinée
I44: =IF(M6<>0,#REF!,"") ->  | L44: a être imprimée et diffusée.
C45: Dates | D45: Libellés des operations | F45: DEBIT | G45: CREDIT
F49: =SUM(F46:F48) -> 0 | G49: =SUM(G46:G48) -> 0
C50: =IF(GESTION!$G$4<>36,E6,"") -> 01//12/17 | D50: =IF(GESTION!$G$4<>36,D8,"") -> 1er Appel Travaux Electricité | F50: =G41 -> 49.4 | G50: =IF(G40>0,G40,G40*-1) -> 0
F51: =SUM(F49:F50) -> 49.4 | G51: =SUM(G49:G50) -> 0
E52: =IF(F52<G52,"Montant à Payer","Montant à votre crédit") -> Montant à Payer | F52: =IF((F51-G51)>0,F51-G51,"") -> 49.4 | G52: =IF((G51-F51)>0,G51-F51,"") -> 
C54: Avance Trésorerie | D54: Av.Travaux | E54: Fds Travaux | F54: =IF($F$52<$G$52,"Règlement à faire à l'ordre du Syndicat des Copropriétaires.","") -> Règlement à faire à l'ordre du Syndicat des Copropriétaires.
C55: =VLOOKUP($G2,GESTION!$A$63:$C$82,3,FALSE) -> 38 | D55: =GESTION!$B$88*E99/Tant.Lots.Fds!$H$36 -> 19 | E55: =$N$37 -> 0
F56: Le syndic
E87: =AUBERT!$C$8 -> 20 | F87: =AUBERT!$D$8 -> 1er Appel Travaux Electricité
B89: CLE | C89: Designation | E89: V/Tantièmes | G89: V/Quote part
B90: 1 | C90: Charges Générales | E90: =SUMIF($B$12:$G$37,B90,$E$12:$E$37) -> 380 | G90: =SUMIF($B$12:$B$36,B90,$G$12:$G$36) -> 228
B91: 2 | C91: Ch.Bâtiment | E91: =SUMIF($B$12:$G$37,B91,$E$12:$E$37) -> 45 | G91: =SUMIF($B$12:$B$36,B91,$G$12:$G$36) -> 0
B92: 3 | C92: Ch.Escal.A | E92: 64 | G92: 0
B93: 4 | C93: Ch?Escal.B | E93: 57 | G93: 0
B94: 5 | C94: WW Commun | E94: 185 | G94: 0
B95: 6 | C95: Prov.Eau | E95: 0 | G95: 0
B96: 7 | C96: Cons.Eau | E96: 0 | G96: 0
B97: 8 | C97: Eau Commune | E97: 0 | G97: 0
G98: =SUM(G90:G97) -> 228
B99: 11 | C99: =IF(GESTION!$K$1=1,"Appel Fonds Travaux","Remb,Avance Travaux") -> Remb,Avance Travaux | E99: =SUMIF($B$12:$G$37,B99,$E$12:$E$37) -> 380 | G99: =SUMIF($B$12:$B$36,B99,$G$12:$G$36) -> 0
B100: 12 | C100: Avance de Trésorerie | E100: =SUMIF($B$12:$G$37,B100,$E$12:$E$37) -> 0 | G100: =SUMIF($B$12:$B$36,B100,$G$12:$G$36) -> 0
G101: =G98+G99+G100 -> 228 | H101: =G101+G38+G39-G40-G41 -> 0
C103: Financement des travaux | G103: =G39 -> -178.6

Sheet xxx
A1: =GESTION!A1 -> Syndicat des Copropriétaires
A2: =GESTION!A2 -> 27 rue de PARIS | G2: 450.011 | H2: =VLOOKUP($G$2,Copropriétaires!$A$6:'Copropriétaires'!$L$25,3,FALSE) -> xxx
A3: =GESTION!A3 -> 08200 LETROU | H3: =VLOOKUP($G$2,Copropriétaires!$A$6:'Copropriétaires'!$L$25,7,FALSE) -> 0
H4: =VLOOKUP($G$2,Copropriétaires!$A$6:'Copropriétaires'!$L$25,10,FALSE) -> 0
D5: Date d'avis: | E5: =GESTION!$D$4 -> 20/10/17
D6: Exigible | E6: =GESTION!$D$5 -> 01//12/17
A8: Lot … | C8: =GESTION!$G$4 -> 20 | D8: =CONCATENATE(GESTION!$H$4," ",GESTION!$H$5) -> 1er Appel Travaux Electricité
D9: =CONCATENATE("Exercice du ",GESTION!$E$1," ",GESTION!$F$1," au ",GESTION!$E$2," ",GESTION!$F$2) -> Exercice du 1er janvier 2017 au 31 décembre. 2017 | G9: =OR(GESTION!G4=8,GESTION!G4=16,GESTION!G4=24,GESTION!G4=32,GESTION!G4=36) -> FALSE
I10: =GESTION!$L$1 -> 80 | J10: %
A11: LOT | B11: CLE | C11: Designation | D11: A répartir | E11: V/Tantièmes | F11: Tantièmes Gén. | G11: V/Quote part | H11: FONDS | I11: Affectation | J11: Fd Restant | K11: T.VA. | L11: Q.P.TVA
A36: 1 | B36: 12 | C36: Avance Trésorerie | D36: =VLOOKUP(B36,GESTION!$A$12:'GESTION'!$AQ$25,GESTION!$G$4,0)*(GESTION!G4=40) -> 0 | E36: =SUMIF(B12:E35,1,E12:E35)*(GESTION!G4=40) -> 0 | F36: =VLOOKUP(99,Tant.Lots.Fds!$A$36:$O$36,8)*(GESTION!$G$4=40) -> 0 | G36: =ROUND(D36*E36/10000,2) -> 0
F37: TOTAL | G37: =(SUM(G12:G35)/2)+G36 -> 0 | H37: =SUM(H12:H36) -> 0 | I37: =SUM(I12:I36) -> 0 | J37: =SUM(J12:J36) -> 0 | K37: =SUM(K12:K36) -> 0 | L37: =SUM(L12:L36) -> 0 | N37: =SUM(N13:N36) -> 0
E38: Provisions | G38: =SUM(K38:N38)*-1 -> 0 | K38: =IF(GESTION!$G$4=8,VLOOKUP($G$2,GESTION!$A$35:$AF$54,GESTION!$G$4-1,FALSE),"") ->  | L38: =IF(GESTION!$G$4=16,VLOOKUP($G$2,GESTION!$A$35:$AF$54,GESTION!$G$4-1,FALSE),"") ->  | M38: =IF(GESTION!$G$4=24,VLOOKUP($G$2,GESTION!$A$35:$AF$54,GESTION!$G$4-1,FALSE),"") ->  | N38: =IF(GESTION!$G$4=32,VLOOKUP($G$2,GESTION!$A$35:$AF$54,GESTION!$G$4-1,FALSE),"") -> 
E39: Financement Fonds Travaux | G39: =I37*-1 -> 0 | K39: 8 | L39: 16 | M39: 24 | N39: 32
D40: SOLDE en votre faveur………………….. | G40: =IF(AND(H$4<>36,G37+G38+G39<0),G37+G38+G39,0) -> 0 | K40: =GESTION!$G$4 -> 20 | L40: =GESTION!$H$4 -> 1er Appel Travaux
D41: SOLDE dû au syndicat……………. | G41: =IF(AND($G$4<>36,G37+G38+G39>0),G37+G38+G39,0) -> 0
I42: =IF(L37>0,"Dont T.V.A.","") ->  | J42: =IF(L37<>0,L37,"") -> 
D43: RELEVE DE COMPTE | I43: =IF(M6<>0,#REF!,"") ->  | L43: La zône grisée n' est pas destinée
I44: =IF(M6<>0,#REF!,"") ->  | L44: a être imprimée et diffusée.
C45: Dates | D45: Libellés des operations | F45: DEBIT | G45: CREDIT
F49: =SUM(F46:F48) -> 0 | G49: =SUM(G46:G48) -> 0
C50: =IF(GESTION!$G$4<>36,E6,"") -> 01//12/17 | D50: =IF(GESTION!$G$4<>36,D8,"") -> 1er Appel Travaux Electricité | F50: =G41 -> 0 | G50: =G40 -> 0
F51: =SUM(F49:F50) -> 0 | G51: =SUM(G49:G50) -> 0
E52: =IF(F52<G52,"Montant à Payer","Montant à votre crédit") -> Montant à votre crédit | F52: =IF((F51-G51)>0,F51-G51,"") ->  | G52: =IF((G51-F51)>0,G51-F51,"") -> 
C54: Avance Trésorerie | D54: Av.Travaux | E54: Fds Travaux | F54: =IF($F$52<$G$52,"Règlement à faire à l'ordre du Syndicat des Copropriétaires.","") -> 
C55: =VLOOKUP($G2,GESTION!$A$63:$C$82,3,FALSE) -> 0 | D55: =GESTION!$B$88*E99/Tant.Lots.Fds!$H$36 -> 0 | E55: =$N$37 -> 0
F56: Le syndic
E87: =AUBERT!$C$8 -> 20 | F87: =AUBERT!$D$8 -> 1er Appel Travaux Electricité
B89: CLE | C89: Designation | E89: V/Tantièmes | G89: V/Quote part
B90: 1 | C90: Charges Générales | E90: =SUMIF($B$12:$G$37,B90,$E$12:$E$37) -> 0 | G90: =SUMIF($B$12:$B$36,B90,$G$12:$G$36) -> 0
B91: 2 | C91: Ch.Bâtiment | E91: =SUMIF($B$12:$G$37,B91,$E$12:$E$37) -> 0 | G91: =SUMIF($B$12:$B$36,B91,$G$12:$G$36) -> 0
B92: 3 | C92: Ch.Escal.A | E92: 0 | G92: 0
B93: 4 | C93: Ch?Escal.B | E93: 0 | G93: 0
B94: 5 | C94: WW Commun | E94: 0 | G94: 0
B95: 6 | C95: Prov.Eau | E95: 0 | G95: 0
B96: 7 | C96: Cons.Eau | E96: 0 | G96: 0
B97: 8 | C97: Eau Commune | E97: 0 | G97: 0
G98: =SUM(G90:G97) -> 0
B99: 11 | C99: =IF(GESTION!$K$1=1,"Appel Fonds Travaux","Remb,Avance Travaux") -> Remb,Avance Travaux | E99: =SUMIF($B$12:$G$37,B99,$E$12:$E$37) -> 0 | G99: =SUMIF($B$12:$B$36,B99,$G$12:$G$36) -> 0
B100: 12 | C100: Avance de Trésorerie | E100: =SUMIF($B$12:$G$37,B100,$E$12:$E$37) -> 0 | G100: =SUMIF($B$12:$B$36,B100,$G$12:$G$36) -> 0
G101: =G98+G99+G100 -> 0 | H101: =G101+G38+G39-G40-G41 -> 0
C103: Financement des travaux | G103: =G39 -> 0

Sheet CoproLots
E1: LOTS PAR COPROPRIETAIRES | N1: =TODAY() -> 2020-10-06
A2: Date de mise à jour 27.09.20 | M2: Prov.eau | N2: Eau Indiv.
A4: N°Lot | B4: Désignation | C4: Bât./Escal; | D4: Etage | E4: N°Cop | F4: Copopriétaires | G4: Locataires | H4: Ch.Géné | I4: Ch.Bât, | J4: Escal.A | K4: Escal.B | L4: WC Com | M4: 2016
A5: 16 | B5: Cave N° 6 | C5: 1,A | D5: SS | E5: 450.001 | F5: AUBERT | H5: 40 | I5: 5 | J5: 79
A6: 25 | B6: Appartement | C6: 1,B | D6: 2e | E6: 450.001 | F6: AUBERT | H6: 780 | I6: 92 | K6: 134 | M6: 114
A7: 26 | B7: Pièce | C7: 1,B | D7: 2e | E7: 450.001 | F7: AUBERT | H7: 350 | I7: 41 | K7: 60
E8: Total 450.001 | H8: =SUBTOTAL(9,H5:H7) -> 1170 | I8: 138 | J8: 79 | K8: 194 | L8: 0 | M8: 114
A9: 41 | B9: Maison | C9: A | D9: RDC | E9: 450.002 | F9: CARDIN | H9: 940 | M9: 117
A10: 42 | B10: Remises -Auvent | C10: B | D10: RDC | E10: 450.002 | F10: CARDIN | H10: 100
A11: 43 | B11: Remise | C11: C | D11: RDC | E11: 450.002 | F11: CARDIN | H11: 20
A12: 103 | B12: Jardin privatrif | E12: 450.002 | F12: CARDIN | H12: 129
E13: Total 450.002 | H13: =SUBTOTAL(9,H9:H12) -> 1189 | I13: 0 | J13: 0 | K13: 0 | L13: 0 | M13: 117
A14: 13 | B14: Cave N° 3 | C14: 1,A | D14: SS | E14: 450.003 | F14: DUBOIS | H14: 230 | I14: 27 | J14: 429
A15: 18 | B15: W.C. | C15: 1 | D15: RDC | E15: 450.003 | F15: DUBOIS | H15: 30 | I15: 4
A16: 19 | B16: Commerce | C16: 1 | D16: RDC | E16: 450.003 | F16: DUBOIS | H16: 910 | I16: 107
A17: 23 | B17: Appartement | C17: 1,B | D17: 1er | E17: 450.003 | F17: DUBOIS | H17: 780 | I17: 92 | K17: 128 | L17: 414
E18: Total 450.003 | H18: =SUBTOTAL(9,H14:H17) -> 1950 | I18: 230 | J18: 429 | K18: 128 | L18: 414 | M18: 0
A19: 12 | B19: Cave N° 2 | C19: 1,A | D19: SS | E19: 450.005 | F19: FONTAINE | H19: 40 | I19: 5 | J19: 79
A20: 17 | B20: Cave N° 7 | C20: 1,A | D20: SS | E20: 450.005 | F20: FONTAINE | H20: 40 | I20: 5 | J20: 79
A21: 21 | B21: Appartement | C21: 1,B | D21: 1er | E21: 450.005 | F21: FONTAINE | G21: Dupont | H21: 760 | I21: 89 | K21: 124 | L21: 401 | M21: 105
A22: 24 | B22: W.C. | C22: 1,B | D22: 2e | E22: 450.005 | F22: FONTAINE | H22: 30 | I22: 4 | K22: 5
A23: 27 | B23: Appartement | C23: 1,B | D23: 2e | E23: 450.005 | F23: FONTAINE | H23: 810 | I23: 95 | K23: 139 | M23: 100
E24: Total 450.005 | H24: =SUBTOTAL(9,H19:H23) -> 1680 | I24: 198 | J24: 158 | K24: 268 | L24: 401 | M24: 205
A25: 11 | B25: Cave N° 1 | C25: 1,A | D25: SS | E25: 450.006 | F25: HUBERT | H25: 70 | I25: 8 | J25: 127
A26: 28 | B26: Appartement | C26: 1,B | D26: 3e | E26: 450.006 | F26: HUBERT | H26: 2260 | I26: 265 | K26: 353 | M26: 74
E27: Total 450.006 | H27: =SUBTOTAL(9,H25:H26) -> 2330 | I27: 273 | J27: 127 | K27: 353 | L27: 0 | M27: 74
A28: 15 | B28: Cave N° 5 | C28: 1,A | D28: SS | E28: 450.007 | F28: LONGUET | H28: 80 | I28: 9 | J28: 143
A29: 29 | B29: Commerce | C29: 1 | D29: RDC -G | E29: 450.007 | F29: LONGUET | H29: 480 | I29: 56 | M29: 103
A30: 30 | B30: Commerce | C30: 1 | D30: RDC-G | E30: 450.007 | F30: LONGUET | G30: Cantin | H30: 430 | I30: 51 | M30: 67
E31: Total 450.007 | H31: =SUBTOTAL(9,H28:H30) -> 990 | I31: 116 | J31: 143 | K31: 0 | L31: 0 | M31: 170
A32: 2 | B32: Pavillon | D32: RDC | E32: 450.008 | F32: MARTIAL | H32: 300 | M32: 16
A33: 104 | B33: Cour privative | E33: 450.008 | F33: MARTIAL | H33: 1
A34: 105 | B34: Cour privative | E34: 450.008 | F34: MARTIAL | H34: 9
A35: 106 | B35: Cour privative | E35: 450.008 | F35: MARTIAL | H35: 1
E36: Total 450.008 | H36: =SUBTOTAL(9,H32:H35) -> 311 | I36: 0 | J36: 0 | K36: 0 | L36: 0 | M36: 16
A37: 14 | B37: Cave N° 4 | C37: 1,A | D37: SS | E37: 450.009 | F37: PONTEL | H37: 30 | I37: 4 | J37: 64
A38: 22 | B38: Pièce | C38: 1,B | D38: 1er | E38: 450.009 | F38: PONTEL | G38: Martial | H38: 350 | I38: 41 | K38: 57 | L38: 185 | M38: 44
E39: Total 450.009 | H39: =SUBTOTAL(9,H37:H38) -> 380 | I39: 45 | J39: 64 | K39: 57 | L39: 185 | M39: 44
E40: Total général | H40: =SUBTOTAL(9,H5:H38) -> 10000 | I40: 1000 | J40: 1000 | K40: 1000 | L40: 1000 | M40: 740

Sheet Lisez-moi
A4: D O C U M E N T A T I O N
A7: Cette application sous EXCEL est destinée à la gestion des charges de copropriétés; Appels de charges et répartitionn de charges courantes et
A8: travaux, ainsi que la gestion de la constitution et de l' utilisation du "Fonds travaux".
A11: Feuille "Copropriétaires":
A12: Cette feuille contient les coordonnés des copropriétaires, code, nom, prénom et adresse.
A13: Le code et un nombre de trois caractère principaux et trois décimales (450,001 à 450,999)
A15: Feuille "TantLotsFds"
A16: Cette feuille contient pour chaque LOT les tantièmes par clé de répartition, les consommations d' eau et les calculs de l' utilisation du fonds travaux,
A17: Le copropriétaire du lot et éventuellment le nom du locataire.
A19: Feuille"Fds TravLots"
A20: Cette feuille enregistre tous les mouvements sur le fonds travaux et donne le montant du fonds restant.
A22: Feuille "Vérif"
A23: Indique pour chaque opération la répartion par nature de charges et par copropriétaire pour chaque nature d' opération.
A24: Les indications de cette feuille permettent les enregistremants en comptabilité.
A26: Feuille "GESTION"
A27: C' est la feuille de travail, elle permet d' effectuer toutes les opérations de gestion.
A28: Sur cette feuillle sont enregistrés les budgets pour charges courantes et travaux. (Il est possible d' enregistrer les montants de la TVA récupérable)
A29: Permet la réalisation des 4 appels de provisions pour charges courantes et de trois dossiers de travaux avec trois appels de provisions par dossier ainsi que la régularisation des charges.
A31: Fonctionnement:
A32: Pour réaliser une opération il faut cliquer sur le bouton rose "APPEL" et répondre aux questions: Numéro d' appel, date d' avis et date d' exigibilité.
A33: Les opérations doivent être réalisées dans l'oredre chronoilogique, il n' est pas possible de rééditrer une opération déjà réalisée;
A36: GESTION DES CONSOMMATIONS D' EAU:
A37: L' appel de provision d' eau pour le premier trimestre de l' exercice doit être fait sur le dossier de cet exercice.
A38: En fin d' exercice il faut donc ouvrir un nouvau dossier, mais à cette date les consommations d' eau de l' exercice en cours ne sont pas conues, les provision s d' eau du 1er trimestre
A39: seront donc calculées sur les consommations de l' exercice N-2.
A40: Pour le calcul des provisions du 2e trimestre de l' exercice le logiciel demandera d' entrer les consommations de l' exercice précédent N-1, et calculera les provisions sur ces bases.
A42: GESTION DU FONDS TRAVAUX:
A43: L' abondement da Fonds travaux se fait lors des appels trimestriels de charges courantes,
A44: Le fonds travaux n' est pas remboursable, il ne peut être utilisé que pour le financement de travaux, suivant décision de l' A.G. fixant le montant du financment maximum,
A45: par rapport au montant des travaux. Le montant du financement ne peut pas dépasser le montant du fonds de chaque lot.
A46: Il est possible de faire un appel spécifique au fonds travaux (Opération 41) pour capitaliser les intérêts du compte de placement, ou
A47: pour reprende une ancienne "avance pour travaux" transformée, sur décision d' A.G., en Fonds trravaux.
A49: AVANCE TRAVAUX:
A50: Il est possible de rembourser l' avance travaux pour le financement de travaux,
A51: Le' logiciel demande d' indiquer le montant à rembourser,
A52: Cette opération peut être cumulée avec le financement sur "Fonds Travaux".
A54: CHARGES LOCATIVES:
A55: Il est possible d' éditer des "avis" de charges locatives (Opération 36) qui peuvent n' être adressés qu' aux seuls copropriétaires bailleurs,
A57: EXERCICE NOUVEAU:
A58: Pour ouvrir un nouvel exercice il faut cliquer sur le bouton rouge de la feuille "GESTION" (En haut de la colonne "AV"),
A59: Un nouveau dossier est ouvert lui donner un nom faisant référence à l' année,
A61: Feuille "CoproLots" :
A62: Cette feuille est le résultat du tri de la feuille "Tant.Lots;Fds" par Copropriétaire.
A63: Elle comporte la date de la mise à jour de cet état,
A64: Pour mettre cet état à jour il faut cliquer sur le bouton Jaune "ACTUALISER"
A65: Cet état permet l' établissement et le contrôle de l' affectation des lots dans les feuilles individuelles
A67: Exercice Nouveau:
A68: Cette opération doit être réalisée en fin d' exercice, et avant clôture, pour réakiser le premier appel,
A70: Nouveau dossier:
A71: Il faut créer un nouvel exercice et ensuite mettre à jour les dossiers " Copropriétaires" et les affectations de lots dans les feuilles "copropriétaires",
A73: PROTECTION FEUILLE:
A74: N' utiliser le bouton vert "Protection Feuille" que si le dossier de l' exercice précédent est définitivement clos;
A75: Cette opération est facultative.
A78: A jour au 06/10/20
A79: Jean Braconnier
